Workbook

Sheet Main
B10: 2022-01-04
B12: Sheet No. | C12: Template Name | D12: Summary
B13: 1 | C13: Future Intra | D13: For Intraday trading in F&O segment
B14: 2 | C14: Cash Intra | D14: For Intraday trading in cash market segment
B15: 3 | C15: Mid-cap Intra | D15: For Intraday trading in Mid-cap stocks
B16: 4 | C16: Bulk Deals | D16: Reveals Bulk Deals carried on NSE & BSE
B17: 5 | C17: Call Tracker
K27: `

Sheet Future Intra
M5: Back to Main Page
A6: FOR INTRA DAY TRADING | L6: =Main!B10 -> 2022-01-04
A9: Sr.no | B9: Sector | C9: Scrip | D9: Expiry Date | E9: CLOSE RATE | F9: Pivot Point | G9: Supports | J9: Resistances
E10: Point | F10: Point | G10: S1 | H10: S2 | I10: S3 | J10: R1 | K10: R2 | L10: R3 | M10: HIGH | N10: LOW | O10: OI | P10: % Change in OI
A11: 1 | B11: Index | C11: BANKNIFTY | D11: 2022-01-27 | E11: 36582.45 | F11: 36292.25 | G11: 35940.50 | H11: 35298.55 | I11: 34946.80 | J11: 36934.20 | K11: 37285.95 | L11: 37927.90 | M11: 36644 | N11: 35650.3 | O11: 2550375 | P11: 3.59%
A12: 2 | B12: Index | C12: NIFTY | D12: 2022-01-27 | E12: 17677.95 | F12: 17593.45 | G12: 17494.55 | H12: 17311.15 | I12: 17212.25 | J12: 17776.85 | K12: 17875.75 | L12: 18059.15 | M12: 17692.35 | N12: 17410.05 | O12: 11549850 | P12: 3.43%
A13: 3 | B13: Index | C13: FINNIFTY | D13: 2021-12-28 | E13: 17864.95 | F13: 17713.62 | G13: 17538.28 | H13: 17211.62 | I13: 17036.28 | J13: 18040.28 | K13: 18215.62 | L13: 18542.28 | M13: 17888.95 | N13: 17386.95 | O13: 2120 | P13: 35.90%
A14: 4 | B14: Chemical | C14: AARTIIND | D14: 2022-01-27 | E14: 1022.65 | F14: 1018.93 | G14: 1006.72 | H14: 990.78 | I14: 978.57 | J14: 1034.87 | K14: 1047.08 | L14: 1063.02 | M14: 1031.15 | N14: 1003 | O14: 2108850 | P14: 4.77%
A15: 5 | B15: Pharma | C15: ABBOTINDIA | D15: 2022-01-27 | E15: 19399.80 | F15: 19485.63 | G15: 19264.17 | H15: 19128.53 | I15: 18907.07 | J15: 19621.27 | K15: 19842.73 | L15: 19978.37 | M15: 19707.1 | N15: 19350 | O15: 30000 | P15: 4.53%
A16: 6 | B16: Others | C16: ABCAPITAL | D16: 2022-01-27 | E16: 130.25 | F16: 128.63 | G16: 126.02 | H16: 121.78 | I16: 119.17 | J16: 132.87 | K16: 135.48 | L16: 139.72 | M16: 131.25 | N16: 124.4 | O16: 7440400 | P16: 52.21%
A17: 7 | B17: Textile | C17: ABFRL | D17: 2022-01-27 | E17: 275.05 | F17: 273.62 | G17: 271.43 | H17: 267.82 | I17: 265.63 | J17: 277.23 | K17: 279.42 | L17: 283.03 | M17: 275.8 | N17: 270 | O17: 10202400 | P17: 1.63%
A18: 8 | B18: Cement | C18: ACC | D18: 2022-01-27 | E18: 2260.35 | F18: 2249.98 | G18: 2231.97 | H18: 2203.58 | I18: 2185.57 | J18: 2278.37 | K18: 2296.38 | L18: 2324.77 | M18: 2268 | N18: 2221.6 | O18: 2678750 | P18: 2.69%
A19: 9 | B19: Others | C19: ADANIENT | D19: 2022-01-27 | E19: 1724.85 | F19: 1727.62 | G19: 1714.23 | H19: 1703.62 | I19: 1690.23 | J19: 1738.23 | K19: 1751.62 | L19: 1762.23 | M19: 1741 | N19: 1717 | O19: 21002500 | P19: -0.63%
A20: 10 | B20: Others | C20: ADANIPORTS | D20: 2022-01-27 | E20: 739.90 | F20: 738.82 | G20: 735.18 | H20: 730.47 | I20: 726.83 | J20: 743.53 | K20: 747.17 | L20: 751.88 | M20: 742.45 | N20: 734.1 | O20: 86605000 | P20: -0.10%
A21: 11 | B21: Pharma | C21: ALKEM | D21: 2022-01-27 | E21: 3653.35 | F21: 3651.23 | G21: 3637.47 | H21: 3621.58 | I21: 3607.82 | J21: 3667.12 | K21: 3680.88 | L21: 3696.77 | M21: 3665 | N21: 3635.35 | O21: 321800 | P21: -2.13%
A22: 12 | B22: Automobile | C22: AMARAJABAT | D22: 2022-01-27 | E22: 640.15 | F22: 640.70 | G22: 636.40 | H22: 632.65 | I22: 628.35 | J22: 644.45 | K22: 648.75 | L22: 652.50 | M22: 645 | N22: 636.95 | O22: 8906000 | P22: 0.43%
A23: 13 | B23: Cement | C23: AMBUJACEM | D23: 2022-01-27 | E23: 388.30 | F23: 386.30 | G23: 381.90 | H23: 375.50 | I23: 371.10 | J23: 392.70 | K23: 397.10 | L23: 403.50 | M23: 390.7 | N23: 379.9 | O23: 13084500 | P23: 2.51%
A24: 14 | B24: Pharma | C24: APLLTD | D24: 2022-01-27 | E24: 810.25 | F24: 810.02 | G24: 804.33 | H24: 798.42 | I24: 792.73 | J24: 815.93 | K24: 821.62 | L24: 827.53 | M24: 815.7 | N24: 804.1 | O24: 1628900 | P24: 1.22%
A25: 15 | B25: Others | C25: APOLLOHOSP | D25: 2022-01-27 | E25: 5018.65 | F25: 5035.13 | G25: 4988.72 | H25: 4958.78 | I25: 4912.37 | J25: 5065.07 | K25: 5111.48 | L25: 5141.42 | M25: 5081.55 | N25: 5005.2 | O25: 2291125 | P25: 0.08%
A26: 16 | B26: Automobile | C26: APOLLOTYRE | D26: 2022-01-27 | E26: 222.15 | F26: 222.08 | G26: 220.52 | H26: 218.88 | I26: 217.32 | J26: 223.72 | K26: 225.28 | L26: 226.92 | M26: 223.65 | N26: 220.45 | O26: 10110000 | P26: 0.27%
A27: 17 | B27: Automobile | C27: ASHOKLEY | D27: 2022-01-27 | E27: 127.90 | F27: 127.05 | G27: 125.25 | H27: 122.60 | I27: 120.80 | J27: 129.70 | K27: 131.50 | L27: 134.15 | M27: 128.85 | N27: 124.4 | O27: 36315000 | P27: -2.16%
A28: 18 | B28: FMCG | C28: ASIANPAINT | D28: 2022-01-27 | E28: 3431.85 | F28: 3428.98 | G28: 3408.97 | H28: 3386.08 | I28: 3366.07 | J28: 3451.87 | K28: 3471.88 | L28: 3494.77 | M28: 3449 | N28: 3406.1 | O28: 3378900 | P28: -2.05%
A29: 19 | B29: Others | C29: ASTRAL | D29: 2022-01-27 | E29: 2346.05 | F29: 2337.48 | G29: 2304.92 | H29: 2263.78 | I29: 2231.22 | J29: 2378.62 | K29: 2411.18 | L29: 2452.32 | M29: 2370.05 | N29: 2296.35 | O29: 572550 | P29: 6.82%
A30: 20 | B30: Others | C30: ATUL | D30: 2022-01-27 | E30: 9096.30 | F30: 9064.18 | G30: 9016.12 | H30: 8935.93 | I30: 8887.87 | J30: 9144.37 | K30: 9192.43 | L30: 9272.62 | M30: 9112.25 | N30: 8984 | O30: 49050 | P30: 1.55%
A31: 21 | B31: Banking | C31: AUBANK | D31: 2022-01-27 | E31: 1072.45 | F31: 1069.98 | G31: 1047.97 | H31: 1023.48 | I31: 1001.47 | J31: 1094.47 | K31: 1116.48 | L31: 1140.97 | M31: 1092 | N31: 1045.5 | O31: 3463000 | P31: -6.22%
A32: 22 | B32: Pharma | C32: AUROPHARMA | D32: 2022-01-27 | E32: 733.90 | F32: 734.75 | G32: 728.25 | H32: 722.60 | I32: 716.10 | J32: 740.40 | K32: 746.90 | L32: 752.55 | M32: 741.25 | N32: 729.1 | O32: 15029250 | P32: -2.35%
A33: 23 | B33: Banking | C33: AXISBANK | D33: 2022-01-27 | E33: 698.05 | F33: 692.78 | G33: 685.77 | H33: 673.48 | I33: 666.47 | J33: 705.07 | K33: 712.08 | L33: 724.37 | M33: 699.8 | N33: 680.5 | O33: 48733200 | P33: -6.57%
A34: 24 | B34: Automobile | C34: BAJAJ-AUTO | D34: 2022-01-27 | E34: 3287.25 | F34: 3282.28 | G34: 3264.92 | H34: 3242.58 | I34: 3225.22 | J34: 3304.62 | K34: 3321.98 | L34: 3344.32 | M34: 3299.65 | N34: 3259.95 | O34: 3179500 | P34: -1.39%
A35: 25 | B35: Finance | C35: BAJAJFINSV | D35: 2022-01-27 | E35: 17057.40 | F35: 16883.48 | G35: 16672.97 | H35: 16288.53 | I35: 16078.02 | J35: 17267.92 | K35: 17478.43 | L35: 17862.87 | M35: 17094 | N35: 16499.05 | O35: 580050 | P35: 3.74%
A36: 26 | B36: Finance | C36: BAJFINANCE | D36: 2022-01-27 | E36: 7262.40 | F36: 7174.83 | G36: 7068.72 | H36: 6875.03 | I36: 6768.92 | J36: 7368.52 | K36: 7474.63 | L36: 7668.32 | M36: 7280.95 | N36: 6981.15 | O36: 3947875 | P36: 4.31%
A37: 27 | B37: Automobile | C37: BALKRISIND | D37: 2022-01-27 | E37: 2333.00 | F37: 2326.23 | G37: 2312.57 | H37: 2292.13 | I37: 2278.47 | J37: 2346.67 | K37: 2360.33 | L37: 2380.77 | M37: 2339.9 | N37: 2305.8 | O37: 1394400 | P37: -1.39%
A38: 28 | B38: Others | C38: BALRAMCHIN | D38: 2022-01-27 | E38: 376.20 | F38: 372.95 | G38: 368.10 | H38: 360.00 | I38: 355.15 | J38: 381.05 | K38: 385.90 | L38: 394.00 | M38: 377.8 | N38: 364.85 | O38: 1004800 | P38: 84.16%
A39: 29 | B39: Banking | C39: BANDHANBNK | D39: 2022-01-27 | E39: 254.55 | F39: 254.87 | G39: 249.93 | H39: 245.32 | I39: 240.38 | J39: 259.48 | K39: 264.42 | L39: 269.03 | M39: 259.8 | N39: 250.25 | O39: 24179400 | P39: 7.30%
A40: 30 | B40: Banking | C40: BANKBARODA | D40: 2022-01-27 | E40: 84.20 | F40: 83.47 | G40: 82.53 | H40: 80.87 | I40: 79.93 | J40: 85.13 | K40: 86.07 | L40: 87.73 | M40: 84.4 | N40: 81.8 | O40: 140926500 | P40: 2.63%
A41: 31 | B41: FMCG | C41: BATAINDIA | D41: 2022-01-27 | E41: 1870.15 | F41: 1875.93 | G41: 1859.22 | H41: 1848.28 | I41: 1831.57 | J41: 1886.87 | K41: 1903.58 | L41: 1914.52 | M41: 1892.65 | N41: 1865 | O41: 1510850 | P41: 17.64%
A42: 32 | B42: Capital_Goods | C42: BEL | D42: 2022-01-27 | E42: 212.15 | F42: 211.67 | G42: 210.33 | H42: 208.52 | I42: 207.18 | J42: 213.48 | K42: 214.82 | L42: 216.63 | M42: 213 | N42: 209.85 | O42: 21454800 | P42: 0.07%
A43: 33 | B43: FMCG | C43: BERGEPAINT | D43: 2022-01-27 | E43: 780.50 | F43: 777.20 | G43: 771.90 | H43: 763.30 | I43: 758.00 | J43: 785.80 | K43: 791.10 | L43: 799.70 | M43: 782.5 | N43: 768.6 | O43: 5007200 | P43: 1.16%
A44: 34 | B44: Automobile | C44: BHARATFORG | D44: 2022-01-27 | E44: 714.25 | F44: 711.08 | G44: 704.17 | H44: 694.08 | I44: 687.17 | J44: 721.17 | K44: 728.08 | L44: 738.17 | M44: 718 | N44: 701 | O44: 8005500 | P44: -1.18%
A45: 35 | B45: Telecom | C45: BHARTIARTL | D45: 2022-01-27 | E45: 693.30 | F45: 691.05 | G45: 687.60 | H45: 681.90 | I45: 678.45 | J45: 696.75 | K45: 700.20 | L45: 705.90 | M45: 694.5 | N45: 685.35 | O45: 68538700 | P45: -0.84%
A46: 36 | B46: Capital_Goods | C46: BHEL | D46: 2022-01-27 | E46: 61.05 | F46: 60.47 | G46: 59.73 | H46: 58.42 | I46: 57.68 | J46: 61.78 | K46: 62.52 | L46: 63.83 | M46: 61.2 | N46: 59.15 | O46: 117075000 | P46: 1.98%
A47: 37 | B47: Pharma | C47: BIOCON | D47: 2022-01-27 | E47: 365.00 | F47: 366.03 | G47: 363.32 | H47: 361.63 | I47: 358.92 | J47: 367.72 | K47: 370.43 | L47: 372.12 | M47: 368.75 | N47: 364.35 | O47: 17463900 | P47: 0.66%
A48: 38 | B48: Automobile | C48: BOSCHLTD | D48: 2022-01-27 | E48: 17304.30 | F48: 17314.77 | G48: 17189.53 | H48: 17074.77 | I48: 16949.53 | J48: 17429.53 | K48: 17554.77 | L48: 17669.53 | M48: 17440 | N48: 17200 | O48: 167000 | P48: 0.33%
A49: 39 | B49: Oil_Gas | C49: BPCL | D49: 2022-01-27 | E49: 388.40 | F49: 387.63 | G49: 385.92 | H49: 383.43 | I49: 381.72 | J49: 390.12 | K49: 391.83 | L49: 394.32 | M49: 389.35 | N49: 385.15 | O49: 27487800 | P49: 1.60%
A50: 40 | B50: FMCG | C50: BRITANNIA | D50: 2022-01-27 | E50: 3629.65 | F50: 3623.75 | G50: 3605.95 | H50: 3582.25 | I50: 3564.45 | J50: 3647.45 | K50: 3665.25 | L50: 3688.95 | M50: 3641.55 | N50: 3600.05 | O50: 1258400 | P50: -0.46%
A51: 41 | B51: Technology | C51: BSOFT | D51: 2022-01-27 | E51: 570.25 | F51: 564.57 | G51: 555.18 | H51: 540.12 | I51: 530.73 | J51: 579.63 | K51: 589.02 | L51: 604.08 | M51: 573.95 | N51: 549.5 | O51: 4807400 | P51: 9.12%
A52: 42 | B52: Pharma | C52: CADILAHC | D52: 2022-01-27 | E52: 478.40 | F52: 481.27 | G52: 474.53 | H52: 470.67 | I52: 463.93 | J52: 485.13 | K52: 491.87 | L52: 495.73 | M52: 488 | N52: 477.4 | O52: 17615400 | P52: 0.09%
A53: 43 | B53: Banking | C53: CANBK | D53: 2022-01-27 | E53: 206.45 | F53: 204.32 | G53: 201.28 | H53: 196.12 | I53: 193.08 | J53: 209.48 | K53: 212.52 | L53: 217.68 | M53: 207.35 | N53: 199.15 | O53: 54016200 | P53: 0.03%
A54: 44 | B54: Finance | C54: CANFINHOME | D54: 2022-01-27 | E54: 576.00 | F54: 571.10 | G54: 563.30 | H54: 550.60 | I54: 542.80 | J54: 583.80 | K54: 591.60 | L54: 604.30 | M54: 578.9 | N54: 558.4 | O54: 3905850 | P54: 0.50%
A55: 45 | B55: Others | C55: CHAMBLFERT | D55: 2022-01-27 | E55: 402.75 | F55: 401.48 | G55: 396.47 | H55: 390.18 | I55: 385.17 | J55: 407.77 | K55: 412.78 | L55: 419.07 | M55: 406.5 | N55: 395.2 | O55: 2082000 | P55: 4.68%
A56: 46 | B56: Finance | C56: CHOLAFIN | D56: 2022-01-27 | E56: 538.25 | F56: 532.37 | G56: 523.83 | H56: 509.42 | I56: 500.88 | J56: 546.78 | K56: 555.32 | L56: 569.73 | M56: 540.9 | N56: 517.95 | O56: 7895000 | P56: -2.52%
A57: 47 | B57: Pharma | C57: CIPLA | D57: 2022-01-27 | E57: 933.95 | F57: 938.00 | G57: 925.45 | H57: 916.95 | I57: 904.40 | J57: 946.50 | K57: 959.05 | L57: 967.55 | M57: 950.55 | N57: 929.5 | O57: 9948900 | P57: 1.34%
A58: 48 | B58: Others | C58: COALINDIA | D58: 2022-01-27 | E58: 155.65 | F58: 153.17 | G58: 150.18 | H58: 144.72 | I58: 141.73 | J58: 158.63 | K58: 161.62 | L58: 167.08 | M58: 156.15 | N58: 147.7 | O58: 44948400 | P58: -4.40%
A59: 49 | B59: Technology | C59: COFORGE | D59: 2022-01-27 | E59: 5971.70 | F59: 5946.60 | G59: 5869.10 | H59: 5766.50 | I59: 5689.00 | J59: 6049.20 | K59: 6126.70 | L59: 6229.30 | M59: 6024.1 | N59: 5844 | O59: 650400 | P59: 1.70%
A60: 50 | B60: FMCG | C60: COLPAL | D60: 2022-01-27 | E60: 1471.45 | F60: 1478.67 | G60: 1462.78 | H60: 1454.12 | I60: 1438.23 | J60: 1487.33 | K60: 1503.22 | L60: 1511.88 | M60: 1494.55 | N60: 1470 | O60: 3229800 | P60: 5.57%
A61: 51 | B61: Others | C61: CONCOR | D61: 2022-01-27 | E61: 623.55 | F61: 621.57 | G61: 618.38 | H61: 613.22 | I61: 610.03 | J61: 626.73 | K61: 629.92 | L61: 635.08 | M61: 624.75 | N61: 616.4 | O61: 6266400 | P61: 0.46%
A62: 52 | B62: Others | C62: COROMANDEL | D62: 2022-01-27 | E62: 759.35 | F62: 760.47 | G62: 754.93 | H62: 750.52 | I62: 744.98 | J62: 764.88 | K62: 770.42 | L62: 774.83 | M62: 766 | N62: 756.05 | O62: 1113750 | P62: 6.26%
A63: 53 | B63: Capital_Goods | C63: CROMPTON | D63: 2022-01-27 | E63: 443.80 | F63: 443.03 | G63: 440.47 | H63: 437.13 | I63: 434.57 | J63: 446.37 | K63: 448.93 | L63: 452.27 | M63: 445.6 | N63: 439.7 | O63: 2066900 | P63: 2.68%
A64: 54 | B64: Banking | C64: CUB | D64: 2022-01-27 | E64: 139.05 | F64: 137.87 | G64: 136.38 | H64: 133.72 | I64: 132.23 | J64: 140.53 | K64: 142.02 | L64: 144.68 | M64: 139.35 | N64: 135.2 | O64: 9982400 | P64: -2.46%
A65: 55 | B65: Capital_Goods | C65: CUMMINSIND | D65: 2022-01-27 | E65: 946.95 | F65: 949.52 | G65: 941.53 | H65: 936.12 | I65: 928.13 | J65: 954.93 | K65: 962.92 | L65: 968.33 | M65: 957.5 | N65: 944.1 | O65: 1110000 | P65: 1.31%
A66: 56 | B66: FMCG | C66: DABUR | D66: 2022-01-27 | E66: 582.40 | F66: 582.88 | G66: 579.62 | H66: 576.83 | I66: 573.57 | J66: 585.67 | K66: 588.93 | L66: 591.72 | M66: 586.15 | N66: 580.1 | O66: 10061250 | P66: -1.15%
A67: 57 | B67: Cement | C67: DALBHARAT | D67: 2022-01-27 | E67: 1888.85 | F67: 1878.52 | G67: 1857.58 | H67: 1826.32 | I67: 1805.38 | J67: 1909.78 | K67: 1930.72 | L67: 1961.98 | M67: 1899.45 | N67: 1847.25 | O67: 540250 | P67: -0.09%
A68: 58 | B68: Chemical | C68: DEEPAKNTR | D68: 2022-01-27 | E68: 2537.90 | F68: 2534.73 | G68: 2505.47 | H68: 2473.03 | I68: 2443.77 | J68: 2567.17 | K68: 2596.43 | L68: 2628.87 | M68: 2564 | N68: 2502.3 | O68: 2229250 | P68: -1.19%
A69: 59 | B69: Others | C69: DELTACORP | D69: 2022-01-27 | E69: 259.80 | F69: 259.58 | G69: 256.37 | H69: 252.93 | I69: 249.72 | J69: 263.02 | K69: 266.23 | L69: 269.67 | M69: 262.8 | N69: 256.15 | O69: 16983200 | P69: 0.23%
A70: 60 | B70: Pharma | C70: DIVISLAB | D70: 2022-01-27 | E70: 4666.25 | F70: 4677.53 | G70: 4641.52 | H70: 4616.78 | I70: 4580.77 | J70: 4702.27 | K70: 4738.28 | L70: 4763.02 | M70: 4713.55 | N70: 4652.8 | O70: 2381200 | P70: -0.10%
A71: 61 | B71: Others | C71: DIXON | D71: 2022-01-27 | E71: 5549.00 | F71: 5555.67 | G71: 5521.33 | H71: 5493.67 | I71: 5459.33 | J71: 5583.33 | K71: 5617.67 | L71: 5645.33 | M71: 5590 | N71: 5528 | O71: 420000 | P71: 5.93%
A72: 62 | B72: Realty | C72: DLF | D72: 2022-01-27 | E72: 395.60 | F72: 395.37 | G72: 391.73 | H72: 387.87 | I72: 384.23 | J72: 399.23 | K72: 402.87 | L72: 406.73 | M72: 399 | N72: 391.5 | O72: 27513750 | P72: 1.42%
A73: 63 | B73: Pharma | C73: DRREDDY | D73: 2022-01-27 | E73: 4871.60 | F73: 4894.87 | G73: 4841.88 | H73: 4812.17 | I73: 4759.18 | J73: 4924.58 | K73: 4977.57 | L73: 5007.28 | M73: 4947.85 | N73: 4865.15 | O73: 2223875 | P73: 0.26%
A74: 64 | B74: Automobile | C74: EICHERMOT | D74: 2022-01-27 | E74: 2722.65 | F74: 2697.80 | G74: 2655.85 | H74: 2589.05 | I74: 2547.10 | J74: 2764.60 | K74: 2806.55 | L74: 2873.35 | M74: 2739.75 | N74: 2631 | O74: 2823450 | P74: -14.24%
A75: 65 | B75: Automobile | C75: ESCORTS | D75: 2022-01-27 | E75: 1907.10 | F75: 1911.27 | G75: 1897.83 | H75: 1888.57 | I75: 1875.13 | J75: 1920.53 | K75: 1933.97 | L75: 1943.23 | M75: 1924.7 | N75: 1902 | O75: 5229950 | P75: -0.94%
A76: 66 | B76: Automobile | C76: EXIDEIND | D76: 2022-01-27 | E76: 171.00 | F76: 171.02 | G76: 169.48 | H76: 167.97 | I76: 166.43 | J76: 172.53 | K76: 174.07 | L76: 175.58 | M76: 172.55 | N76: 169.5 | O76: 23518800 | P76: 2.93%
A77: 67 | B77: Banking | C77: FEDERALBNK | D77: 2022-01-27 | E77: 87.70 | F77: 86.35 | G77: 84.45 | H77: 81.20 | I77: 79.30 | J77: 89.60 | K77: 91.50 | L77: 94.75 | M77: 88.25 | N77: 83.1 | O77: 98060000 | P77: 5.14%
A78: 68 | B78: Technology | C78: FSL | D78: 2022-01-27 | E78: 189.30 | F78: 188.67 | G78: 185.13 | H78: 180.97 | I78: 177.43 | J78: 192.83 | K78: 196.37 | L78: 200.53 | M78: 192.2 | N78: 184.5 | O78: 9661600 | P78: 8.85%
A79: 69 | B79: Oil_Gas | C79: GAIL | D79: 2022-01-27 | E79: 131.75 | F79: 131.08 | G79: 130.27 | H79: 128.78 | I79: 127.97 | J79: 132.57 | K79: 133.38 | L79: 134.87 | M79: 131.9 | N79: 129.6 | O79: 41504400 | P79: -1.13%
A80: 70 | B80: Pharma | C80: GLENMARK | D80: 2022-01-27 | E80: 526.35 | F80: 528.05 | G80: 522.25 | H80: 518.15 | I80: 512.35 | J80: 532.15 | K80: 537.95 | L80: 542.05 | M80: 533.85 | N80: 523.95 | O80: 8837750 | P80: -1.41%
A81: 71 | B81: Infrastructure | C81: GMRINFRA | D81: 2022-01-27 | E81: 47.55 | F81: 47.13 | G81: 46.02 | H81: 44.48 | I81: 43.37 | J81: 48.67 | K81: 49.78 | L81: 51.32 | M81: 48.25 | N81: 45.6 | O81: 132817500 | P81: -4.00%
A82: 72 | B82: Others | C82: GNFC | D82: 2022-01-27 | E82: 447.30 | F82: 446.62 | G82: 440.88 | H82: 434.47 | I82: 428.73 | J82: 453.03 | K82: 458.77 | L82: 465.18 | M82: 452.35 | N82: 440.2 | O82: 871000 | P82: 95.34%
A83: 73 | B83: FMCG | C83: GODREJCP | D83: 2022-01-27 | E83: 961.20 | F83: 966.93 | G83: 954.07 | H83: 946.93 | I83: 934.07 | J83: 974.07 | K83: 986.93 | L83: 994.07 | M83: 979.8 | N83: 959.8 | O83: 5386000 | P83: 1.87%
A84: 74 | B84: Realty | C84: GODREJPROP | D84: 2022-01-27 | E84: 1910.70 | F84: 1905.62 | G84: 1887.23 | H84: 1863.77 | I84: 1845.38 | J84: 1929.08 | K84: 1947.47 | L84: 1970.93 | M84: 1924 | N84: 1882.15 | O84: 3214900 | P84: -0.58%
A85: 75 | B85: Pharma | C85: GRANULES | D85: 2022-01-27 | E85: 338.15 | F85: 338.47 | G85: 335.38 | H85: 332.62 | I85: 329.53 | J85: 341.23 | K85: 344.32 | L85: 347.08 | M85: 341.55 | N85: 335.7 | O85: 13505150 | P85: 0.96%
A86: 76 | B86: Cement | C86: GRASIM | D86: 2022-01-27 | E86: 1666.80 | F86: 1653.37 | G86: 1636.13 | H86: 1605.47 | I86: 1588.23 | J86: 1684.03 | K86: 1701.27 | L86: 1731.93 | M86: 1670.6 | N86: 1622.7 | O86: 12412700 | P86: -1.12%
A87: 77 | B87: Oil_Gas | C87: GSPL | D87: 2022-01-27 | E87: 301.05 | F87: 300.62 | G87: 298.03 | H87: 295.02 | I87: 292.43 | J87: 303.63 | K87: 306.22 | L87: 309.23 | M87: 303.2 | N87: 297.6 | O87: 863600 | P87: 0.40%
A88: 78 | B88: Oil_Gas | C88: GUJGASLTD | D88: 2022-01-27 | E88: 644.30 | F88: 643.17 | G88: 638.48 | H88: 632.67 | I88: 627.98 | J88: 648.98 | K88: 653.67 | L88: 659.48 | M88: 647.85 | N88: 637.35 | O88: 2455000 | P88: 6.51%
A89: 79 | B89: Others | C89: HAL | D89: 2022-01-27 | E89: 1240.95 | F89: 1236.65 | G89: 1224.30 | H89: 1207.65 | I89: 1195.30 | J89: 1253.30 | K89: 1265.65 | L89: 1282.30 | M89: 1249 | N89: 1220 | O89: 2888950 | P89: 5.22%
A90: 80 | B90: Capital_Goods | C90: HAVELLS | D90: 2022-01-27 | E90: 1409.75 | F90: 1413.05 | G90: 1402.15 | H90: 1394.55 | I90: 1383.65 | J90: 1420.65 | K90: 1431.55 | L90: 1439.15 | M90: 1423.95 | N90: 1405.45 | O90: 3256000 | P90: -0.05%
A91: 81 | B91: Technology | C91: HCLTECH | D91: 2022-01-27 | E91: 1319.30 | F91: 1317.47 | G91: 1302.08 | H91: 1284.87 | I91: 1269.48 | J91: 1334.68 | K91: 1350.07 | L91: 1367.28 | M91: 1332.85 | N91: 1300.25 | O91: 17058300 | P91: -3.44%
A92: 82 | B92: Finance | C92: HDFC | D92: 2022-01-27 | E92: 2643.30 | F92: 2627.72 | G92: 2608.83 | H92: 2574.37 | I92: 2555.48 | J92: 2662.18 | K92: 2681.07 | L92: 2715.53 | M92: 2646.6 | N92: 2593.25 | O92: 13110600 | P92: -1.16%
A93: 83 | B93: Finance | C93: HDFCAMC | D93: 2022-01-27 | E93: 2472.70 | F93: 2469.53 | G93: 2459.22 | H93: 2445.73 | I93: 2435.42 | J93: 2483.02 | K93: 2493.33 | L93: 2506.82 | M93: 2479.85 | N93: 2456.05 | O93: 3149800 | P93: -0.15%
A94: 84 | B94: Banking | C94: HDFCBANK | D94: 2022-01-27 | E94: 1525.85 | F94: 1512.63 | G94: 1496.47 | H94: 1467.08 | I94: 1450.92 | J94: 1542.02 | K94: 1558.18 | L94: 1587.57 | M94: 1528.8 | N94: 1483.25 | O94: 34543300 | P94: 1.52%
A95: 85 | B95: Finance | C95: HDFCLIFE | D95: 2022-01-27 | E95: 654.20 | F95: 652.73 | G95: 650.47 | H95: 646.73 | I95: 644.47 | J95: 656.47 | K95: 658.73 | L95: 662.47 | M95: 655 | N95: 649 | O95: 19706500 | P95: 1.98%
A96: 86 | B96: Automobile | C96: HEROMOTOCO | D96: 2022-01-27 | E96: 2489.55 | F96: 2490.60 | G96: 2472.90 | H96: 2456.25 | I96: 2438.55 | J96: 2507.25 | K96: 2524.95 | L96: 2541.60 | M96: 2508.3 | N96: 2473.95 | O96: 4349700 | P96: 0.62%
A97: 87 | B97: Metals | C97: HINDALCO | D97: 2022-01-27 | E97: 480.30 | F97: 478.73 | G97: 475.57 | H97: 470.83 | I97: 467.67 | J97: 483.47 | K97: 486.63 | L97: 491.37 | M97: 481.9 | N97: 474 | O97: 29098100 | P97: 1.10%
A98: 88 | B98: Metals | C98: HINDCOPPER | D98: 2022-01-27 | E98: 128.60 | F98: 127.50 | G98: 125.30 | H98: 122.00 | I98: 119.80 | J98: 130.80 | K98: 133.00 | L98: 136.30 | M98: 129.7 | N98: 124.2 | O98: 3263700 | P98: 109.09%
A99: 89 | B99: Oil_Gas | C99: HINDPETRO | D99: 2022-01-27 | E99: 298.15 | F99: 296.75 | G99: 294.75 | H99: 291.35 | I99: 289.35 | J99: 300.15 | K99: 302.15 | L99: 305.55 | M99: 298.75 | N99: 293.35 | O99: 11075400 | P99: 2.09%
A100: 90 | B100: FMCG | C100: HINDUNILVR | D100: 2022-01-27 | E100: 2366.80 | F100: 2368.35 | G100: 2357.55 | H100: 2348.30 | I100: 2337.50 | J100: 2377.60 | K100: 2388.40 | L100: 2397.65 | M100: 2379.15 | N100: 2359.1 | O100: 9306000 | P100: -2.34%
A101: 91 | B101: Others | C101: HONAUT | D101: 2022-01-27 | E101: 42600.80 | F101: 42488.98 | G101: 42077.97 | H101: 41555.13 | I101: 41144.12 | J101: 43011.82 | K101: 43422.83 | L101: 43945.67 | M101: 42900 | N101: 41966.15 | O101: 3690 | P101: 10.31%
A102: 92 | B102: Finance | C102: IBULHSGFIN | D102: 2022-01-27 | E102: 222.25 | F102: 221.40 | G102: 219.25 | H102: 216.25 | I102: 214.10 | J102: 224.40 | K102: 226.55 | L102: 229.55 | M102: 223.55 | N102: 218.4 | O102: 31778100 | P102: 11.19%
A103: 93 | B103: Banking | C103: ICICIBANK | D103: 2022-01-27 | E103: 767.80 | F103: 761.10 | G103: 753.20 | H103: 738.60 | I103: 730.70 | J103: 775.70 | K103: 783.60 | L103: 798.20 | M103: 769 | N103: 746.5 | O103: 78967625 | P103: -1.75%
A104: 94 | B104: Finance | C104: ICICIGI | D104: 2022-01-27 | E104: 1414.85 | F104: 1417.62 | G104: 1400.33 | H104: 1385.82 | I104: 1368.53 | J104: 1432.13 | K104: 1449.42 | L104: 1463.93 | M104: 1434.9 | N104: 1403.1 | O104: 3078275 | P104: -0.92%
A105: 95 | B105: Finance | C105: ICICIPRULI | D105: 2022-01-27 | E105: 570.30 | F105: 566.65 | G105: 561.85 | H105: 553.40 | I105: 548.60 | J105: 575.10 | K105: 579.90 | L105: 588.35 | M105: 571.45 | N105: 558.2 | O105: 5681250 | P105: 2.82%
A106: 96 | B106: Telecom | C106: IDEA | D106: 2022-01-27 | E106: 15.70 | F106: 15.72 | G106: 15.28 | H106: 14.87 | I106: 14.43 | J106: 16.13 | K106: 16.57 | L106: 16.98 | M106: 16.15 | N106: 15.3 | O106: 829710000 | P106: 9.61%
A107: 97 | B107: Finance | C107: IDFC | D107: 2022-01-27 | E107: 64.30 | F107: 63.92 | G107: 62.33 | H107: 60.37 | I107: 58.78 | J107: 65.88 | K107: 67.47 | L107: 69.43 | M107: 65.5 | N107: 61.95 | O107: 44290000 | P107: 19.12%
A108: 98 | B108: Banking | C108: IDFCFIRSTB | D108: 2022-01-27 | E108: 49.95 | F108: 49.58 | G108: 48.82 | H108: 47.68 | I108: 46.92 | J108: 50.72 | K108: 51.48 | L108: 52.62 | M108: 50.35 | N108: 48.45 | O108: 147519000 | P108: -5.06%
A109: 99 | B109: Others | C109: IEX | D109: 2022-01-27 | E109: 259.50 | F109: 258.20 | G109: 255.50 | H109: 251.50 | I109: 248.80 | J109: 262.20 | K109: 264.90 | L109: 268.90 | M109: 260.9 | N109: 254.2 | O109: 37432500 | P109: 1.63%
A110: 100 | B110: Oil_Gas | C110: IGL | D110: 2022-01-27 | E110: 477.15 | F110: 475.77 | G110: 473.38 | H110: 469.62 | I110: 467.23 | J110: 479.53 | K110: 481.92 | L110: 485.68 | M110: 478.15 | N110: 472 | O110: 10425250 | P110: 0.54%
A111: 101 | B111: Infrastructure | C111: INDHOTEL | D111: 2022-01-27 | E111: 184.85 | F111: 183.53 | G111: 180.07 | H111: 175.28 | I111: 171.82 | J111: 188.32 | K111: 191.78 | L111: 196.57 | M111: 187 | N111: 178.75 | O111: 14467134 | P111: 2.01%
A112: 102 | B112: Cement | C112: INDIACEM | D112: 2022-01-27 | E112: 201.05 | F112: 198.68 | G112: 194.37 | H112: 187.68 | I112: 183.37 | J112: 205.37 | K112: 209.68 | L112: 216.37 | M112: 203 | N112: 192 | O112: 11269400 | P112: 4.86%
A113: 103 | B113: Others | C113: INDIAMART | D113: 2022-01-27 | E113: 6609.00 | F113: 6570.98 | G113: 6491.97 | H113: 6374.93 | I113: 6295.92 | J113: 6688.02 | K113: 6767.03 | L113: 6884.07 | M113: 6650 | N113: 6453.95 | O113: 241350 | P113: 1.87%
A114: 104 | B114: Others | C114: INDIGO | D114: 2022-01-27 | E114: 2019.05 | F114: 1995.37 | G114: 1961.28 | H114: 1903.52 | I114: 1869.43 | J114: 2053.13 | K114: 2087.22 | L114: 2144.98 | M114: 2029.45 | N114: 1937.6 | O114: 2653750 | P114: -0.99%
A115: 105 | B115: Banking | C115: INDUSINDBK | D115: 2022-01-27 | E115: 917.00 | F115: 906.35 | G115: 892.20 | H115: 867.40 | I115: 853.25 | J115: 931.15 | K115: 945.30 | L115: 970.10 | M115: 920.5 | N115: 881.55 | O115: 27673200 | P115: 3.20%
A116: 106 | B116: Telecom | C116: INDUSTOWER | D116: 2022-01-27 | E116: 250.25 | F116: 249.53 | G116: 247.87 | H116: 245.48 | I116: 243.82 | J116: 251.92 | K116: 253.58 | L116: 255.97 | M116: 251.2 | N116: 247.15 | O116: 15862000 | P116: 6.15%
A117: 107 | B117: Technology | C117: INFY | D117: 2022-01-27 | E117: 1906.00 | F117: 1908.05 | G117: 1894.10 | H117: 1882.20 | I117: 1868.25 | J117: 1919.95 | K117: 1933.90 | L117: 1945.80 | M117: 1922 | N117: 1896.15 | O117: 29669700 | P117: -0.68%
A118: 108 | B118: Oil_Gas | C118: IOC | D118: 2022-01-27 | E118: 113.55 | F118: 113.03 | G118: 112.37 | H118: 111.18 | I118: 110.52 | J118: 114.22 | K118: 114.88 | L118: 116.07 | M118: 113.7 | N118: 111.85 | O118: 45500000 | P118: 1.91%
A119: 109 | B119: Pharma | C119: IPCALAB | D119: 2022-01-27 | E119: 2168.00 | F119: 2169.75 | G119: 2151.55 | H119: 2135.10 | I119: 2116.90 | J119: 2186.20 | K119: 2204.40 | L119: 2220.85 | M119: 2187.95 | N119: 2153.3 | O119: 1294875 | P119: -1.40%
A120: 110 | B120: Others | C120: IRCTC | D120: 2022-01-27 | E120: 850.40 | F120: 846.40 | G120: 837.80 | H120: 825.20 | I120: 816.60 | J120: 859.00 | K120: 867.60 | L120: 880.20 | M120: 855 | N120: 833.8 | O120: 8379875 | P120: -0.69%
A121: 111 | B121: FMCG | C121: ITC | D121: 2022-01-27 | E121: 220.00 | F121: 219.45 | G121: 218.30 | H121: 216.60 | I121: 215.45 | J121: 221.15 | K121: 222.30 | L121: 224.00 | M121: 220.6 | N121: 217.75 | O121: 225756800 | P121: 0.38%
A122: 112 | B122: Metals | C122: JINDALSTEL | D122: 2022-01-27 | E122: 387.95 | F122: 385.32 | G122: 381.38 | H122: 374.82 | I122: 370.88 | J122: 391.88 | K122: 395.82 | L122: 402.38 | M122: 389.25 | N122: 378.75 | O122: 34440000 | P122: 0.43%
A123: 113 | B123: Cement | C123: JKCEMENT | D123: 2022-01-27 | E123: 3512.90 | F123: 3470.23 | G123: 3410.47 | H123: 3308.03 | I123: 3248.27 | J123: 3572.67 | K123: 3632.43 | L123: 3734.87 | M123: 3530 | N123: 3367.8 | O123: 292600 | P123: 4.43%
A124: 114 | B124: Metals | C124: JSWSTEEL | D124: 2022-01-27 | E124: 671.20 | F124: 667.80 | G124: 661.30 | H124: 651.40 | I124: 644.90 | J124: 677.70 | K124: 684.20 | L124: 694.10 | M124: 674.3 | N124: 657.9 | O124: 41226300 | P124: 0.87%
A125: 115 | B125: Others | C125: JUBLFOOD | D125: 2022-01-27 | E125: 3674.55 | F125: 3662.93 | G125: 3629.87 | H125: 3585.18 | I125: 3552.12 | J125: 3707.62 | K125: 3740.68 | L125: 3785.37 | M125: 3696 | N125: 3618.25 | O125: 1771500 | P125: 5.24%
A126: 116 | B126: Banking | C126: KOTAKBANK | D126: 2022-01-27 | E126: 1828.85 | F126: 1818.90 | G126: 1805.85 | H126: 1782.85 | I126: 1769.80 | J126: 1841.90 | K126: 1854.95 | L126: 1877.95 | M126: 1831.95 | N126: 1795.9 | O126: 15351600 | P126: -1.22%
A127: 117 | B127: Finance | C127: L&TFH | D127: 2022-01-27 | E127: 79.65 | F127: 79.18 | G127: 78.42 | H127: 77.18 | I127: 76.42 | J127: 80.42 | K127: 81.18 | L127: 82.42 | M127: 79.95 | N127: 77.95 | O127: 62146736 | P127: -0.19%
A128: 118 | B128: Others | C128: LALPATHLAB | D128: 2022-01-27 | E128: 3869.60 | F128: 3855.80 | G128: 3826.15 | H128: 3782.70 | I128: 3753.05 | J128: 3899.25 | K128: 3928.90 | L128: 3972.35 | M128: 3885.45 | N128: 3812.35 | O128: 499250 | P128: -4.88%
A129: 119 | B129: Pharma | C129: LAURUSLABS | D129: 2022-01-27 | E129: 530.65 | F129: 536.13 | G129: 523.87 | H129: 517.08 | I129: 504.82 | J129: 542.92 | K129: 555.18 | L129: 561.97 | M129: 548.4 | N129: 529.35 | O129: 3857400 | P129: 3.98%
A130: 120 | B130: Finance | C130: LICHSGFIN | D130: 2022-01-27 | E130: 381.30 | F130: 378.68 | G130: 374.82 | H130: 368.33 | I130: 364.47 | J130: 385.17 | K130: 389.03 | L130: 395.52 | M130: 382.55 | N130: 372.2 | O130: 12728000 | P130: -0.19%
A131: 121 | B131: Capital_Goods | C131: LT | D131: 2022-01-27 | E131: 1933.50 | F131: 1929.80 | G131: 1911.60 | H131: 1889.70 | I131: 1871.50 | J131: 1951.70 | K131: 1969.90 | L131: 1991.80 | M131: 1948 | N131: 1907.9 | O131: 12482675 | P131: 6.62%
A132: 122 | B132: Technology | C132: LTI | D132: 2022-01-27 | E132: 7544.00 | F132: 7490.37 | G132: 7415.98 | H132: 7287.97 | I132: 7213.58 | J132: 7618.38 | K132: 7692.77 | L132: 7820.78 | M132: 7564.75 | N132: 7362.35 | O132: 645450 | P132: 1.37%
A133: 123 | B133: Technology | C133: LTTS | D133: 2022-01-27 | E133: 5738.25 | F133: 5703.17 | G133: 5626.13 | H133: 5514.02 | I133: 5436.98 | J133: 5815.28 | K133: 5892.32 | L133: 6004.43 | M133: 5780.2 | N133: 5591.05 | O133: 603800 | P133: -0.17%
A134: 124 | B134: Pharma | C134: LUPIN | D134: 2022-01-27 | E134: 948.25 | F134: 951.32 | G134: 942.83 | H134: 937.42 | I134: 928.93 | J134: 956.73 | K134: 965.22 | L134: 970.63 | M134: 959.8 | N134: 945.9 | O134: 6783000 | P134: 0.57%
A135: 125 | B135: Automobile | C135: M&M | D135: 2022-01-27 | E135: 832.35 | F135: 834.12 | G135: 826.43 | H135: 820.52 | I135: 812.83 | J135: 840.03 | K135: 847.72 | L135: 853.63 | M135: 841.8 | N135: 828.2 | O135: 10878700 | P135: 5.45%
A136: 126 | B136: Finance | C136: M&MFIN | D136: 2022-01-27 | E136: 152.75 | F136: 152.72 | G136: 148.88 | H136: 145.02 | I136: 141.18 | J136: 156.58 | K136: 160.42 | L136: 164.28 | M136: 156.55 | N136: 148.85 | O136: 27904000 | P136: 2.98%
A137: 127 | B137: Finance | C137: MANAPPURAM | D137: 2022-01-27 | E137: 168.75 | F137: 168.13 | G137: 165.72 | H137: 162.68 | I137: 160.27 | J137: 171.17 | K137: 173.58 | L137: 176.62 | M137: 170.55 | N137: 165.1 | O137: 18297000 | P137: 2.11%
A138: 128 | B138: FMCG | C138: MARICO | D138: 2022-01-27 | E138: 516.40 | F138: 517.10 | G138: 514.30 | H138: 512.20 | I138: 509.40 | J138: 519.20 | K138: 522.00 | L138: 524.10 | M138: 519.9 | N138: 515 | O138: 7459000 | P138: -0.52%
A139: 129 | B139: Automobile | C139: MARUTI | D139: 2022-01-27 | E139: 7532.20 | F139: 7535.73 | G139: 7446.47 | H139: 7360.73 | I139: 7271.47 | J139: 7621.47 | K139: 7710.73 | L139: 7796.47 | M139: 7625 | N139: 7450 | O139: 2202800 | P139: 1.54%
A140: 130 | B140: FMCG | C140: MCDOWELL-N | D140: 2022-01-27 | E140: 905.80 | F140: 907.90 | G140: 899.90 | H140: 894.00 | I140: 886.00 | J140: 913.80 | K140: 921.80 | L140: 927.70 | M140: 915.9 | N140: 902 | O140: 15600000 | P140: 1.08%
A141: 131 | B141: Others | C141: MCX | D141: 2022-01-27 | E141: 1626.80 | F141: 1616.88 | G141: 1601.47 | H141: 1576.13 | I141: 1560.72 | J141: 1642.22 | K141: 1657.63 | L141: 1682.97 | M141: 1632.3 | N141: 1591.55 | O141: 1733550 | P141: 4.27%
A142: 132 | B142: Pharma | C142: METROPOLIS | D142: 2022-01-27 | E142: 3466.45 | F142: 3459.17 | G142: 3430.38 | H142: 3394.32 | I142: 3365.53 | J142: 3495.23 | K142: 3524.02 | L142: 3560.08 | M142: 3487.95 | N142: 3423.1 | O142: 530800 | P142: 0.72%
A143: 133 | B143: Finance | C143: MFSL | D143: 2022-01-27 | E143: 1015.65 | F143: 1003.48 | G143: 988.17 | H143: 960.68 | I143: 945.37 | J143: 1030.97 | K143: 1046.28 | L143: 1073.77 | M143: 1018.8 | N143: 976 | O143: 1268150 | P143: 4.33%
A144: 134 | B144: Oil_Gas | C144: MGL | D144: 2022-01-27 | E144: 879.40 | F144: 875.77 | G144: 870.58 | H144: 861.77 | I144: 856.58 | J144: 884.58 | K144: 889.77 | L144: 898.58 | M144: 880.95 | N144: 866.95 | O144: 4530000 | P144: -0.70%
A145: 135 | B145: Technology | C145: MINDTREE | D145: 2022-01-27 | E145: 4850.90 | F145: 4852.13 | G145: 4810.87 | H145: 4770.83 | I145: 4729.57 | J145: 4892.17 | K145: 4933.43 | L145: 4973.47 | M145: 4893.4 | N145: 4812.1 | O145: 2456000 | P145: -0.46%
A146: 136 | B146: Automobile | C146: MOTHERSUMI | D146: 2022-01-27 | E146: 225.05 | F146: 224.52 | G146: 223.28 | H146: 221.52 | I146: 220.28 | J146: 226.28 | K146: 227.52 | L146: 229.28 | M146: 225.75 | N146: 222.75 | O146: 27048000 | P146: -1.24%
A147: 137 | B147: Technology | C147: MPHASIS | D147: 2022-01-27 | E147: 3431.70 | F147: 3444.62 | G147: 3400.43 | H147: 3369.17 | I147: 3324.98 | J147: 3475.88 | K147: 3520.07 | L147: 3551.33 | M147: 3488.8 | N147: 3413.35 | O147: 1701700 | P147: -3.11%
A148: 138 | B148: Automobile | C148: MRF | D148: 2022-01-27 | E148: 73617.40 | F148: 73661.53 | G148: 73223.12 | H148: 72828.83 | I148: 72390.42 | J148: 74055.82 | K148: 74494.23 | L148: 74888.52 | M148: 74099.95 | N148: 73267.25 | O148: 58790 | P148: 0.62%
A149: 139 | B149: Finance | C149: MUTHOOTFIN | D149: 2022-01-27 | E149: 1544.00 | F149: 1532.02 | G149: 1509.08 | H149: 1474.17 | I149: 1451.23 | J149: 1566.93 | K149: 1589.87 | L149: 1624.78 | M149: 1554.95 | N149: 1497.1 | O149: 3387750 | P149: 6.26%
A150: 140 | B150: Others | C150: NAM-INDIA | D150: 2022-01-27 | E150: 356.00 | F150: 354.37 | G150: 352.03 | H150: 348.07 | I150: 345.73 | J150: 358.33 | K150: 360.67 | L150: 364.63 | M150: 356.7 | N150: 350.4 | O150: 3724800 | P150: -0.77%
A151: 141 | B151: Metals | C151: NATIONALUM | D151: 2022-01-27 | E151: 103.80 | F151: 102.92 | G151: 101.68 | H151: 99.57 | I151: 98.33 | J151: 105.03 | K151: 106.27 | L151: 108.38 | M151: 104.15 | N151: 100.8 | O151: 98821000 | P151: 0.89%
A152: 142 | B152: Others | C152: NAUKRI | D152: 2022-01-27 | E152: 5645.25 | F152: 5648.77 | G152: 5581.63 | H152: 5518.02 | I152: 5450.88 | J152: 5712.38 | K152: 5779.52 | L152: 5843.13 | M152: 5715.9 | N152: 5585.15 | O152: 1131250 | P152: -3.87%
A153: 143 | B153: Chemical | C153: NAVINFLUOR | D153: 2022-01-27 | E153: 4244.35 | F153: 4234.80 | G153: 4169.60 | H153: 4094.85 | I153: 4029.65 | J153: 4309.55 | K153: 4374.75 | L153: 4449.50 | M153: 4300 | N153: 4160.05 | O153: 375975 | P153: 3.79%
A154: 144 | B154: Others | C154: NBCC | D154: 2022-01-27 | E154: 47.00 | F154: 46.97 | G154: 46.38 | H154: 45.77 | I154: 45.18 | J154: 47.58 | K154: 48.17 | L154: 48.78 | M154: 47.55 | N154: 46.35 | O154: 7716000 | P154: 93.67%
A155: 145 | B155: FMCG | C155: NESTLEIND | D155: 2022-01-27 | E155: 19787.60 | F155: 19798.02 | G155: 19718.08 | H155: 19648.57 | I155: 19568.63 | J155: 19867.53 | K155: 19947.47 | L155: 20016.98 | M155: 19877.95 | N155: 19728.5 | O155: 305600 | P155: 0.21%
A156: 146 | B156: Metals | C156: NMDC | D156: 2022-01-27 | E156: 136.00 | F156: 135.37 | G156: 134.48 | H156: 132.97 | I156: 132.08 | J156: 136.88 | K156: 137.77 | L156: 139.28 | M156: 136.25 | N156: 133.85 | O156: 79374900 | P156: -1.50%
A157: 147 | B157: Power | C157: NTPC | D157: 2022-01-27 | E157: 125.50 | F157: 124.92 | G157: 123.83 | H157: 122.17 | I157: 121.08 | J157: 126.58 | K157: 127.67 | L157: 129.33 | M157: 126 | N157: 123.25 | O157: 58265400 | P157: -2.90%
A158: 148 | B158: Realty | C158: OBEROIRLTY | D158: 2022-01-27 | E158: 893.30 | F158: 889.77 | G158: 873.53 | H158: 853.77 | I158: 837.53 | J158: 909.53 | K158: 925.77 | L158: 945.53 | M158: 906 | N158: 870 | O158: 2821000 | P158: -1.03%
A159: 149 | B159: Technology | C159: OFSS | D159: 2022-01-27 | E159: 4034.15 | F159: 4024.22 | G159: 4000.43 | H159: 3966.72 | I159: 3942.93 | J159: 4057.93 | K159: 4081.72 | L159: 4115.43 | M159: 4048 | N159: 3990.5 | O159: 716125 | P159: 0.46%
A160: 150 | B160: Oil_Gas | C160: ONGC | D160: 2022-01-27 | E160: 143.70 | F160: 143.10 | G160: 142.30 | H160: 140.90 | I160: 140.10 | J160: 144.50 | K160: 145.30 | L160: 146.70 | M160: 143.9 | N160: 141.7 | O160: 32093600 | P160: 0.77%
A161: 151 | B161: Textile | C161: PAGEIND | D161: 2022-01-27 | E161: 41068.50 | F161: 40946.50 | G161: 40673.00 | H161: 40277.50 | I161: 40004.00 | J161: 41342.00 | K161: 41615.50 | L161: 42011.00 | M161: 41220 | N161: 40551 | O161: 79020 | P161: 1.19%
A162: 152 | B162: Pharma | C162: PEL | D162: 2022-01-27 | E162: 2699.05 | F162: 2698.55 | G162: 2670.10 | H162: 2641.15 | I162: 2612.70 | J162: 2727.50 | K162: 2755.95 | L162: 2784.90 | M162: 2727 | N162: 2669.6 | O162: 3119600 | P162: -1.64%
A163: 153 | B163: Technology | C163: PERSISTENT | D163: 2022-01-27 | E163: 4886.90 | F163: 4898.63 | G163: 4798.37 | H163: 4709.83 | I163: 4609.57 | J163: 4987.17 | K163: 5087.43 | L163: 5175.97 | M163: 4998.9 | N163: 4810.1 | O163: 432900 | P163: 3.40%
A164: 154 | B164: Oil_Gas | C164: PETRONET | D164: 2022-01-27 | E164: 220.10 | F164: 219.42 | G164: 217.83 | H164: 215.57 | I164: 213.98 | J164: 221.68 | K164: 223.27 | L164: 225.53 | M164: 221 | N164: 217.15 | O164: 18252000 | P164: -0.69%
A165: 155 | B165: Finance | C165: PFC | D165: 2022-01-27 | E165: 123.05 | F165: 122.22 | G165: 121.18 | H165: 119.32 | I165: 118.28 | J165: 124.08 | K165: 125.12 | L165: 126.98 | M165: 123.25 | N165: 120.35 | O165: 39407200 | P165: -2.06%
A166: 156 | B166: Pharma | C166: PFIZER | D166: 2022-01-27 | E166: 5126.60 | F166: 5122.22 | G166: 5089.58 | H166: 5052.57 | I166: 5019.93 | J166: 5159.23 | K166: 5191.87 | L166: 5228.88 | M166: 5154.85 | N166: 5085.2 | O166: 141125 | P166: -1.22%
A167: 157 | B167: FMCG | C167: PIDILITIND | D167: 2022-01-27 | E167: 2487.70 | F167: 2486.28 | G167: 2476.62 | H167: 2465.53 | I167: 2455.87 | J167: 2497.37 | K167: 2507.03 | L167: 2518.12 | M167: 2495.95 | N167: 2475.2 | O167: 2049750 | P167: -0.50%
A168: 158 | B168: Chemical | C168: PIIND | D168: 2022-01-27 | E168: 3057.10 | F168: 3066.33 | G168: 3008.67 | H168: 2960.23 | I168: 2902.57 | J168: 3114.77 | K168: 3172.43 | L168: 3220.87 | M168: 3124 | N168: 3017.9 | O168: 1610500 | P168: 1.16%
A169: 159 | B169: Banking | C169: PNB | D169: 2022-01-27 | E169: 38.25 | F169: 38.00 | G169: 37.65 | H169: 37.05 | I169: 36.70 | J169: 38.60 | K169: 38.95 | L169: 39.55 | M169: 38.35 | N169: 37.4 | O169: 263408000 | P169: 0.57%
A170: 160 | B170: Others | C170: POLYCAB | D170: 2022-01-27 | E170: 2465.05 | F170: 2471.72 | G170: 2448.43 | H170: 2431.82 | I170: 2408.53 | J170: 2488.33 | K170: 2511.62 | L170: 2528.23 | M170: 2495 | N170: 2455.1 | O170: 547800 | P170: 0.50%
A171: 161 | B171: Power | C171: POWERGRID | D171: 2022-01-27 | E171: 205.75 | F171: 206.20 | G171: 204.95 | H171: 204.15 | I171: 202.90 | J171: 207.00 | K171: 208.25 | L171: 209.05 | M171: 207.45 | N171: 205.4 | O171: 28654209 | P171: -2.45%
A172: 162 | B172: Media | C172: PVR | D172: 2022-01-27 | E172: 1343.45 | F172: 1317.08 | G172: 1284.42 | H172: 1225.38 | I172: 1192.72 | J172: 1376.12 | K172: 1408.78 | L172: 1467.82 | M172: 1349.75 | N172: 1258.05 | O172: 2838011 | P172: -1.84%
A173: 163 | B173: Others | C173: RAIN | D173: 2022-01-27 | E173: 237.10 | F173: 238.18 | G173: 235.37 | H173: 233.63 | I173: 230.82 | J173: 239.92 | K173: 242.73 | L173: 244.47 | M173: 241 | N173: 236.45 | O173: 1637500 | P173: 43.01%
A174: 164 | B174: Cement | C174: RAMCOCEM | D174: 2022-01-27 | E174: 1032.75 | F174: 1023.78 | G174: 1012.97 | H174: 993.18 | I174: 982.37 | J174: 1043.57 | K174: 1054.38 | L174: 1074.17 | M174: 1034.6 | N174: 1004 | O174: 1970300 | P174: 6.43%
A175: 165 | B175: Banking | C175: RBLBANK | D175: 2022-01-27 | E175: 133.35 | F175: 130.95 | G175: 127.50 | H175: 121.65 | I175: 118.20 | J175: 136.80 | K175: 140.25 | L175: 146.10 | M175: 134.4 | N175: 125.1 | O175: 40959600 | P175: 17.22%
A176: 166 | B176: Power | C176: RECLTD | D176: 2022-01-27 | E176: 136.10 | F176: 135.47 | G176: 134.48 | H176: 132.87 | I176: 131.88 | J176: 137.08 | K176: 138.07 | L176: 139.68 | M176: 136.45 | N176: 133.85 | O176: 36708000 | P176: 2.50%
A177: 167 | B177: Oil_Gas | C177: RELIANCE | D177: 2022-01-27 | E177: 2412.05 | F177: 2400.47 | G177: 2384.43 | H177: 2356.82 | I177: 2340.78 | J177: 2428.08 | K177: 2444.12 | L177: 2471.73 | M177: 2416.5 | N177: 2372.85 | O177: 32799750 | P177: -1.07%
A178: 168 | B178: Metals | C178: SAIL | D178: 2022-01-27 | E178: 110.75 | F178: 109.77 | G178: 108.28 | H178: 105.82 | I178: 104.33 | J178: 112.23 | K178: 113.72 | L178: 116.18 | M178: 111.25 | N178: 107.3 | O178: 151548750 | P178: 3.01%
A179: 169 | B179: Banking | C179: SBICARD | D179: 2022-01-27 | E179: 933.20 | F179: 932.07 | G179: 927.23 | H179: 921.27 | I179: 916.43 | J179: 938.03 | K179: 942.87 | L179: 948.83 | M179: 936.9 | N179: 926.1 | O179: 4828500 | P179: -1.95%
A180: 170 | B180: Finance | C180: SBILIFE | D180: 2022-01-27 | E180: 1212.70 | F180: 1210.97 | G180: 1204.63 | H180: 1196.57 | I180: 1190.23 | J180: 1219.03 | K180: 1225.37 | L180: 1233.43 | M180: 1217.3 | N180: 1202.9 | O180: 6582750 | P180: 0.11%
A181: 171 | B181: Banking | C181: SBIN | D181: 2022-01-27 | E181: 472.05 | F181: 469.00 | G181: 464.35 | H181: 456.65 | I181: 452.00 | J181: 476.70 | K181: 481.35 | L181: 489.05 | M181: 473.65 | N181: 461.3 | O181: 97132500 | P181: -2.05%
A182: 172 | B182: Cement | C182: SHREECEM | D182: 2022-01-27 | E182: 27325.80 | F182: 27230.12 | G182: 27050.58 | H182: 26775.37 | I182: 26595.83 | J182: 27505.33 | K182: 27684.87 | L182: 27960.08 | M182: 27409.65 | N182: 26954.9 | O182: 159625 | P182: 2.98%
A183: 173 | B183: Capital_Goods | C183: SIEMENS | D183: 2022-01-27 | E183: 2376.60 | F183: 2384.22 | G183: 2364.88 | H183: 2353.17 | I183: 2333.83 | J183: 2395.93 | K183: 2415.27 | L183: 2426.98 | M183: 2403.55 | N183: 2372.5 | O183: 1796025 | P183: 1.41%
A184: 174 | B184: Textile | C184: SRF | D184: 2022-01-27 | E184: 2425.95 | F184: 2433.20 | G184: 2413.85 | H184: 2401.75 | I184: 2382.40 | J184: 2445.30 | K184: 2464.65 | L184: 2476.75 | M184: 2452.55 | N184: 2421.1 | O184: 3025875 | P184: -2.03%
A185: 175 | B185: Finance | C185: SRTRANSFIN | D185: 2022-01-27 | E185: 1256.15 | F185: 1247.53 | G185: 1228.47 | H185: 1200.78 | I185: 1181.72 | J185: 1275.22 | K185: 1294.28 | L185: 1321.97 | M185: 1266.6 | N185: 1219.85 | O185: 3322800 | P185: 0.67%
A186: 176 | B186: Pharma | C186: STAR | D186: 2022-01-27 | E186: 458.90 | F186: 458.12 | G186: 449.78 | H186: 440.67 | I186: 432.33 | J186: 467.23 | K186: 475.57 | L186: 484.68 | M186: 466.45 | N186: 449 | O186: 5827500 | P186: 1.58%
A187: 177 | B187: Pharma | C187: SUNPHARMA | D187: 2022-01-27 | E187: 851.20 | F187: 853.32 | G187: 842.78 | H187: 834.37 | I187: 823.83 | J187: 861.73 | K187: 872.27 | L187: 880.68 | M187: 863.85 | N187: 844.9 | O187: 27318200 | P187: -0.14%
A188: 178 | B188: Media | C188: SUNTV | D188: 2022-01-27 | E188: 506.70 | F188: 505.18 | G188: 501.72 | H188: 496.73 | I188: 493.27 | J188: 510.17 | K188: 513.63 | L188: 518.62 | M188: 508.65 | N188: 500.2 | O188: 12009000 | P188: 0.96%
A189: 179 | B189: Pharma | C189: SYNGENE | D189: 2022-01-27 | E189: 615.25 | F189: 616.33 | G189: 610.57 | H189: 605.88 | I189: 600.12 | J189: 621.02 | K189: 626.78 | L189: 631.47 | M189: 622.1 | N189: 611.65 | O189: 835550 | P189: -5.30%
A190: 180 | B190: Chemical | C190: TATACHEM | D190: 2022-01-27 | E190: 919.10 | F190: 913.65 | G190: 905.05 | H190: 891.00 | I190: 882.40 | J190: 927.70 | K190: 936.30 | L190: 950.35 | M190: 922.25 | N190: 899.6 | O190: 6904000 | P190: 0.32%
A191: 181 | B191: Telecom | C191: TATACOMM | D191: 2022-01-27 | E191: 1450.30 | F191: 1459.07 | G191: 1434.68 | H191: 1419.07 | I191: 1394.68 | J191: 1474.68 | K191: 1499.07 | L191: 1514.68 | M191: 1483.45 | N191: 1443.45 | O191: 865200 | P191: 14.63%
A192: 182 | B192: FMCG | C192: TATACONSUM | D192: 2022-01-27 | E192: 749.80 | F192: 747.78 | G192: 744.07 | H192: 738.33 | I192: 734.62 | J192: 753.52 | K192: 757.23 | L192: 762.97 | M192: 751.5 | N192: 742.05 | O192: 10125000 | P192: -1.82%
A193: 183 | B193: Automobile | C193: TATAMOTORS | D193: 2022-01-27 | E193: 498.85 | F193: 497.37 | G193: 491.73 | H193: 484.62 | I193: 478.98 | J193: 504.48 | K193: 510.12 | L193: 517.23 | M193: 503 | N193: 490.25 | O193: 80979900 | P193: 0.54%
A194: 184 | B194: Power | C194: TATAPOWER | D194: 2022-01-27 | E194: 224.75 | F194: 222.20 | G194: 219.20 | H194: 213.65 | I194: 210.65 | J194: 227.75 | K194: 230.75 | L194: 236.30 | M194: 225.2 | N194: 216.65 | O194: 98529750 | P194: 3.10%
A195: 185 | B195: Metals | C195: TATASTEEL | D195: 2022-01-27 | E195: 1149.10 | F195: 1141.45 | G195: 1125.90 | H195: 1102.70 | I195: 1087.15 | J195: 1164.65 | K195: 1180.20 | L195: 1203.40 | M195: 1157 | N195: 1118.25 | O195: 47434250 | P195: 1.07%
A196: 186 | B196: Technology | C196: TCS | D196: 2022-01-27 | E196: 3813.30 | F196: 3794.53 | G196: 3762.47 | H196: 3711.63 | I196: 3679.57 | J196: 3845.37 | K196: 3877.43 | L196: 3928.27 | M196: 3826.6 | N196: 3743.7 | O196: 11587800 | P196: -2.93%
A197: 187 | B197: Technology | C197: TECHM | D197: 2022-01-27 | E197: 1794.95 | F197: 1803.65 | G197: 1783.30 | H197: 1771.65 | I197: 1751.30 | J197: 1815.30 | K197: 1835.65 | L197: 1847.30 | M197: 1824 | N197: 1792 | O197: 12550800 | P197: 1.58%
A198: 188 | B198: FMCG | C198: TITAN | D198: 2022-01-27 | E198: 2536.95 | F198: 2531.97 | G198: 2513.93 | H198: 2490.92 | I198: 2472.88 | J198: 2554.98 | K198: 2573.02 | L198: 2596.03 | M198: 2550 | N198: 2508.95 | O198: 4916250 | P198: -0.59%
A199: 189 | B199: Pharma | C199: TORNTPHARM | D199: 2022-01-27 | E199: 3260.55 | F199: 3271.85 | G199: 3245.70 | H199: 3230.85 | I199: 3204.70 | J199: 3286.70 | K199: 3312.85 | L199: 3327.70 | M199: 3298 | N199: 3257 | O199: 729500 | P199: 0.62%
A200: 190 | B200: Power | C200: TORNTPOWER | D200: 2022-01-27 | E200: 554.10 | F200: 553.20 | G200: 550.40 | H200: 546.70 | I200: 543.90 | J200: 556.90 | K200: 559.70 | L200: 563.40 | M200: 556 | N200: 549.5 | O200: 3073500 | P200: -1.96%
A201: 191 | B201: Others | C201: TRENT | D201: 2022-01-27 | E201: 1059.45 | F201: 1058.52 | G201: 1050.88 | H201: 1042.32 | I201: 1034.68 | J201: 1067.08 | K201: 1074.72 | L201: 1083.28 | M201: 1066.15 | N201: 1049.95 | O201: 2225750 | P201: 5.86%
A202: 192 | B202: Automobile | C202: TVSMOTOR | D202: 2022-01-27 | E202: 625.80 | F202: 623.85 | G202: 616.85 | H202: 607.90 | I202: 600.90 | J202: 632.80 | K202: 639.80 | L202: 648.75 | M202: 630.85 | N202: 614.9 | O202: 8110200 | P202: 3.85%
A203: 193 | B203: FMCG | C203: UBL | D203: 2022-01-27 | E203: 1569.60 | F203: 1575.60 | G203: 1560.00 | H203: 1550.40 | I203: 1534.80 | J203: 1585.20 | K203: 1600.80 | L203: 1610.40 | M203: 1591.2 | N203: 1566 | O203: 1160950 | P203: 1.87%
A204: 194 | B204: Cement | C204: ULTRACEMCO | D204: 2022-01-27 | E204: 7748.10 | F204: 7704.43 | G204: 7635.52 | H204: 7522.93 | I204: 7454.02 | J204: 7817.02 | K204: 7885.93 | L204: 7998.52 | M204: 7773.35 | N204: 7591.85 | O204: 1461700 | P204: 4.37%
A205: 195 | B205: Chemical | C205: UPL | D205: 2022-01-27 | E205: 768.30 | F205: 763.85 | G205: 757.00 | H205: 745.70 | I205: 738.85 | J205: 775.15 | K205: 782.00 | L205: 793.30 | M205: 770.7 | N205: 752.55 | O205: 25106900 | P205: 1.13%
A206: 196 | B206: Metals | C206: VEDL | D206: 2022-01-27 | E206: 355.30 | F206: 351.35 | G206: 345.90 | H206: 336.50 | I206: 331.05 | J206: 360.75 | K206: 366.20 | L206: 375.60 | M206: 356.8 | N206: 341.95 | O206: 45542100 | P206: 5.21%
... 19 more rows

Sheet Cash Intra
M5: Back to Main Page
A6: FOR INTRA DAY TRADING | K6: =Main!B10 -> 2022-01-04
A8: Sr.no | C8: CLOSE RATE | D8: Pivot Point | E8: Supports | H8: Resistances
E9: S1 | F9: S2 | G9: S3 | H9: R1 | I9: R2 | J9: R3 | K9: HIGH | L9: LOW | M9: Total Trade Quanity in Lakhs
A10: 1 | B10: Nifty 50 | C10: 17625.7 | D10: 17551.88 | E10: 17457.12 | F10: 17288.53 | G10: 17193.77 | H10: 17720.47 | I10: 17815.23 | J10: 17983.82 | K10: 17646.65 | L10: 17383.3
A11: 2 | B11: Nifty Bank | C11: 36421.9 | D11: 36146.87 | E11: 35801.63 | F11: 35181.37 | G11: 34836.13 | H11: 36767.13 | I11: 37112.37 | J11: 37732.63 | K11: 36492.1 | L11: 35526.6
A12: 3 | B12: Nifty CPSE | C12: 2296.5 | D12: 2287.97 | E12: 2276.88 | F12: 2257.27 | G12: 2246.18 | H12: 2307.58 | I12: 2318.67 | J12: 2338.28 | K12: 2299.05 | L12: 2268.35
A13: 4 | B13: Nifty Infra | C13: 5010.3 | D13: 4993.68 | E13: 4972.27 | F13: 4934.23 | G13: 4912.82 | H13: 5031.72 | I13: 5053.13 | J13: 5091.17 | K13: 5015.1 | L13: 4955.65
A14: 5 | B14: Nifty IT | C14: 39123.8 | D14: 39054.23 | E14: 38822.12 | F14: 38520.43 | G14: 38288.32 | H14: 39355.92 | I14: 39588.03 | J14: 39889.72 | K14: 39286.35 | L14: 38752.55
A15: 6 | B15: Nifty PSE | C15: 3889 | D15: 3875.12 | E15: 3857.58 | F15: 3826.17 | G15: 3808.63 | H15: 3906.53 | I15: 3924.07 | J15: 3955.48 | K15: 3892.65 | L15: 3843.7
A16: 7 | B16: Nifty Midcap 50 | C16: 8524.3 | D16: 8494.78 | E16: 8453.97 | F16: 8383.63 | G16: 8342.82 | H16: 8565.12 | I16: 8605.93 | J16: 8676.27 | K16: 8535.6 | L16: 8424.45
A17: 8 | B17: ACC | C17: 2251.35 | D17: 2241.68 | E17: 2223.82 | F17: 2196.28 | G17: 2178.42 | H17: 2269.22 | I17: 2287.08 | J17: 2314.62 | K17: 2259.55 | L17: 2214.15 | M17: 3.35699
A18: 9 | B18: AUBANK | C18: 1065.3 | D18: 1063.90 | E18: 1041.30 | F18: 1017.30 | G18: 994.70 | H18: 1087.90 | I18: 1110.50 | J18: 1134.50 | K18: 1086.5 | L18: 1039.9 | M18: 15.11777
A19: 10 | B19: AARTIIND | C19: 1017.35 | D19: 1014.33 | E19: 1003.67 | F19: 989.98 | G19: 979.32 | H19: 1028.02 | I19: 1038.68 | J19: 1052.37 | K19: 1025 | L19: 1000.65 | M19: 7.1377
A20: 11 | B20: ADANIENT | C20: 1717.15 | D20: 1720.45 | E20: 1707.90 | F20: 1698.65 | G20: 1686.10 | H20: 1729.70 | I20: 1742.25 | J20: 1751.50 | K20: 1733 | L20: 1711.2 | M20: 10.94708
A21: 12 | B21: ADANIGREEN | C21: 1346.9 | D21: 1346.67 | E21: 1337.13 | F21: 1327.37 | G21: 1317.83 | H21: 1356.43 | I21: 1365.97 | J21: 1375.73 | K21: 1356.2 | L21: 1336.9 | M21: 1.30549
A22: 13 | B22: ADANIPORTS | C22: 736.6 | D22: 735.25 | E22: 731.85 | F22: 727.10 | G22: 723.70 | H22: 740.00 | I22: 743.40 | J22: 748.15 | K22: 738.65 | L22: 730.5 | M22: 23.77227
A23: 14 | B23: ATGL | C23: 1743.8 | D23: 1732.95 | E23: 1695.90 | F23: 1648.00 | G23: 1610.95 | H23: 1780.85 | I23: 1817.90 | J23: 1865.80 | K23: 1770 | L23: 1685.05 | M23: 3.32111
A24: 15 | B24: ADANITRANS | C24: 1731.1 | D24: 1732.03 | E24: 1709.07 | F24: 1687.03 | G24: 1664.07 | H24: 1754.07 | I24: 1777.03 | J24: 1799.07 | K24: 1755 | L24: 1710 | M24: 0.32602
A25: 16 | B25: ABCAPITAL | C25: 129.55 | D25: 128.00 | E25: 125.55 | F25: 121.55 | G25: 119.10 | H25: 132.00 | I25: 134.45 | J25: 138.45 | K25: 130.45 | L25: 124 | M25: 134.28542
A26: 17 | B26: ABFRL | C26: 273.6 | D26: 272.38 | E26: 270.37 | F26: 267.13 | G26: 265.12 | H26: 275.62 | I26: 277.63 | J26: 280.87 | K26: 274.4 | L26: 269.15 | M26: 27.5595
A27: 18 | B27: AJANTPHARM | C27: 2214.25 | D27: 2227.78 | E27: 2196.57 | F27: 2178.88 | G27: 2147.67 | H27: 2245.47 | I27: 2276.68 | J27: 2294.37 | K27: 2259 | L27: 2210.1 | M27: 0.62478
A28: 19 | B28: APLLTD | C28: 808 | D28: 806.48 | E28: 802.97 | F28: 797.93 | G28: 794.42 | H28: 811.52 | I28: 815.03 | J28: 820.07 | K28: 810 | L28: 801.45 | M28: 2.72874
A29: 20 | B29: ALKEM | C29: 3641.1 | D29: 3640.75 | E29: 3625.55 | F29: 3610.00 | G29: 3594.80 | H29: 3656.30 | I29: 3671.50 | J29: 3687.05 | K29: 3655.95 | L29: 3625.2 | M29: 0.75821
A30: 21 | B30: AMARAJABAT | C30: 638.05 | D30: 639.40 | E30: 633.90 | F30: 629.75 | G30: 624.25 | H30: 643.55 | I30: 649.05 | J30: 653.20 | K30: 644.9 | L30: 635.25 | M30: 10.27873
A31: 22 | B31: AMBUJACEM | C31: 387 | D31: 384.88 | E31: 380.32 | F31: 373.63 | G31: 369.07 | H31: 391.57 | I31: 396.13 | J31: 402.82 | K31: 389.45 | L31: 378.2 | M31: 16.43912
A32: 23 | B32: APOLLOHOSP | C32: 4990.5 | D32: 5012.45 | E32: 4956.90 | F32: 4923.30 | G32: 4867.75 | H32: 5046.05 | I32: 5101.60 | J32: 5135.20 | K32: 5068 | L32: 4978.85 | M32: 3.10798
A33: 24 | B33: APOLLOTYRE | C33: 220.9 | D33: 220.82 | E33: 219.23 | F33: 217.57 | G33: 215.98 | H33: 222.48 | I33: 224.07 | J33: 225.73 | K33: 222.4 | L33: 219.15 | M33: 11.26982
A34: 25 | B34: ASHOKLEY | C34: 127.7 | D34: 126.72 | E34: 125.13 | F34: 122.57 | G34: 120.98 | H34: 129.28 | I34: 130.87 | J34: 133.43 | K34: 128.3 | L34: 124.15 | M34: 190.18355
A35: 26 | B35: ASIANPAINT | C35: 3422.4 | D35: 3415.43 | E35: 3389.97 | F35: 3357.53 | G35: 3332.07 | H35: 3447.87 | I35: 3473.33 | J35: 3505.77 | K35: 3440.9 | L35: 3383 | M35: 6.96276
A36: 27 | B36: ASTRAL | C36: 2332.15 | D36: 2325.75 | E36: 2294.05 | F36: 2255.95 | G36: 2224.25 | H36: 2363.85 | I36: 2395.55 | J36: 2433.65 | K36: 2357.45 | L36: 2287.65 | M36: 2.63893
A37: 28 | B37: AUROPHARMA | C37: 732.1 | D37: 732.68 | E37: 726.47 | F37: 720.83 | G37: 714.62 | H37: 738.32 | I37: 744.53 | J37: 750.17 | K37: 738.9 | L37: 727.05 | M37: 10.91773
A38: 29 | B38: DMART | C38: 4711.5 | D38: 4737.23 | E38: 4675.47 | F38: 4639.43 | G38: 4577.67 | H38: 4773.27 | I38: 4835.03 | J38: 4871.07 | K38: 4799 | L38: 4701.2 | M38: 5.34384
A39: 30 | B39: AXISBANK | C39: 696.35 | D39: 691.28 | E39: 684.07 | F39: 671.78 | G39: 664.57 | H39: 703.57 | I39: 710.78 | J39: 723.07 | K39: 698.5 | L39: 679 | M39: 85.5086
A40: 31 | B40: BAJAJ-AUTO | C40: 3277.1 | D40: 3273.73 | E40: 3254.87 | F40: 3232.63 | G40: 3213.77 | H40: 3295.97 | I40: 3314.83 | J40: 3337.07 | K40: 3292.6 | L40: 3251.5 | M40: 2.6668
A41: 32 | B41: BAJFINANCE | C41: 7219.6 | D41: 7146.18 | E41: 7048.42 | F41: 6877.23 | G41: 6779.47 | H41: 7317.37 | I41: 7415.13 | J41: 7586.32 | K41: 7243.95 | L41: 6975 | M41: 12.69725
A42: 33 | B42: BAJAJFINSV | C42: 16981.3 | D42: 16809.27 | E42: 16578.53 | F42: 16175.77 | G42: 15945.03 | H42: 17212.03 | I42: 17442.77 | J42: 17845.53 | K42: 17040 | L42: 16406.5 | M42: 2.71061
A43: 34 | B43: BAJAJHLDNG | C43: 5349.85 | D43: 5344.03 | E43: 5248.47 | F43: 5147.08 | G43: 5051.52 | H43: 5445.42 | I43: 5540.98 | J43: 5642.37 | K43: 5439.6 | L43: 5242.65 | M43: 0.39246
A44: 35 | B44: BALKRISIND | C44: 2327.45 | D44: 2320.82 | E44: 2306.63 | F44: 2285.82 | G44: 2271.63 | H44: 2341.63 | I44: 2355.82 | J44: 2376.63 | K44: 2335 | L44: 2300 | M44: 1.2847
A45: 36 | B45: BANDHANBNK | C45: 252.4 | D45: 253.20 | E45: 248.40 | F45: 244.40 | G45: 239.60 | H45: 257.20 | I45: 262.00 | J45: 266.00 | K45: 258 | L45: 249.2 | M45: 118.53152
A46: 37 | B46: BANKBARODA | C46: 83.8 | D46: 83.17 | E46: 82.23 | F46: 80.67 | G46: 79.73 | H46: 84.73 | I46: 85.67 | J46: 87.23 | K46: 84.1 | L46: 81.6 | M46: 211.77306
A47: 38 | B47: BANKINDIA | C47: 52.65 | D47: 52.28 | E47: 51.77 | F47: 50.88 | G47: 50.37 | H47: 53.17 | I47: 53.68 | J47: 54.57 | K47: 52.8 | L47: 51.4 | M47: 42.04439
A48: 39 | B48: BATAINDIA | C48: 1859.1 | D48: 1865.00 | E48: 1846.30 | F48: 1833.50 | G48: 1814.80 | H48: 1877.80 | I48: 1896.50 | J48: 1909.30 | K48: 1883.7 | L48: 1852.2 | M48: 5.8339
A49: 40 | B49: BERGEPAINT | C49: 776.4 | D49: 775.57 | E49: 767.83 | F49: 759.27 | G49: 751.53 | H49: 784.13 | I49: 791.87 | J49: 800.43 | K49: 783.3 | L49: 767 | M49: 3.04157
A50: 41 | B50: BEL | C50: 211.25 | D50: 210.98 | E50: 209.77 | F50: 208.28 | G50: 207.07 | H50: 212.47 | I50: 213.68 | J50: 215.17 | K50: 212.2 | L50: 209.5 | M50: 29.91447
A51: 42 | B51: BHARATFORG | C51: 710.9 | D51: 707.58 | E51: 700.82 | F51: 690.73 | G51: 683.97 | H51: 717.67 | I51: 724.43 | J51: 734.52 | K51: 714.35 | L51: 697.5 | M51: 11.77051
A52: 43 | B52: BHEL | C52: 60.7 | D52: 60.13 | E52: 59.32 | F52: 57.93 | G52: 57.12 | H52: 61.52 | I52: 62.33 | J52: 63.72 | K52: 60.95 | L52: 58.75 | M52: 269.98477
A53: 44 | B53: BPCL | C53: 386.1 | D53: 385.70 | E53: 384.40 | F53: 382.70 | G53: 381.40 | H53: 387.40 | I53: 388.70 | J53: 390.40 | K53: 387 | L53: 384 | M53: 32.34192
A54: 45 | B54: BHARTIARTL | C54: 691.3 | D54: 689.00 | E54: 685.40 | F54: 679.50 | G54: 675.90 | H54: 694.90 | I54: 698.50 | J54: 704.40 | K54: 692.6 | L54: 683.1 | M54: 29.39833
A55: 46 | B55: BIOCON | C55: 362.75 | D55: 364.13 | E55: 360.77 | F55: 358.78 | G55: 355.42 | H55: 366.12 | I55: 369.48 | J55: 371.47 | K55: 367.5 | L55: 362.15 | M55: 8.68445
A56: 47 | B56: BOSCHLTD | C56: 17292.9 | D56: 17347.68 | E56: 17195.42 | F56: 17097.93 | G56: 16945.67 | H56: 17445.17 | I56: 17597.43 | J56: 17694.92 | K56: 17499.95 | L56: 17250.2 | M56: 0.26614
A57: 48 | B57: BRITANNIA | C57: 3617.55 | D57: 3608.58 | E57: 3591.17 | F57: 3564.78 | G57: 3547.37 | H57: 3634.97 | I57: 3652.38 | J57: 3678.77 | K57: 3626 | L57: 3582.2 | M57: 1.49689
A58: 49 | B58: CADILAHC | C58: 477.25 | D58: 480.03 | E58: 473.22 | F58: 469.18 | G58: 462.37 | H58: 484.07 | I58: 490.88 | J58: 494.92 | K58: 486.85 | L58: 476 | M58: 13.22739
A59: 50 | B59: CANBK | C59: 205.45 | D59: 203.48 | E59: 200.57 | F59: 195.68 | G59: 192.77 | H59: 208.37 | I59: 211.28 | J59: 216.17 | K59: 206.4 | L59: 198.6 | M59: 77.90751
A60: 51 | B60: CASTROLIND | C60: 124.05 | D60: 123.63 | E60: 122.77 | F60: 121.48 | G60: 120.62 | H60: 124.92 | I60: 125.78 | J60: 127.07 | K60: 124.5 | L60: 122.35 | M60: 4.56456
A61: 52 | B61: CHOLAFIN | C61: 537.25 | D61: 531.98 | E61: 524.62 | F61: 511.98 | G61: 504.62 | H61: 544.62 | I61: 551.98 | J61: 564.62 | K61: 539.35 | L61: 519.35 | M61: 18.73169
A62: 53 | B62: CIPLA | C62: 930.5 | D62: 934.73 | E62: 921.57 | F62: 912.63 | G62: 899.47 | H62: 943.67 | I62: 956.83 | J62: 965.77 | K62: 947.9 | L62: 925.8 | M62: 20.1314
A63: 54 | B63: CUB | C63: 138.6 | D63: 137.38 | E63: 135.87 | F63: 133.13 | G63: 131.62 | H63: 140.12 | I63: 141.63 | J63: 144.37 | K63: 138.9 | L63: 134.65 | M63: 15.03638
A64: 55 | B64: COALINDIA | C64: 155.3 | D64: 152.75 | E64: 149.55 | F64: 143.80 | G64: 140.60 | H64: 158.50 | I64: 161.70 | J64: 167.45 | K64: 155.95 | L64: 147 | M64: 294.8672
A65: 56 | B65: COFORGE | C65: 5973.15 | D65: 5962.72 | E65: 5920.43 | F65: 5867.72 | G65: 5825.43 | H65: 6015.43 | I65: 6057.72 | J65: 6110.43 | K65: 6005 | L65: 5910 | M65: 3.13011
A66: 57 | B66: COLPAL | C66: 1463.8 | D66: 1472.58 | E66: 1453.22 | F66: 1442.63 | G66: 1423.27 | H66: 1483.17 | I66: 1502.53 | J66: 1513.12 | K66: 1491.95 | L66: 1462 | M66: 5.07553
A67: 58 | B67: CONCOR | C67: 619.8 | D67: 623.82 | E67: 610.03 | F67: 600.27 | G67: 586.48 | H67: 633.58 | I67: 647.37 | J67: 657.13 | K67: 637.6 | L67: 614.05 | M67: 4.53839
A68: 59 | B68: COROMANDEL | C68: 756.1 | D68: 757.05 | E68: 751.65 | F68: 747.20 | G68: 741.80 | H68: 761.50 | I68: 766.90 | J68: 771.35 | K68: 762.45 | L68: 752.6 | M68: 2.44607
A69: 60 | B69: CROMPTON | C69: 441.45 | D69: 440.47 | E69: 437.03 | F69: 432.62 | G69: 429.18 | H69: 444.88 | I69: 448.32 | J69: 452.73 | K69: 443.9 | L69: 436.05 | M69: 3.49612
A70: 61 | B70: CUMMINSIND | C70: 942.25 | D70: 945.28 | E70: 935.87 | F70: 929.48 | G70: 920.07 | H70: 951.67 | I70: 961.08 | J70: 967.47 | K70: 954.7 | L70: 938.9 | M70: 1.51922
A71: 62 | B71: DLF | C71: 394.75 | D71: 394.33 | E71: 390.92 | F71: 387.08 | G71: 383.67 | H71: 398.17 | I71: 401.58 | J71: 405.42 | K71: 397.75 | L71: 390.5 | M71: 32.74712
A72: 63 | B72: DABUR | C72: 581.15 | D72: 581.53 | E72: 578.17 | F72: 575.18 | G72: 571.82 | H72: 584.52 | I72: 587.88 | J72: 590.87 | K72: 584.9 | L72: 578.55 | M72: 11.61811
A73: 64 | B73: DALBHARAT | C73: 1881.85 | D73: 1873.08 | E73: 1853.57 | F73: 1825.28 | G73: 1805.77 | H73: 1901.37 | I73: 1920.88 | J73: 1949.17 | K73: 1892.6 | L73: 1844.8 | M73: 1.41011
A74: 65 | B74: DEEPAKNTR | C74: 2530.15 | D74: 2527.98 | E74: 2498.02 | F74: 2465.88 | G74: 2435.92 | H74: 2560.12 | I74: 2590.08 | J74: 2622.22 | K74: 2557.95 | L74: 2495.85 | M74: 9.18554
A75: 66 | B75: DHANI | C75: 161.05 | D75: 162.02 | E75: 157.53 | F75: 154.02 | G75: 149.53 | H75: 165.53 | I75: 170.02 | J75: 173.53 | K75: 166.5 | L75: 158.5 | M75: 17.97185
A76: 67 | B76: DIVISLAB | C76: 4651.25 | D76: 4667.33 | E76: 4625.92 | F76: 4600.58 | G76: 4559.17 | H76: 4692.67 | I76: 4734.08 | J76: 4759.42 | K76: 4708.75 | L76: 4642 | M76: 2.03444
A77: 68 | B77: DIXON | C77: 5517.1 | D77: 5531.73 | E77: 5490.37 | F77: 5463.63 | G77: 5422.27 | H77: 5558.47 | I77: 5599.83 | J77: 5626.57 | K77: 5573.1 | L77: 5505 | M77: 1.61271
A78: 69 | B78: LALPATHLAB | C78: 3861.3 | D78: 3847.03 | E78: 3819.07 | F78: 3776.83 | G78: 3748.87 | H78: 3889.27 | I78: 3917.23 | J78: 3959.47 | K78: 3875 | L78: 3804.8 | M78: 1.60757
A79: 70 | B79: DRREDDY | C79: 4853.15 | D79: 4877.05 | E79: 4823.80 | F79: 4794.45 | G79: 4741.20 | H79: 4906.40 | I79: 4959.65 | J79: 4989.00 | K79: 4930.3 | L79: 4847.7 | M79: 2.92601
A80: 71 | B80: EICHERMOT | C80: 2718.8 | D80: 2690.83 | E80: 2648.07 | F80: 2577.33 | G80: 2534.57 | H80: 2761.57 | I80: 2804.33 | J80: 2875.07 | K80: 2733.6 | L80: 2620.1 | M80: 24.57647
A81: 72 | B81: EMAMILTD | C81: 521.7 | D81: 525.17 | E81: 515.53 | F81: 509.37 | G81: 499.73 | H81: 531.33 | I81: 540.97 | J81: 547.13 | K81: 534.8 | L81: 519 | M81: 2.33807
A82: 73 | B82: ENDURANCE | C82: 1698.55 | D82: 1695.52 | E82: 1681.03 | F82: 1663.52 | G82: 1649.03 | H82: 1713.03 | I82: 1727.52 | J82: 1745.03 | K82: 1710 | L82: 1678 | M82: 0.5355
A83: 74 | B83: ESCORTS | C83: 1901.9 | D83: 1903.92 | E83: 1892.98 | F83: 1884.07 | G83: 1873.13 | H83: 1912.83 | I83: 1923.77 | J83: 1932.68 | K83: 1914.85 | L83: 1895 | M83: 7.29761
A84: 75 | B84: EXIDEIND | C84: 170.35 | D84: 170.45 | E84: 168.90 | F84: 167.45 | G84: 165.90 | H84: 171.90 | I84: 173.45 | J84: 174.90 | K84: 172 | L84: 169 | M84: 31.0137
A85: 76 | B85: FEDERALBNK | C85: 87.2 | D85: 86.00 | E85: 84.15 | F85: 81.10 | G85: 79.25 | H85: 89.05 | I85: 90.90 | J85: 93.95 | K85: 87.85 | L85: 82.95 | M85: 230.8949
A86: 77 | B86: FORTIS | C86: 309.5 | D86: 306.70 | E86: 302.10 | F86: 294.70 | G86: 290.10 | H86: 314.10 | I86: 318.70 | J86: 326.10 | K86: 311.3 | L86: 299.3 | M86: 47.20831
A87: 78 | B87: GAIL | C87: 131.45 | D87: 130.78 | E87: 129.97 | F87: 128.48 | G87: 127.67 | H87: 132.27 | I87: 133.08 | J87: 134.57 | K87: 131.6 | L87: 129.3 | M87: 44.78058
A88: 79 | B88: GMRINFRA | C88: 47.4 | D88: 47.03 | E88: 45.87 | F88: 44.33 | G88: 43.17 | H88: 48.57 | I88: 49.73 | J88: 51.27 | K88: 48.2 | L88: 45.5 | M88: 390.48484
A89: 80 | B89: GLAND | C89: 3851.3 | D89: 3862.23 | E89: 3830.22 | F89: 3809.13 | G89: 3777.12 | H89: 3883.32 | I89: 3915.33 | J89: 3936.42 | K89: 3894.25 | L89: 3841.15 | M89: 0.67056
A90: 81 | B90: GLENMARK | C90: 525.25 | D90: 526.25 | E90: 521.30 | F90: 517.35 | G90: 512.40 | H90: 530.20 | I90: 535.15 | J90: 539.10 | K90: 531.2 | L90: 522.3 | M90: 5.07942
A91: 82 | B91: GODREJCP | C91: 957.6 | D91: 963.25 | E91: 950.50 | F91: 943.40 | G91: 930.65 | H91: 970.35 | I91: 983.10 | J91: 990.20 | K91: 976 | L91: 956.15 | M91: 3.65511
A92: 83 | B92: GODREJIND | C92: 631.3 | D92: 630.30 | E92: 626.25 | F92: 621.20 | G92: 617.15 | H92: 635.35 | I92: 639.40 | J92: 644.45 | K92: 634.35 | L92: 625.25 | M92: 3.23374
A93: 84 | B93: GODREJPROP | C93: 1903.6 | D93: 1897.67 | E93: 1880.93 | F93: 1858.27 | G93: 1841.53 | H93: 1920.33 | I93: 1937.07 | J93: 1959.73 | K93: 1914.4 | L93: 1875 | M93: 6.64397
A94: 85 | B94: GRASIM | C94: 1661.6 | D94: 1648.48 | E94: 1630.12 | F94: 1598.63 | G94: 1580.27 | H94: 1679.97 | I94: 1698.33 | J94: 1729.82 | K94: 1666.85 | L94: 1617 | M94: 6.26473
A95: 86 | B95: GUJGASLTD | C95: 641 | D95: 640.00 | E95: 636.00 | F95: 631.00 | G95: 627.00 | H95: 645.00 | I95: 649.00 | J95: 654.00 | K95: 644 | L95: 635 | M95: 6.77253
A96: 87 | B96: GSPL | C96: 299 | D96: 298.40 | E96: 294.80 | F96: 290.60 | G96: 287.00 | H96: 302.60 | I96: 306.20 | J96: 310.40 | K96: 302 | L96: 294.2 | M96: 2.82539
A97: 88 | B97: HCLTECH | C97: 1326.15 | D97: 1326.72 | E97: 1313.53 | F97: 1300.92 | G97: 1287.73 | H97: 1339.33 | I97: 1352.52 | J97: 1365.13 | K97: 1339.9 | L97: 1314.1 | M97: 26.61272
A98: 89 | B98: HDFCAMC | C98: 2466.2 | D98: 2463.55 | E98: 2452.65 | F98: 2439.10 | G98: 2428.20 | H98: 2477.10 | I98: 2488.00 | J98: 2501.55 | K98: 2474.45 | L98: 2450 | M98: 1.60239
A99: 90 | B99: HDFCBANK | C99: 1519.65 | D99: 1507.72 | E99: 1492.43 | F99: 1465.22 | G99: 1449.93 | H99: 1534.93 | I99: 1550.22 | J99: 1577.43 | K99: 1523 | L99: 1480.5 | M99: 45.34592
A100: 91 | B100: HDFCLIFE | C100: 650.5 | D100: 650.48 | E100: 646.32 | F100: 642.13 | G100: 637.97 | H100: 654.67 | I100: 658.83 | J100: 663.02 | K100: 654.65 | L100: 646.3 | M100: 18.92087
A101: 92 | B101: HAVELLS | C101: 1406.15 | D101: 1407.05 | E101: 1395.10 | F101: 1384.05 | G101: 1372.10 | H101: 1418.10 | I101: 1430.05 | J101: 1441.10 | K101: 1419 | L101: 1396 | M101: 2.7848
A102: 93 | B102: HEROMOTOCO | C102: 2476.6 | D102: 2478.70 | E102: 2460.90 | F102: 2445.20 | G102: 2427.40 | H102: 2494.40 | I102: 2512.20 | J102: 2527.90 | K102: 2496.5 | L102: 2463 | M102: 2.34912
A103: 94 | B103: HINDALCO | C103: 478.05 | D103: 476.70 | E103: 473.45 | F103: 468.85 | G103: 465.60 | H103: 481.30 | I103: 484.55 | J103: 489.15 | K103: 479.95 | L103: 472.1 | M103: 55.49693
A104: 95 | B104: HAL | C104: 1233.7 | D104: 1230.47 | E104: 1215.28 | F104: 1196.87 | G104: 1181.68 | H104: 1248.88 | I104: 1264.07 | J104: 1282.48 | K104: 1245.65 | L104: 1212.05 | M104: 5.52027
A105: 96 | B105: HINDCOPPER | C105: 127.75 | D105: 126.68 | E105: 124.42 | F105: 121.08 | G105: 118.82 | H105: 130.02 | I105: 132.28 | J105: 135.62 | K105: 128.95 | L105: 123.35 | M105: 59.69893
A106: 97 | B106: HINDPETRO | C106: 296.9 | D106: 295.60 | E106: 293.65 | F106: 290.40 | G106: 288.45 | H106: 298.85 | I106: 300.80 | J106: 304.05 | K106: 297.55 | L106: 292.35 | M106: 10.1636
A107: 98 | B107: HINDUNILVR | C107: 2361.3 | D107: 2364.10 | E107: 2350.20 | F107: 2339.10 | G107: 2325.20 | H107: 2375.20 | I107: 2389.10 | J107: 2400.20 | K107: 2378 | L107: 2353 | M107: 8.79278
A108: 99 | B108: HINDZINC | C108: 319.6 | D108: 318.82 | E108: 317.63 | F108: 315.67 | G108: 314.48 | H108: 320.78 | I108: 321.97 | J108: 323.93 | K108: 320 | L108: 316.85 | M108: 2.97955
A109: 100 | B109: HDFC | C109: 2636.4 | D109: 2621.17 | E109: 2602.33 | F109: 2568.27 | G109: 2549.43 | H109: 2655.23 | I109: 2674.07 | J109: 2708.13 | K109: 2640 | L109: 2587.1 | M109: 12.56497
A110: 101 | B110: ICICIBANK | C110: 764.7 | D110: 757.90 | E110: 749.80 | F110: 734.90 | G110: 726.80 | H110: 772.80 | I110: 780.90 | J110: 795.80 | K110: 766 | L110: 743 | M110: 96.53095
A111: 102 | B111: ICICIGI | C111: 1409.8 | D111: 1413.12 | E111: 1394.93 | F111: 1380.07 | G111: 1361.88 | H111: 1427.98 | I111: 1446.17 | J111: 1461.03 | K111: 1431.3 | L111: 1398.25 | M111: 2.95484
A112: 103 | B112: ICICIPRULI | C112: 567.2 | D112: 563.88 | E112: 558.97 | F112: 550.73 | G112: 545.82 | H112: 572.12 | I112: 577.03 | J112: 585.27 | K112: 568.8 | L112: 555.65 | M112: 7.49105
A113: 104 | B113: ISEC | C113: 790.25 | D113: 793.37 | E113: 781.98 | F113: 773.72 | G113: 762.33 | H113: 801.63 | I113: 813.02 | J113: 821.28 | K113: 804.75 | L113: 785.1 | M113: 1.47063
A114: 105 | B114: IDFCFIRSTB | C114: 49.65 | D114: 49.30 | E114: 48.60 | F114: 47.55 | G114: 46.85 | H114: 50.35 | I114: 51.05 | J114: 52.10 | K114: 50 | L114: 48.25 | M114: 337.85136
A115: 106 | B115: ITC | C115: 219.1 | D115: 218.67 | E115: 217.48 | F115: 215.87 | G115: 214.68 | H115: 220.28 | I115: 221.47 | J115: 223.08 | K115: 219.85 | L115: 217.05 | M115: 77.65495
A116: 107 | B116: INDIAMART | C116: 6574.15 | D116: 6539.38 | E116: 6464.77 | F116: 6355.38 | G116: 6280.77 | H116: 6648.77 | I116: 6723.38 | J116: 6832.77 | K116: 6614 | L116: 6430 | M116: 1.21756
A117: 108 | B117: INDIANB | C117: 142.15 | D117: 141.30 | E117: 139.65 | F117: 137.15 | G117: 135.50 | H117: 143.80 | I117: 145.45 | J117: 147.95 | K117: 142.95 | L117: 138.8 | M117: 17.76764
A118: 109 | B118: INDHOTEL | C118: 184.05 | D118: 182.70 | E118: 179.40 | F118: 174.75 | G118: 171.45 | H118: 187.35 | I118: 190.65 | J118: 195.30 | K118: 186 | L118: 178.05 | M118: 51.14995
A119: 110 | B119: IOC | C119: 112.95 | D119: 112.53 | E119: 111.77 | F119: 110.58 | G119: 109.82 | H119: 113.72 | I119: 114.48 | J119: 115.67 | K119: 113.3 | L119: 111.35 | M119: 66.84375
A120: 111 | B120: IRCTC | C120: 845.65 | D120: 842.00 | E120: 834.00 | F120: 822.35 | G120: 814.35 | H120: 853.65 | I120: 861.65 | J120: 873.30 | K120: 850 | L120: 830.35 | M120: 35.01695
A121: 112 | B121: IRFC | C121: 23.05 | D121: 23.02 | E121: 22.93 | F121: 22.82 | G121: 22.73 | H121: 23.13 | I121: 23.22 | J121: 23.33 | K121: 23.1 | L121: 22.9 | M121: 63.85594
A122: 113 | B122: IGL | C122: 474.8 | D122: 473.80 | E122: 471.30 | F122: 467.80 | G122: 465.30 | H122: 477.30 | I122: 479.80 | J122: 483.30 | K122: 476.3 | L122: 470.3 | M122: 7.99096
A123: 114 | B123: INDUSTOWER | C123: 248.85 | D123: 248.38 | E123: 246.97 | F123: 245.08 | G123: 243.67 | H123: 250.27 | I123: 251.68 | J123: 253.57 | K123: 249.8 | L123: 246.5 | M123: 20.88281
A124: 115 | B124: INDUSINDBK | C124: 912.3 | D124: 901.50 | E124: 887.50 | F124: 862.70 | G124: 848.70 | H124: 926.30 | I124: 940.30 | J124: 965.10 | K124: 915.5 | L124: 876.7 | M124: 55.94214
A125: 116 | B125: NAUKRI | C125: 5632.95 | D125: 5635.55 | E125: 5574.10 | F125: 5515.25 | G125: 5453.80 | H125: 5694.40 | I125: 5755.85 | J125: 5814.70 | K125: 5697 | L125: 5576.7 | M125: 2.15031
A126: 117 | B126: INFY | C126: 1898.45 | D126: 1900.08 | E126: 1886.12 | F126: 1873.78 | G126: 1859.82 | H126: 1912.42 | I126: 1926.38 | J126: 1938.72 | K126: 1914.05 | L126: 1887.75 | M126: 33.29616
A127: 118 | B127: INDIGO | C127: 2014 | D127: 1991.27 | E127: 1957.73 | F127: 1901.47 | G127: 1867.93 | H127: 2047.53 | I127: 2081.07 | J127: 2137.33 | K127: 2024.8 | L127: 1935 | M127: 13.13054
A128: 119 | B128: IPCALAB | C128: 2159.6 | D128: 2165.90 | E128: 2145.05 | F128: 2130.50 | G128: 2109.65 | H128: 2180.45 | I128: 2201.30 | J128: 2215.85 | K128: 2186.75 | L128: 2151.35 | M128: 1.36182
A129: 120 | B129: JSWENERGY | C129: 299 | D129: 300.82 | E129: 295.93 | F129: 292.87 | G129: 287.98 | H129: 303.88 | I129: 308.77 | J129: 311.83 | K129: 305.7 | L129: 297.75 | M129: 10.17541
A130: 121 | B130: JSWSTEEL | C130: 667.05 | D130: 664.25 | E130: 657.50 | F130: 647.95 | G130: 641.20 | H130: 673.80 | I130: 680.55 | J130: 690.10 | K130: 671 | L130: 654.7 | M130: 23.83218
A131: 122 | B131: JINDALSTEL | C131: 385.85 | D131: 383.43 | E131: 379.47 | F131: 373.08 | G131: 369.12 | H131: 389.82 | I131: 393.78 | J131: 400.17 | K131: 387.4 | L131: 377.05 | M131: 23.31615
A132: 123 | B132: JUBLFOOD | C132: 3654.35 | D132: 3643.78 | E132: 3612.57 | F132: 3570.78 | G132: 3539.57 | H132: 3685.57 | I132: 3716.78 | J132: 3758.57 | K132: 3675 | L132: 3602 | M132: 4.27808
A133: 124 | B133: KOTAKBANK | C133: 1824.45 | D133: 1814.72 | E133: 1801.33 | F133: 1778.22 | G133: 1764.83 | H133: 1837.83 | I133: 1851.22 | J133: 1874.33 | K133: 1828.1 | L133: 1791.6 | M133: 19.85109
A134: 125 | B134: L&TFH | C134: 79.1 | D134: 78.77 | E134: 78.03 | F134: 76.97 | G134: 76.23 | H134: 79.83 | I134: 80.57 | J134: 81.63 | K134: 79.5 | L134: 77.7 | M134: 54.52006
A135: 126 | B135: LTTS | C135: 5726.55 | D135: 5695.18 | E135: 5632.37 | F135: 5538.18 | G135: 5475.37 | H135: 5789.37 | I135: 5852.18 | J135: 5946.37 | K135: 5758 | L135: 5601 | M135: 3.21738
A136: 127 | B136: LICHSGFIN | C136: 379.4 | D136: 376.87 | E136: 373.18 | F136: 366.97 | G136: 363.28 | H136: 383.08 | I136: 386.77 | J136: 392.98 | K136: 380.55 | L136: 370.65 | M136: 23.59074
A137: 128 | B137: LTI | C137: 7532.85 | D137: 7480.28 | E137: 7390.57 | F137: 7248.28 | G137: 7158.57 | H137: 7622.57 | I137: 7712.28 | J137: 7854.57 | K137: 7570 | L137: 7338 | M137: 3.11684
A138: 129 | B138: LT | C138: 1922.85 | D138: 1917.98 | E138: 1898.52 | F138: 1874.18 | G138: 1854.72 | H138: 1942.32 | I138: 1961.78 | J138: 1986.12 | K138: 1937.45 | L138: 1893.65 | M138: 19.06676
A139: 130 | B139: LAURUSLABS | C139: 528.75 | D139: 534.47 | E139: 522.28 | F139: 515.82 | G139: 503.63 | H139: 540.93 | I139: 553.12 | J139: 559.58 | K139: 546.65 | L139: 528 | M139: 16.20492
A140: 131 | B140: LUPIN | C140: 945.25 | D140: 948.12 | E140: 939.23 | F140: 933.22 | G140: 924.33 | H140: 954.13 | I140: 963.02 | J140: 969.03 | K140: 957 | L140: 942.1 | M140: 7.73806
A141: 132 | B141: MRF | C141: 73367.7 | D141: 73487.10 | E141: 72994.25 | F141: 72620.80 | G141: 72127.95 | H141: 73860.55 | I141: 74353.40 | J141: 74726.85 | K141: 73979.95 | L141: 73113.65 | M141: 0.05871
A142: 133 | B142: MGL | C142: 876 | D142: 872.13 | E142: 866.87 | F142: 857.73 | G142: 852.47 | H142: 881.27 | I142: 886.53 | J142: 895.67 | K142: 877.4 | L142: 863 | M142: 2.15283
A143: 134 | B143: M&MFIN | C143: 152.25 | D143: 152.13 | E143: 148.62 | F143: 144.98 | G143: 141.47 | H143: 155.77 | I143: 159.28 | J143: 162.92 | K143: 155.65 | L143: 148.5 | M143: 51.43474
A144: 135 | B144: M&M | C144: 829.8 | D144: 832.03 | E144: 824.07 | F144: 818.33 | G144: 810.37 | H144: 837.77 | I144: 845.73 | J144: 851.47 | K144: 840 | L144: 826.3 | M144: 15.37088
A145: 136 | B145: MANAPPURAM | C145: 167.75 | D145: 167.37 | E145: 164.73 | F145: 161.72 | G145: 159.08 | H145: 170.38 | I145: 173.02 | J145: 176.03 | K145: 170 | L145: 164.35 | M145: 32.856
A146: 137 | B146: MARICO | C146: 514.1 | D146: 515.37 | E146: 512.23 | F146: 510.37 | G146: 507.23 | H146: 517.23 | I146: 520.37 | J146: 522.23 | K146: 518.5 | L146: 513.5 | M146: 5.02608
A147: 138 | B147: MARUTI | C147: 7523.9 | D147: 7516.62 | E147: 7427.28 | F147: 7330.67 | G147: 7241.33 | H147: 7613.23 | I147: 7702.57 | J147: 7799.18 | K147: 7605.95 | L147: 7420 | M147: 4.56599
A148: 139 | B148: MFSL | C148: 1017.35 | D148: 1006.63 | E148: 992.52 | F148: 967.68 | G148: 953.57 | H148: 1031.47 | I148: 1045.58 | J148: 1070.42 | K148: 1020.75 | L148: 981.8 | M148: 4.45918
A149: 140 | B149: MINDTREE | C149: 4842.05 | D149: 4831.92 | E149: 4794.83 | F149: 4747.62 | G149: 4710.53 | H149: 4879.13 | I149: 4916.22 | J149: 4963.43 | K149: 4869 | L149: 4784.7 | M149: 4.70763
A150: 141 | B150: MPHASIS | C150: 3422.65 | D150: 3430.57 | E150: 3382.13 | F150: 3341.62 | G150: 3293.18 | H150: 3471.08 | I150: 3519.52 | J150: 3560.03 | K150: 3479 | L150: 3390.05 | M150: 5.48857
A151: 142 | B151: MUTHOOTFIN | C151: 1540.4 | D151: 1525.62 | E151: 1503.93 | F151: 1467.47 | G151: 1445.78 | H151: 1562.08 | I151: 1583.77 | J151: 1620.23 | K151: 1547.3 | L151: 1489.15 | M151: 9.97714
A152: 143 | B152: NATCOPHARM | C152: 921.05 | D152: 917.80 | E152: 908.60 | F152: 896.15 | G152: 886.95 | H152: 930.25 | I152: 939.45 | J152: 951.90 | K152: 927 | L152: 905.35 | M152: 3.79378
A153: 144 | B153: NMDC | C153: 135.3 | D153: 134.83 | E153: 134.07 | F153: 132.83 | G153: 132.07 | H153: 136.07 | I153: 136.83 | J153: 138.07 | K153: 135.6 | L153: 133.6 | M153: 38.91035
A154: 145 | B154: NTPC | C154: 126 | D154: 125.75 | E154: 124.95 | F154: 123.90 | G154: 123.10 | H154: 126.80 | I154: 127.60 | J154: 128.65 | K154: 126.55 | L154: 124.7 | M154: 90.34081
A155: 146 | B155: NATIONALUM | C155: 103.15 | D155: 102.38 | E155: 101.17 | F155: 99.18 | G155: 97.97 | H155: 104.37 | I155: 105.58 | J155: 107.57 | K155: 103.6 | L155: 100.4 | M155: 160.26094
A156: 147 | B156: NAVINFLUOR | C156: 4223 | D156: 4218.32 | E156: 4154.68 | F156: 4086.37 | G156: 4022.73 | H156: 4286.63 | I156: 4350.27 | J156: 4418.58 | K156: 4281.95 | L156: 4150 | M156: 1.80417
A157: 148 | B157: NESTLEIND | C157: 19677.95 | D157: 19710.00 | E157: 19606.00 | F157: 19534.05 | G157: 19430.05 | H157: 19781.95 | I157: 19885.95 | J157: 19957.90 | K157: 19814 | L157: 19638.05 | M157: 0.25869
A158: 149 | B158: NAM-INDIA | C158: 355.3 | D158: 353.82 | E158: 351.63 | F158: 347.97 | G158: 345.78 | H158: 357.48 | I158: 359.67 | J158: 363.33 | K158: 356 | L158: 350.15 | M158: 4.61338
A159: 150 | B159: OBEROIRLTY | C159: 888.3 | D159: 883.97 | E159: 866.33 | F159: 844.37 | G159: 826.73 | H159: 905.93 | I159: 923.57 | J159: 945.53 | K159: 901.6 | L159: 862 | M159: 14.48481
A160: 151 | B160: ONGC | C160: 143.05 | D160: 142.57 | E160: 141.68 | F160: 140.32 | G160: 139.43 | H160: 143.93 | I160: 144.82 | J160: 146.18 | K160: 143.45 | L160: 141.2 | M160: 37.65911
A161: 152 | B161: OIL | C161: 198.8 | D161: 199.28 | E161: 195.97 | F161: 193.13 | G161: 189.82 | H161: 202.12 | I161: 205.43 | J161: 208.27 | K161: 202.6 | L161: 196.45 | M161: 9.68979
A162: 153 | B162: PIIND | C162: 3051.75 | D162: 3055.58 | E162: 3003.17 | F162: 2954.58 | G162: 2902.17 | H162: 3104.17 | I162: 3156.58 | J162: 3205.17 | K162: 3108 | L162: 3007 | M162: 2.01183
A163: 154 | B163: PAGEIND | C163: 40929.3 | D163: 40786.45 | E163: 40522.90 | F163: 40116.50 | G163: 39852.95 | H163: 41192.85 | I163: 41456.40 | J163: 41862.80 | K163: 41050 | L163: 40380.05 | M163: 0.09614
A164: 155 | B164: PETRONET | C164: 218.8 | D164: 218.38 | E164: 216.87 | F164: 214.93 | G164: 213.42 | H164: 220.32 | I164: 221.83 | J164: 223.77 | K164: 219.9 | L164: 216.45 | M164: 7.03811
A165: 156 | B165: PFIZER | C165: 5100.6 | D165: 5098.48 | E165: 5066.97 | F165: 5033.33 | G165: 5001.82 | H165: 5132.12 | I165: 5163.63 | J165: 5197.27 | K165: 5130 | L165: 5064.85 | M165: 0.37397
A166: 157 | B166: PIDILITIND | C166: 2473.95 | D166: 2475.32 | E166: 2463.63 | F166: 2453.32 | G166: 2441.63 | H166: 2485.63 | I166: 2497.32 | J166: 2507.63 | K166: 2487 | L166: 2465 | M166: 1.11798
A167: 158 | B167: PEL | C167: 2685.1 | D167: 2679.38 | E167: 2648.77 | F167: 2612.43 | G167: 2581.82 | H167: 2715.72 | I167: 2746.33 | J167: 2782.67 | K167: 2710 | L167: 2643.05 | M167: 5.10293
A168: 159 | B168: POLYCAB | C168: 2459.7 | D168: 2466.47 | E168: 2443.73 | F168: 2427.77 | G168: 2405.03 | H168: 2482.43 | I168: 2505.17 | J168: 2521.13 | K168: 2489.2 | L168: 2450.5 | M168: 1.87072
A169: 160 | B169: PFC | C169: 122.8 | D169: 121.93 | E169: 120.62 | F169: 118.43 | G169: 117.12 | H169: 124.12 | I169: 125.43 | J169: 127.62 | K169: 123.25 | L169: 119.75 | M169: 34.92097
A170: 161 | B170: POWERGRID | C170: 205 | D170: 205.37 | E170: 203.78 | F170: 202.57 | G170: 200.98 | H170: 206.58 | I170: 208.17 | J170: 209.38 | K170: 206.95 | L170: 204.15 | M170: 55.57541
A171: 162 | B171: PRESTIGE | C171: 472.45 | D171: 478.17 | E171: 464.83 | F171: 457.22 | G171: 443.88 | H171: 485.78 | I171: 499.12 | J171: 506.73 | K171: 491.5 | L171: 470.55 | M171: 8.40412
A172: 163 | B172: PGHH | C172: 15459.15 | D172: 15476.42 | E172: 15302.83 | F172: 15146.52 | G172: 14972.93 | H172: 15632.73 | I172: 15806.32 | J172: 15962.63 | K172: 15650 | L172: 15320.1 | M172: 0.0895
A173: 164 | B173: PNB | C173: 38 | D173: 37.80 | E173: 37.45 | F173: 36.90 | G173: 36.55 | H173: 38.35 | I173: 38.70 | J173: 39.25 | K173: 38.15 | L173: 37.25 | M173: 365.60565
A174: 165 | B174: RBLBANK | C174: 132.75 | D174: 130.58 | E174: 126.92 | F174: 121.08 | G174: 117.42 | H174: 136.42 | I174: 140.08 | J174: 145.92 | K174: 134.25 | L174: 124.75 | M174: 687.72516
A175: 166 | B175: RECLTD | C175: 135.3 | D175: 134.82 | E175: 133.78 | F175: 132.27 | G175: 131.23 | H175: 136.33 | I175: 137.37 | J175: 138.88 | K175: 135.85 | L175: 133.3 | M175: 41.20567
A176: 167 | B176: RELIANCE | C176: 2403.85 | D176: 2391.78 | E176: 2375.62 | F176: 2347.38 | G176: 2331.22 | H176: 2420.02 | I176: 2436.18 | J176: 2464.42 | K176: 2407.95 | L176: 2363.55 | M176: 25.02073
A177: 168 | B177: SBICARD | C177: 928 | D177: 927.47 | E177: 923.13 | F177: 918.27 | G177: 913.93 | H177: 932.33 | I177: 936.67 | J177: 941.53 | K177: 931.8 | L177: 922.6 | M177: 7.1744
A178: 169 | B178: SBILIFE | C178: 1209.4 | D178: 1206.62 | E178: 1198.78 | F178: 1188.17 | G178: 1180.33 | H178: 1217.23 | I178: 1225.07 | J178: 1235.68 | K178: 1214.45 | L178: 1196 | M178: 9.25281
A179: 170 | B179: SRF | C179: 2412.5 | D179: 2420.85 | E179: 2397.70 | F179: 2382.90 | G179: 2359.75 | H179: 2435.65 | I179: 2458.80 | J179: 2473.60 | K179: 2444 | L179: 2406.05 | M179: 3.85132
A180: 171 | B180: SANOFI | C180: 7778.85 | D180: 7813.62 | E180: 7728.23 | F180: 7677.62 | G180: 7592.23 | H180: 7864.23 | I180: 7949.62 | J180: 8000.23 | K180: 7899 | L180: 7763 | M180: 0.04966
A181: 172 | B181: SHREECEM | C181: 27247.4 | D181: 27162.42 | E181: 26974.98 | F181: 26702.57 | G181: 26515.13 | H181: 27434.83 | I181: 27622.27 | J181: 27894.68 | K181: 27349.85 | L181: 26890 | M181: 0.19537
A182: 173 | B182: SRTRANSFIN | C182: 1250.75 | D182: 1242.17 | E182: 1226.13 | F182: 1201.52 | G182: 1185.48 | H182: 1266.78 | I182: 1282.82 | J182: 1307.43 | K182: 1258.2 | L182: 1217.55 | M182: 5.72005
A183: 174 | B183: SIEMENS | C183: 2366.8 | D183: 2375.40 | E183: 2351.40 | F183: 2336.00 | G183: 2312.00 | H183: 2390.80 | I183: 2414.80 | J183: 2430.20 | K183: 2399.4 | L183: 2360 | M183: 3.01974
A184: 175 | B184: SBIN | C184: 470.8 | D184: 467.63 | E184: 463.27 | F184: 455.73 | G184: 451.37 | H184: 475.17 | I184: 479.53 | J184: 487.07 | K184: 472 | L184: 460.1 | M184: 131.24509
A185: 176 | B185: SAIL | C185: 110.1 | D185: 109.25 | E185: 107.90 | F185: 105.70 | G185: 104.35 | H185: 111.45 | I185: 112.80 | J185: 115.00 | K185: 110.6 | L185: 107.05 | M185: 246.78644
A186: 177 | B186: SUNPHARMA | C186: 848.95 | D186: 849.97 | E186: 839.88 | F186: 830.82 | G186: 820.73 | H186: 859.03 | I186: 869.12 | J186: 878.18 | K186: 860.05 | L186: 840.9 | M186: 37.26756
A187: 178 | B187: SUNTV | C187: 504.4 | D187: 503.15 | E187: 499.95 | F187: 495.50 | G187: 492.30 | H187: 507.60 | I187: 510.80 | J187: 515.25 | K187: 506.35 | L187: 498.7 | M187: 7.55347
A188: 179 | B188: SYNGENE | C188: 612 | D188: 614.63 | E188: 605.37 | F188: 598.73 | G188: 589.47 | H188: 621.27 | I188: 630.53 | J188: 637.17 | K188: 623.9 | L188: 608 | M188: 3.39211
A189: 180 | B189: TVSMOTOR | C189: 629.25 | D189: 626.17 | E189: 619.38 | F189: 609.52 | G189: 602.73 | H189: 636.03 | I189: 642.82 | J189: 652.68 | K189: 632.95 | L189: 616.3 | M189: 11.8807
A190: 181 | B190: TATACHEM | C190: 914.15 | D190: 908.95 | E190: 900.55 | F190: 886.95 | G190: 878.55 | H190: 922.55 | I190: 930.95 | J190: 944.55 | K190: 917.35 | L190: 895.35 | M190: 7.9902
A191: 182 | B191: TATACOMM | C191: 1445.3 | D191: 1454.48 | E191: 1429.97 | F191: 1414.63 | G191: 1390.12 | H191: 1469.82 | I191: 1494.33 | J191: 1509.67 | K191: 1479 | L191: 1439.15 | M191: 4.03575
A192: 183 | B192: TCS | C192: 3817.75 | D192: 3797.58 | E192: 3765.17 | F192: 3712.58 | G192: 3680.17 | H192: 3850.17 | I192: 3882.58 | J192: 3935.17 | K192: 3830 | L192: 3745 | M192: 23.46158
A193: 184 | B193: TATACONSUM | C193: 748 | D193: 745.80 | E193: 742.20 | F193: 736.40 | G193: 732.80 | H193: 751.60 | I193: 755.20 | J193: 761.00 | K193: 749.4 | L193: 740 | M193: 9.25699
A194: 185 | B194: TATAELXSI | C194: 5893.65 | D194: 5915.13 | E194: 5846.52 | F194: 5799.38 | G194: 5730.77 | H194: 5962.27 | I194: 6030.88 | J194: 6078.02 | K194: 5983.75 | L194: 5868 | M194: 1.20686
A195: 186 | B195: TATAMOTORS | C195: 497.6 | D195: 496.82 | E195: 492.78 | F195: 487.97 | G195: 483.93 | H195: 501.63 | I195: 505.67 | J195: 510.48 | K195: 500.85 | L195: 492 | M195: 327.48423
A196: 187 | B196: TATAPOWER | C196: 223.4 | D196: 221.10 | E196: 218.30 | F196: 213.20 | G196: 210.40 | H196: 226.20 | I196: 229.00 | J196: 234.10 | K196: 223.9 | L196: 216 | M196: 190.62825
A197: 188 | B197: TATASTEEL | C197: 1142.45 | D197: 1136.15 | E197: 1121.30 | F197: 1100.15 | G197: 1085.30 | H197: 1157.30 | I197: 1172.15 | J197: 1193.30 | K197: 1151 | L197: 1115 | M197: 38.65803
A198: 189 | B198: TECHM | C198: 1784.8 | D198: 1795.27 | E198: 1772.53 | F198: 1760.27 | G198: 1737.53 | H198: 1807.53 | I198: 1830.27 | J198: 1842.53 | K198: 1818 | L198: 1783 | M198: 17.79147
A199: 190 | B199: RAMCOCEM | C199: 1026.75 | D199: 1018.52 | E199: 1008.23 | F199: 989.72 | G199: 979.43 | H199: 1037.03 | I199: 1047.32 | J199: 1065.83 | K199: 1028.8 | L199: 1000 | M199: 1.40739
A200: 191 | B200: TITAN | C200: 2523.85 | D200: 2524.05 | E200: 2502.10 | F200: 2480.35 | G200: 2458.40 | H200: 2545.80 | I200: 2567.75 | J200: 2589.50 | K200: 2546 | L200: 2502.3 | M200: 9.21729
A201: 192 | B201: TORNTPHARM | C201: 3252.1 | D201: 3265.17 | E201: 3234.38 | F201: 3216.67 | G201: 3185.88 | H201: 3282.88 | I201: 3313.67 | J201: 3331.38 | K201: 3295.95 | L201: 3247.45 | M201: 0.98348
A202: 193 | B202: TORNTPOWER | C202: 555.1 | D202: 555.37 | E202: 551.73 | F202: 548.37 | G202: 544.73 | H202: 558.73 | I202: 562.37 | J202: 565.73 | K202: 559 | L202: 552 | M202: 3.12604
A203: 194 | B203: TRENT | C203: 1054.6 | D203: 1053.53 | E203: 1042.07 | F203: 1029.53 | G203: 1018.07 | H203: 1066.07 | I203: 1077.53 | J203: 1090.07 | K203: 1065 | L203: 1041 | M203: 3.63953
A204: 195 | B204: UPL | C204: 764.2 | D204: 760.37 | E204: 753.83 | F204: 743.47 | G204: 736.93 | H204: 770.73 | I204: 777.27 | J204: 787.63 | K204: 766.9 | L204: 750 | M204: 11.57591
A205: 196 | B205: ULTRACEMCO | C205: 7723.9 | D205: 7681.32 | E205: 7612.63 | F205: 7501.37 | G205: 7432.68 | H205: 7792.58 | I205: 7861.27 | J205: 7972.53 | K205: 7750 | L205: 7570.05 | M205: 2.50533
... 29 more rows

Sheet MidCap Intra
L5: Back To Main Page
A6: FOR INTRA DAY TRADING | K6: =Main!B10 -> 2022-01-04
A9: Sr.no | B9: Scrip | C9: CLOSE RATE | D9: Pivot Point | E9: Supports | H9: Resistances
E10: S1 | F10: S2 | G10: S3 | H10: R1 | I10: R2 | J10: R3 | K10: HIGH | L10: LOW | M10: Total Trade Quanity in Lakhs
A11: 1 | B11: 3MINDIA | C11: 25797.2 | D11: 25682.02 | E11: 25473.73 | F11: 25150.27 | G11: 24941.98 | H11: 26005.48 | I11: 26213.77 | J11: 26537.23 | K11: 25890.3 | L11: 25358.55 | M11: 0.04475
A12: 2 | B12: AARTIDRUGS | C12: 544.6 | D12: 545.13 | E12: 537.97 | F12: 531.33 | G12: 524.17 | H12: 551.77 | I12: 558.93 | J12: 565.57 | K12: 552.3 | L12: 538.5 | M12: 1.52309
A13: 3 | B13: AARTIIND | C13: 1017.35 | D13: 1014.33 | E13: 1003.67 | F13: 989.98 | G13: 979.32 | H13: 1028.02 | I13: 1038.68 | J13: 1052.37 | K13: 1025 | L13: 1000.65 | M13: 7.1377
A14: 4 | B14: AAVAS | C14: 2627.35 | D14: 2628.13 | E14: 2596.37 | F14: 2565.38 | G14: 2533.62 | H14: 2659.12 | I14: 2690.88 | J14: 2721.87 | K14: 2659.9 | L14: 2597.15 | M14: 0.29469
A15: 5 | B15: ABB | C15: 2205.45 | D15: 2219.88 | E15: 2171.17 | F15: 2136.88 | G15: 2088.17 | H15: 2254.17 | I15: 2302.88 | J15: 2337.17 | K15: 2268.6 | L15: 2185.6 | M15: 1.13948
A16: 6 | B16: ABBOTINDIA | C16: 19285.1 | D16: 19379.40 | E16: 19138.80 | F16: 18992.50 | G16: 18751.90 | H16: 19525.70 | I16: 19766.30 | J16: 19912.60 | K16: 19620 | L16: 19233.1 | M16: 0.09259
A17: 7 | B17: ABCAPITAL | C17: 129.55 | D17: 128.00 | E17: 125.55 | F17: 121.55 | G17: 119.10 | H17: 132.00 | I17: 134.45 | J17: 138.45 | K17: 130.45 | L17: 124 | M17: 134.28542
A18: 8 | B18: ABFRL | C18: 273.6 | D18: 272.38 | E18: 270.37 | F18: 267.13 | G18: 265.12 | H18: 275.62 | I18: 277.63 | J18: 280.87 | K18: 274.4 | L18: 269.15 | M18: 27.5595
A19: 9 | B19: ACC | C19: 2251.35 | D19: 2241.68 | E19: 2223.82 | F19: 2196.28 | G19: 2178.42 | H19: 2269.22 | I19: 2287.08 | J19: 2314.62 | K19: 2259.55 | L19: 2214.15 | M19: 3.35699
A20: 10 | B20: ADANIENT | C20: 1717.15 | D20: 1720.45 | E20: 1707.90 | F20: 1698.65 | G20: 1686.10 | H20: 1729.70 | I20: 1742.25 | J20: 1751.50 | K20: 1733 | L20: 1711.2 | M20: 10.94708
A21: 11 | B21: ADANIGREEN | C21: 1346.9 | D21: 1346.67 | E21: 1337.13 | F21: 1327.37 | G21: 1317.83 | H21: 1356.43 | I21: 1365.97 | J21: 1375.73 | K21: 1356.2 | L21: 1336.9 | M21: 1.30549
A22: 12 | B22: ADANIPORTS | C22: 736.6 | D22: 735.25 | E22: 731.85 | F22: 727.10 | G22: 723.70 | H22: 740.00 | I22: 743.40 | J22: 748.15 | K22: 738.65 | L22: 730.5 | M22: 23.77227
A23: 13 | B23: ADANITRANS | C23: 1731.1 | D23: 1732.03 | E23: 1709.07 | F23: 1687.03 | G23: 1664.07 | H23: 1754.07 | I23: 1777.03 | J23: 1799.07 | K23: 1755 | L23: 1710 | M23: 0.32602
A24: 14 | B24: ADVENZYMES | C24: 332.95 | D24: 332.60 | E24: 326.50 | F24: 320.05 | G24: 313.95 | H24: 339.05 | I24: 345.15 | J24: 351.60 | K24: 338.7 | L24: 326.15 | M24: 1.32428
A25: 15 | B25: AEGISCHEM | C25: 223.45 | D25: 224.88 | E25: 220.82 | F25: 218.18 | G25: 214.12 | H25: 227.52 | I25: 231.58 | J25: 234.22 | K25: 228.95 | L25: 222.25 | M25: 6.17097
A26: 16 | B26: AFFLE | C26: 1194.25 | D26: 1172.50 | E26: 1136.90 | F26: 1079.55 | G26: 1043.95 | H26: 1229.85 | I26: 1265.45 | J26: 1322.80 | K26: 1208.1 | L26: 1115.15 | M26: 10.03067
A27: 17 | B27: AIAENG | C27: 1855.75 | D27: 1865.22 | E27: 1842.53 | F27: 1829.32 | G27: 1806.63 | H27: 1878.43 | I27: 1901.12 | J27: 1914.33 | K27: 1887.9 | L27: 1852 | M27: 0.21365
A28: 18 | B28: AJANTPHARM | C28: 2214.25 | D28: 2227.78 | E28: 2196.57 | F28: 2178.88 | G28: 2147.67 | H28: 2245.47 | I28: 2276.68 | J28: 2294.37 | K28: 2259 | L28: 2210.1 | M28: 0.62478
A29: 19 | B29: ALEMBICLTD | C29: 107.75 | D29: 107.88 | E29: 106.92 | F29: 106.08 | G29: 105.12 | H29: 108.72 | I29: 109.68 | J29: 110.52 | K29: 108.85 | L29: 107.05 | M29: 3.05263
A30: 20 | B30: ALKEM | C30: 3641.1 | D30: 3640.75 | E30: 3625.55 | F30: 3610.00 | G30: 3594.80 | H30: 3656.30 | I30: 3671.50 | J30: 3687.05 | K30: 3655.95 | L30: 3625.2 | M30: 0.75821
A31: 21 | B31: ALKYLAMINE | C31: 3759.35 | D31: 3704.37 | E31: 3629.98 | F31: 3500.62 | G31: 3426.23 | H31: 3833.73 | I31: 3908.12 | J31: 4037.48 | K31: 3778.75 | L31: 3575 | M31: 2.8157
A32: 22 | B32: ALOKINDS | C32: 25.75 | D32: 25.85 | E32: 25.45 | F32: 25.15 | G32: 24.75 | H32: 26.15 | I32: 26.55 | J32: 26.85 | K32: 26.25 | L32: 25.55 | M32: 110.8804
A33: 23 | B33: AMARAJABAT | C33: 638.05 | D33: 639.40 | E33: 633.90 | F33: 629.75 | G33: 624.25 | H33: 643.55 | I33: 649.05 | J33: 653.20 | K33: 644.9 | L33: 635.25 | M33: 10.27873
A34: 24 | B34: AMBER | C34: 3306.75 | D34: 3310.98 | E34: 3266.97 | F34: 3227.18 | G34: 3183.17 | H34: 3350.77 | I34: 3394.78 | J34: 3434.57 | K34: 3355 | L34: 3271.2 | M34: 0.32611
A35: 25 | B35: AMBUJACEM | C35: 387 | D35: 384.88 | E35: 380.32 | F35: 373.63 | G35: 369.07 | H35: 391.57 | I35: 396.13 | J35: 402.82 | K35: 389.45 | L35: 378.2 | M35: 16.43912
A36: 26 | B36: ANGELONE | C36: 1216.6 | D36: 1215.40 | E36: 1186.80 | F36: 1157.00 | G36: 1128.40 | H36: 1245.20 | I36: 1273.80 | J36: 1303.60 | K36: 1244 | L36: 1185.6 | M36: 3.8597
A37: 27 | B37: ANURAS | C37: 1061.75 | D37: 1047.35 | E37: 1006.90 | F37: 952.05 | G37: 911.60 | H37: 1102.20 | I37: 1142.65 | J37: 1197.50 | K37: 1087.8 | L37: 992.5 | M37: 5.18074
A38: 28 | B38: APLAPOLLO | C38: 949.15 | D38: 957.58 | E38: 925.17 | F38: 901.18 | G38: 868.77 | H38: 981.57 | I38: 1013.98 | J38: 1037.97 | K38: 990 | L38: 933.6 | M38: 12.30345
A39: 29 | B39: APLLTD | C39: 808 | D39: 806.48 | E39: 802.97 | F39: 797.93 | G39: 794.42 | H39: 811.52 | I39: 815.03 | J39: 820.07 | K39: 810 | L39: 801.45 | M39: 2.72874
A40: 30 | B40: APOLLOHOSP | C40: 4990.5 | D40: 5012.45 | E40: 4956.90 | F40: 4923.30 | G40: 4867.75 | H40: 5046.05 | I40: 5101.60 | J40: 5135.20 | K40: 5068 | L40: 4978.85 | M40: 3.10798
A41: 31 | B41: APOLLOTYRE | C41: 220.9 | D41: 220.82 | E41: 219.23 | F41: 217.57 | G41: 215.98 | H41: 222.48 | I41: 224.07 | J41: 225.73 | K41: 222.4 | L41: 219.15 | M41: 11.26982
A42: 32 | B42: ASAHIINDIA | C42: 491.95 | D42: 491.85 | E42: 480.70 | F42: 469.45 | G42: 458.30 | H42: 503.10 | I42: 514.25 | J42: 525.50 | K42: 503 | L42: 480.6 | M42: 2.76983
A43: 33 | B43: ASHOKA | C43: 102.7 | D43: 102.40 | E43: 100.95 | F43: 99.20 | G43: 97.75 | H43: 104.15 | I43: 105.60 | J43: 107.35 | K43: 103.85 | L43: 100.65 | M43: 27.29802
A44: 34 | B44: ASHOKLEY | C44: 127.7 | D44: 126.72 | E44: 125.13 | F44: 122.57 | G44: 120.98 | H44: 129.28 | I44: 130.87 | J44: 133.43 | K44: 128.3 | L44: 124.15 | M44: 190.18355
A45: 35 | B45: ASIANPAINT | C45: 3422.4 | D45: 3415.43 | E45: 3389.97 | F45: 3357.53 | G45: 3332.07 | H45: 3447.87 | I45: 3473.33 | J45: 3505.77 | K45: 3440.9 | L45: 3383 | M45: 6.96276
A46: 36 | B46: ASTERDM | C46: 178.3 | D46: 177.72 | E46: 175.63 | F46: 172.97 | G46: 170.88 | H46: 180.38 | I46: 182.47 | J46: 185.13 | K46: 179.8 | L46: 175.05 | M46: 4.95351
A47: 37 | B47: ASTRAL | C47: 2332.15 | D47: 2325.75 | E47: 2294.05 | F47: 2255.95 | G47: 2224.25 | H47: 2363.85 | I47: 2395.55 | J47: 2433.65 | K47: 2357.45 | L47: 2287.65 | M47: 2.63893
A48: 38 | B48: ASTRAZEN | C48: 3081.25 | D48: 3091.92 | E48: 3061.48 | F48: 3041.72 | G48: 3011.28 | H48: 3111.68 | I48: 3142.12 | J48: 3161.88 | K48: 3122.35 | L48: 3072.15 | M48: 0.09852
A49: 39 | B49: ATGL | C49: 1743.8 | D49: 1732.95 | E49: 1695.90 | F49: 1648.00 | G49: 1610.95 | H49: 1780.85 | I49: 1817.90 | J49: 1865.80 | K49: 1770 | L49: 1685.05 | M49: 3.32111
A50: 40 | B50: ATUL | C50: 9043.2 | D50: 9030.97 | E50: 8976.28 | F50: 8909.37 | G50: 8854.68 | H50: 9097.88 | I50: 9152.57 | J50: 9219.48 | K50: 9085.65 | L50: 8964.05 | M50: 0.11459
A51: 41 | B51: AUBANK | C51: 1065.3 | D51: 1063.90 | E51: 1041.30 | F51: 1017.30 | G51: 994.70 | H51: 1087.90 | I51: 1110.50 | J51: 1134.50 | K51: 1086.5 | L51: 1039.9 | M51: 15.11777
A52: 42 | B52: AUROPHARMA | C52: 732.1 | D52: 732.68 | E52: 726.47 | F52: 720.83 | G52: 714.62 | H52: 738.32 | I52: 744.53 | J52: 750.17 | K52: 738.9 | L52: 727.05 | M52: 10.91773
A53: 43 | B53: AVANTIFEED | C53: 575.65 | D53: 573.55 | E53: 566.10 | F53: 556.55 | G53: 549.10 | H53: 583.10 | I53: 590.55 | J53: 600.10 | K53: 581 | L53: 564 | M53: 3.64871
A54: 44 | B54: AXISBANK | C54: 696.35 | D54: 691.28 | E54: 684.07 | F54: 671.78 | G54: 664.57 | H54: 703.57 | I54: 710.78 | J54: 723.07 | K54: 698.5 | L54: 679 | M54: 85.5086
A55: 45 | B55: BAJAJ-AUTO | C55: 3277.1 | D55: 3273.73 | E55: 3254.87 | F55: 3232.63 | G55: 3213.77 | H55: 3295.97 | I55: 3314.83 | J55: 3337.07 | K55: 3292.6 | L55: 3251.5 | M55: 2.6668
A56: 46 | B56: BAJAJCON | C56: 198.3 | D56: 199.00 | E56: 196.95 | F56: 195.60 | G56: 193.55 | H56: 200.35 | I56: 202.40 | J56: 203.75 | K56: 201.05 | L56: 197.65 | M56: 5.25846
A57: 47 | B57: BAJAJELEC | C57: 1288.15 | D57: 1293.97 | E57: 1270.23 | F57: 1252.32 | G57: 1228.58 | H57: 1311.88 | I57: 1335.62 | J57: 1353.53 | K57: 1317.7 | L57: 1276.05 | M57: 1.17382
A58: 48 | B58: BAJAJFINSV | C58: 16981.3 | D58: 16809.27 | E58: 16578.53 | F58: 16175.77 | G58: 15945.03 | H58: 17212.03 | I58: 17442.77 | J58: 17845.53 | K58: 17040 | L58: 16406.5 | M58: 2.71061
A59: 49 | B59: BAJAJHLDNG | C59: 5349.85 | D59: 5344.03 | E59: 5248.47 | F59: 5147.08 | G59: 5051.52 | H59: 5445.42 | I59: 5540.98 | J59: 5642.37 | K59: 5439.6 | L59: 5242.65 | M59: 0.39246
A60: 50 | B60: BAJFINANCE | C60: 7219.6 | D60: 7146.18 | E60: 7048.42 | F60: 6877.23 | G60: 6779.47 | H60: 7317.37 | I60: 7415.13 | J60: 7586.32 | K60: 7243.95 | L60: 6975 | M60: 12.69725
A61: 51 | B61: BALAMINES | C61: 3720.25 | D61: 3645.17 | E61: 3540.33 | F61: 3360.42 | G61: 3255.58 | H61: 3825.08 | I61: 3929.92 | J61: 4109.83 | K61: 3750 | L61: 3465.25 | M61: 3.70464
A62: 52 | B62: BALKRISIND | C62: 2327.45 | D62: 2320.82 | E62: 2306.63 | F62: 2285.82 | G62: 2271.63 | H62: 2341.63 | I62: 2355.82 | J62: 2376.63 | K62: 2335 | L62: 2300 | M62: 1.2847
A63: 53 | B63: BALRAMCHIN | C63: 374.3 | D63: 370.67 | E63: 365.83 | F63: 357.37 | G63: 352.53 | H63: 379.13 | I63: 383.97 | J63: 392.43 | K63: 375.5 | L63: 362.2 | M63: 21.18488
A64: 54 | B64: BANDHANBNK | C64: 252.4 | D64: 253.20 | E64: 248.40 | F64: 244.40 | G64: 239.60 | H64: 257.20 | I64: 262.00 | J64: 266.00 | K64: 258 | L64: 249.2 | M64: 118.53152
A65: 55 | B65: BANKBARODA | C65: 83.8 | D65: 83.17 | E65: 82.23 | F65: 80.67 | G65: 79.73 | H65: 84.73 | I65: 85.67 | J65: 87.23 | K65: 84.1 | L65: 81.6 | M65: 211.77306
A66: 56 | B66: BANKINDIA | C66: 52.65 | D66: 52.28 | E66: 51.77 | F66: 50.88 | G66: 50.37 | H66: 53.17 | I66: 53.68 | J66: 54.57 | K66: 52.8 | L66: 51.4 | M66: 42.04439
A67: 57 | B67: BASF | C67: 3002.8 | D67: 3009.25 | E67: 2970.60 | F67: 2938.40 | G67: 2899.75 | H67: 3041.45 | I67: 3080.10 | J67: 3112.30 | K67: 3047.9 | L67: 2977.05 | M67: 0.40146
A68: 58 | B68: BATAINDIA | C68: 1859.1 | D68: 1865.00 | E68: 1846.30 | F68: 1833.50 | G68: 1814.80 | H68: 1877.80 | I68: 1896.50 | J68: 1909.30 | K68: 1883.7 | L68: 1852.2 | M68: 5.8339
A69: 59 | B69: BAYERCROP | C69: 4959.25 | D69: 4970.42 | E69: 4910.83 | F69: 4862.42 | G69: 4802.83 | H69: 5018.83 | I69: 5078.42 | J69: 5126.83 | K69: 5030 | L69: 4922 | M69: 0.29941
A70: 60 | B70: BBTC | C70: 1111.6 | D70: 1116.43 | E70: 1101.22 | F70: 1090.83 | G70: 1075.62 | H70: 1126.82 | I70: 1142.03 | J70: 1152.42 | K70: 1131.65 | L70: 1106.05 | M70: 0.28496
A71: 61 | B71: BDL | C71: 391.45 | D71: 391.62 | E71: 387.78 | F71: 384.12 | G71: 380.28 | H71: 395.28 | I71: 399.12 | J71: 402.78 | K71: 395.45 | L71: 387.95 | M71: 1.16181
A72: 62 | B72: BEL | C72: 211.25 | D72: 210.98 | E72: 209.77 | F72: 208.28 | G72: 207.07 | H72: 212.47 | I72: 213.68 | J72: 215.17 | K72: 212.2 | L72: 209.5 | M72: 29.91447
A73: 63 | B73: BEML | C73: 1635.85 | D73: 1645.00 | E73: 1620.85 | F73: 1605.85 | G73: 1581.70 | H73: 1660.00 | I73: 1684.15 | J73: 1699.15 | K73: 1669.15 | L73: 1630 | M73: 1.57091
A74: 64 | B74: BERGEPAINT | C74: 776.4 | D74: 775.57 | E74: 767.83 | F74: 759.27 | G74: 751.53 | H74: 784.13 | I74: 791.87 | J74: 800.43 | K74: 783.3 | L74: 767 | M74: 3.04157
A75: 65 | B75: BHARATFORG | C75: 710.9 | D75: 707.58 | E75: 700.82 | F75: 690.73 | G75: 683.97 | H75: 717.67 | I75: 724.43 | J75: 734.52 | K75: 714.35 | L75: 697.5 | M75: 11.77051
A76: 66 | B76: BHARATRAS | C76: 11887.3 | D76: 11943.23 | E76: 11686.47 | F76: 11485.63 | G76: 11228.87 | H76: 12144.07 | I76: 12400.83 | J76: 12601.67 | K76: 12200 | L76: 11742.4 | M76: 0.08977
A77: 67 | B77: BHARTIARTL | C77: 691.3 | D77: 689.00 | E77: 685.40 | F77: 679.50 | G77: 675.90 | H77: 694.90 | I77: 698.50 | J77: 704.40 | K77: 692.6 | L77: 683.1 | M77: 29.39833
A78: 68 | B78: BHEL | C78: 60.7 | D78: 60.13 | E78: 59.32 | F78: 57.93 | G78: 57.12 | H78: 61.52 | I78: 62.33 | J78: 63.72 | K78: 60.95 | L78: 58.75 | M78: 269.98477
A79: 69 | B79: BIOCON | C79: 362.75 | D79: 364.13 | E79: 360.77 | F79: 358.78 | G79: 355.42 | H79: 366.12 | I79: 369.48 | J79: 371.47 | K79: 367.5 | L79: 362.15 | M79: 8.68445
A80: 70 | B80: BIRLACORPN | C80: 1427.85 | D80: 1431.58 | E80: 1413.27 | F80: 1398.68 | G80: 1380.37 | H80: 1446.17 | I80: 1464.48 | J80: 1479.07 | K80: 1449.9 | L80: 1417 | M80: 0.6787
A81: 71 | B81: BLUEDART | C81: 6451.45 | D81: 6394.18 | E81: 6318.37 | F81: 6185.28 | G81: 6109.47 | H81: 6527.27 | I81: 6603.08 | J81: 6736.17 | K81: 6470 | L81: 6261.1 | M81: 0.17801
A82: 72 | B82: BLUESTARCO | C82: 1015.3 | D82: 1017.82 | E82: 1007.63 | F82: 999.97 | G82: 989.78 | H82: 1025.48 | I82: 1035.67 | J82: 1043.33 | K82: 1028 | L82: 1010.15 | M82: 0.24221
A83: 73 | B83: BOSCHLTD | C83: 17292.9 | D83: 17347.68 | E83: 17195.42 | F83: 17097.93 | G83: 16945.67 | H83: 17445.17 | I83: 17597.43 | J83: 17694.92 | K83: 17499.95 | L83: 17250.2 | M83: 0.26614
A84: 74 | B84: BPCL | C84: 386.1 | D84: 385.70 | E84: 384.40 | F84: 382.70 | G84: 381.40 | H84: 387.40 | I84: 388.70 | J84: 390.40 | K84: 387 | L84: 384 | M84: 32.34192
A85: 75 | B85: BRIGADE | C85: 494.05 | D85: 492.97 | E85: 486.93 | F85: 479.82 | G85: 473.78 | H85: 500.08 | I85: 506.12 | J85: 513.23 | K85: 499 | L85: 485.85 | M85: 4.64105
A86: 76 | B86: BRITANNIA | C86: 3617.55 | D86: 3608.58 | E86: 3591.17 | F86: 3564.78 | G86: 3547.37 | H86: 3634.97 | I86: 3652.38 | J86: 3678.77 | K86: 3626 | L86: 3582.2 | M86: 1.49689
A87: 77 | B87: BSE | C87: 1906 | D87: 1911.18 | E87: 1896.42 | F87: 1886.83 | G87: 1872.07 | H87: 1920.77 | I87: 1935.53 | J87: 1945.12 | K87: 1925.95 | L87: 1901.6 | M87: 4.38966
A88: 78 | B88: BSOFT | C88: 566.95 | D88: 561.52 | E88: 552.08 | F88: 537.22 | G88: 527.78 | H88: 576.38 | I88: 585.82 | J88: 600.68 | K88: 570.95 | L88: 546.65 | M88: 61.17415
A89: 79 | B89: BURGERKING | C89: 142.25 | D89: 142.10 | E89: 141.20 | F89: 140.15 | G89: 139.25 | H89: 143.15 | I89: 144.05 | J89: 145.10 | K89: 143 | L89: 141.05 | M89: 6.28207
A90: 80 | B90: CADILAHC | C90: 477.25 | D90: 480.03 | E90: 473.22 | F90: 469.18 | G90: 462.37 | H90: 484.07 | I90: 490.88 | J90: 494.92 | K90: 486.85 | L90: 476 | M90: 13.22739
A91: 81 | B91: CAMS | C91: 2737.7 | D91: 2719.90 | E91: 2689.80 | F91: 2641.90 | G91: 2611.80 | H91: 2767.80 | I91: 2797.90 | J91: 2845.80 | K91: 2750 | L91: 2672 | M91: 1.49106
A92: 82 | B92: CANBK | C92: 205.45 | D92: 203.48 | E92: 200.57 | F92: 195.68 | G92: 192.77 | H92: 208.37 | I92: 211.28 | J92: 216.17 | K92: 206.4 | L92: 198.6 | M92: 77.90751
A93: 83 | B93: CANFINHOME | C93: 574 | D93: 568.62 | E93: 559.43 | F93: 544.87 | G93: 535.68 | H93: 583.18 | I93: 592.37 | J93: 606.93 | K93: 577.8 | L93: 554.05 | M93: 7.016
A94: 84 | B94: CAPLIPOINT | C94: 872.45 | D94: 871.72 | E94: 859.43 | F94: 846.42 | G94: 834.13 | H94: 884.73 | I94: 897.02 | J94: 910.03 | K94: 884 | L94: 858.7 | M94: 1.0881
A95: 85 | B95: CARBORUNIV | C95: 1006.1 | D95: 1014.03 | E95: 993.07 | F95: 980.03 | G95: 959.07 | H95: 1027.07 | I95: 1048.03 | J95: 1061.07 | K95: 1035 | L95: 1001 | M95: 4.98016
A96: 86 | B96: CASTROLIND | C96: 124.05 | D96: 123.63 | E96: 122.77 | F96: 121.48 | G96: 120.62 | H96: 124.92 | I96: 125.78 | J96: 127.07 | K96: 124.5 | L96: 122.35 | M96: 4.56456
A97: 87 | B97: CCL | C97: 426.3 | D97: 428.08 | E97: 423.22 | F97: 420.13 | G97: 415.27 | H97: 431.17 | I97: 436.03 | J97: 439.12 | K97: 432.95 | L97: 425 | M97: 1.97967
A98: 88 | B98: CDSL | C98: 1532.85 | D98: 1524.63 | E98: 1509.27 | F98: 1485.68 | G98: 1470.32 | H98: 1548.22 | I98: 1563.58 | J98: 1587.17 | K98: 1540 | L98: 1501.05 | M98: 6.65708
A99: 89 | B99: CEATLTD | C99: 1209.75 | D99: 1215.92 | E99: 1188.83 | F99: 1167.92 | G99: 1140.83 | H99: 1236.83 | I99: 1263.92 | J99: 1284.83 | K99: 1243 | L99: 1195 | M99: 2.03283
A100: 90 | B100: CENTRALBK | C100: 21.45 | D100: 21.47 | E100: 21.23 | F100: 21.02 | G100: 20.78 | H100: 21.68 | I100: 21.92 | J100: 22.13 | K100: 21.7 | L100: 21.25 | M100: 29.00536
A101: 91 | B101: CENTURYPLY | C101: 605.8 | D101: 608.72 | E101: 597.43 | F101: 589.07 | G101: 577.78 | H101: 617.08 | I101: 628.37 | J101: 636.73 | K101: 620 | L101: 600.35 | M101: 2.36451
A102: 92 | B102: CENTURYTEX | C102: 918.05 | D102: 915.23 | E102: 906.77 | F102: 895.48 | G102: 887.02 | H102: 926.52 | I102: 934.98 | J102: 946.27 | K102: 923.7 | L102: 903.95 | M102: 4.70443
A103: 93 | B103: CERA | C103: 4941.55 | D103: 4937.15 | E103: 4825.85 | F103: 4710.15 | G103: 4598.85 | H103: 5052.85 | I103: 5164.15 | J103: 5279.85 | K103: 5048.45 | L103: 4821.45 | M103: 0.30435
A104: 94 | B104: CESC | C104: 88.4 | D104: 88.03 | E104: 87.17 | F104: 85.93 | G104: 85.07 | H104: 89.27 | I104: 90.13 | J104: 91.37 | K104: 88.9 | L104: 86.8 | M104: 12.63991
A105: 95 | B105: CGCL | C105: 513.2 | D105: 517.90 | E105: 506.40 | F105: 499.60 | G105: 488.10 | H105: 524.70 | I105: 536.20 | J105: 543.00 | K105: 529.4 | L105: 511.1 | M105: 0.33476
A106: 96 | B106: CGPOWER | C106: 196.1 | D106: 196.67 | E106: 194.53 | F106: 192.97 | G106: 190.83 | H106: 198.23 | I106: 200.37 | J106: 201.93 | K106: 198.8 | L106: 195.1 | M106: 13.63567
A107: 97 | B107: CHALET | C107: 218.05 | D107: 218.03 | E107: 214.47 | F107: 210.88 | G107: 207.32 | H107: 221.62 | I107: 225.18 | J107: 228.77 | K107: 221.6 | L107: 214.45 | M107: 1.07831
A108: 98 | B108: CHAMBLFERT | C108: 400.3 | D108: 398.83 | E108: 393.47 | F108: 386.63 | G108: 381.27 | H108: 405.67 | I108: 411.03 | J108: 417.87 | K108: 404.2 | L108: 392 | M108: 11.63907
A109: 99 | B109: CHOLAFIN | C109: 537.25 | D109: 531.98 | E109: 524.62 | F109: 511.98 | G109: 504.62 | H109: 544.62 | I109: 551.98 | J109: 564.62 | K109: 539.35 | L109: 519.35 | M109: 18.73169
A110: 100 | B110: CHOLAHLDNG | C110: 648.55 | D110: 652.52 | E110: 643.03 | F110: 637.52 | G110: 628.03 | H110: 658.03 | I110: 667.52 | J110: 673.03 | K110: 662 | L110: 647 | M110: 0.98168
A111: 101 | B111: CIPLA | C111: 930.5 | D111: 934.73 | E111: 921.57 | F111: 912.63 | G111: 899.47 | H111: 943.67 | I111: 956.83 | J111: 965.77 | K111: 947.9 | L111: 925.8 | M111: 20.1314
A112: 102 | B112: COALINDIA | C112: 155.3 | D112: 152.75 | E112: 149.55 | F112: 143.80 | G112: 140.60 | H112: 158.50 | I112: 161.70 | J112: 167.45 | K112: 155.95 | L112: 147 | M112: 294.8672
A113: 103 | B113: COCHINSHIP | C113: 355.4 | D113: 356.22 | E113: 353.83 | F113: 352.27 | G113: 349.88 | H113: 357.78 | I113: 360.17 | J113: 361.73 | K113: 358.6 | L113: 354.65 | M113: 0.77521
A114: 104 | B114: COFORGE | C114: 5973.15 | D114: 5962.72 | E114: 5920.43 | F114: 5867.72 | G114: 5825.43 | H114: 6015.43 | I114: 6057.72 | J114: 6110.43 | K114: 6005 | L114: 5910 | M114: 3.13011
A115: 105 | B115: COLPAL | C115: 1463.8 | D115: 1472.58 | E115: 1453.22 | F115: 1442.63 | G115: 1423.27 | H115: 1483.17 | I115: 1502.53 | J115: 1513.12 | K115: 1491.95 | L115: 1462 | M115: 5.07553
A116: 106 | B116: CONCOR | C116: 619.8 | D116: 623.82 | E116: 610.03 | F116: 600.27 | G116: 586.48 | H116: 633.58 | I116: 647.37 | J116: 657.13 | K116: 637.6 | L116: 614.05 | M116: 4.53839
A117: 107 | B117: COROMANDEL | C117: 756.1 | D117: 757.05 | E117: 751.65 | F117: 747.20 | G117: 741.80 | H117: 761.50 | I117: 766.90 | J117: 771.35 | K117: 762.45 | L117: 752.6 | M117: 2.44607
A118: 108 | B118: CREDITACC | C118: 598.85 | D118: 600.75 | E118: 595.10 | F118: 591.35 | G118: 585.70 | H118: 604.50 | I118: 610.15 | J118: 613.90 | K118: 606.4 | L118: 597 | M118: 0.31586
A119: 109 | B119: CRISIL | C119: 2879.75 | D119: 2891.78 | E119: 2862.02 | F119: 2844.28 | G119: 2814.52 | H119: 2909.52 | I119: 2939.28 | J119: 2957.02 | K119: 2921.55 | L119: 2874.05 | M119: 0.22036
A120: 110 | B120: CROMPTON | C120: 441.45 | D120: 440.47 | E120: 437.03 | F120: 432.62 | G120: 429.18 | H120: 444.88 | I120: 448.32 | J120: 452.73 | K120: 443.9 | L120: 436.05 | M120: 3.49612
A121: 111 | B121: CSBBANK | C121: 237.25 | D121: 236.53 | E121: 233.77 | F121: 230.28 | G121: 227.52 | H121: 240.02 | I121: 242.78 | J121: 246.27 | K121: 239.3 | L121: 233.05 | M121: 2.30955
A122: 112 | B122: CUB | C122: 138.6 | D122: 137.38 | E122: 135.87 | F122: 133.13 | G122: 131.62 | H122: 140.12 | I122: 141.63 | J122: 144.37 | K122: 138.9 | L122: 134.65 | M122: 15.03638
A123: 113 | B123: CUMMINSIND | C123: 942.25 | D123: 945.28 | E123: 935.87 | F123: 929.48 | G123: 920.07 | H123: 951.67 | I123: 961.08 | J123: 967.47 | K123: 954.7 | L123: 938.9 | M123: 1.51922
A124: 114 | B124: CYIENT | C124: 1065.8 | D124: 1055.90 | E124: 1039.90 | F124: 1014.00 | G124: 998.00 | H124: 1081.80 | I124: 1097.80 | J124: 1123.70 | K124: 1071.9 | L124: 1030 | M124: 4.47844
A125: 115 | B125: DABUR | C125: 581.15 | D125: 581.53 | E125: 578.17 | F125: 575.18 | G125: 571.82 | H125: 584.52 | I125: 587.88 | J125: 590.87 | K125: 584.9 | L125: 578.55 | M125: 11.61811
A126: 116 | B126: DALBHARAT | C126: 1881.85 | D126: 1873.08 | E126: 1853.57 | F126: 1825.28 | G126: 1805.77 | H126: 1901.37 | I126: 1920.88 | J126: 1949.17 | K126: 1892.6 | L126: 1844.8 | M126: 1.41011
A127: 117 | B127: DBL | C127: 432.7 | D127: 434.23 | E127: 428.47 | F127: 424.23 | G127: 418.47 | H127: 438.47 | I127: 444.23 | J127: 448.47 | K127: 440 | L127: 430 | M127: 6.08259
A128: 118 | B128: DCBBANK | C128: 80 | D128: 79.97 | E128: 79.18 | F128: 78.37 | G128: 77.58 | H128: 80.78 | I128: 81.57 | J128: 82.38 | K128: 80.75 | L128: 79.15 | M128: 16.7389
A129: 119 | B129: DCMSHRIRAM | C129: 970 | D129: 968.95 | E129: 956.05 | F129: 942.10 | G129: 929.20 | H129: 982.90 | I129: 995.80 | J129: 1009.75 | K129: 981.85 | L129: 955 | M129: 0.23665
A130: 120 | B130: DEEPAKNTR | C130: 2530.15 | D130: 2527.98 | E130: 2498.02 | F130: 2465.88 | G130: 2435.92 | H130: 2560.12 | I130: 2590.08 | J130: 2622.22 | K130: 2557.95 | L130: 2495.85 | M130: 9.18554
A131: 121 | B131: DELTACORP | C131: 258.55 | D131: 258.52 | E131: 255.23 | F131: 251.92 | G131: 248.63 | H131: 261.83 | I131: 265.12 | J131: 268.43 | K131: 261.8 | L131: 255.2 | M131: 42.05833
A132: 122 | B132: DHANI | C132: 161.05 | D132: 162.02 | E132: 157.53 | F132: 154.02 | G132: 149.53 | H132: 165.53 | I132: 170.02 | J132: 173.53 | K132: 166.5 | L132: 158.5 | M132: 17.97185
A133: 123 | B133: DHANUKA | C133: 782.6 | D133: 788.17 | E133: 766.33 | F133: 750.07 | G133: 728.23 | H133: 804.43 | I133: 826.27 | J133: 842.53 | K133: 810 | L133: 771.9 | M133: 3.82264
A134: 124 | B134: DIVISLAB | C134: 4651.25 | D134: 4667.33 | E134: 4625.92 | F134: 4600.58 | G134: 4559.17 | H134: 4692.67 | I134: 4734.08 | J134: 4759.42 | K134: 4708.75 | L134: 4642 | M134: 2.03444
A135: 125 | B135: DIXON | C135: 5517.1 | D135: 5531.73 | E135: 5490.37 | F135: 5463.63 | G135: 5422.27 | H135: 5558.47 | I135: 5599.83 | J135: 5626.57 | K135: 5573.1 | L135: 5505 | M135: 1.61271
A136: 126 | B136: DLF | C136: 394.75 | D136: 394.33 | E136: 390.92 | F136: 387.08 | G136: 383.67 | H136: 398.17 | I136: 401.58 | J136: 405.42 | K136: 397.75 | L136: 390.5 | M136: 32.74712
A137: 127 | B137: DMART | C137: 4711.5 | D137: 4737.23 | E137: 4675.47 | F137: 4639.43 | G137: 4577.67 | H137: 4773.27 | I137: 4835.03 | J137: 4871.07 | K137: 4799 | L137: 4701.2 | M137: 5.34384
A138: 128 | B138: DRREDDY | C138: 4853.15 | D138: 4877.05 | E138: 4823.80 | F138: 4794.45 | G138: 4741.20 | H138: 4906.40 | I138: 4959.65 | J138: 4989.00 | K138: 4930.3 | L138: 4847.7 | M138: 2.92601
A139: 129 | B139: ECLERX | C139: 2787.35 | D139: 2801.78 | E139: 2650.57 | F139: 2513.78 | G139: 2362.57 | H139: 2938.57 | I139: 3089.78 | J139: 3226.57 | K139: 2953 | L139: 2665 | M139: 8.48162
A140: 130 | B140: EDELWEISS | C140: 75.9 | D140: 75.33 | E140: 73.32 | F140: 70.73 | G140: 68.72 | H140: 77.92 | I140: 79.93 | J140: 82.52 | K140: 77.35 | L140: 72.75 | M140: 35.64826
A141: 131 | B141: EICHERMOT | C141: 2718.8 | D141: 2690.83 | E141: 2648.07 | F141: 2577.33 | G141: 2534.57 | H141: 2761.57 | I141: 2804.33 | J141: 2875.07 | K141: 2733.6 | L141: 2620.1 | M141: 24.57647
A142: 132 | B142: EIDPARRY | C142: 455.8 | D142: 456.18 | E142: 451.12 | F142: 446.43 | G142: 441.37 | H142: 460.87 | I142: 465.93 | J142: 470.62 | K142: 461.25 | L142: 451.5 | M142: 1.00822
A143: 133 | B143: EIHOTEL | C143: 125.15 | D143: 124.73 | E143: 123.82 | F143: 122.48 | G143: 121.57 | H143: 126.07 | I143: 126.98 | J143: 128.32 | K143: 125.65 | L143: 123.4 | M143: 2.18983
A144: 134 | B144: ELGIEQUIP | C144: 304.85 | D144: 306.62 | E144: 298.38 | F144: 291.92 | G144: 283.68 | H144: 313.08 | I144: 321.32 | J144: 327.78 | K144: 314.85 | L144: 300.15 | M144: 5.3177
A145: 135 | B145: EMAMILTD | C145: 521.7 | D145: 525.17 | E145: 515.53 | F145: 509.37 | G145: 499.73 | H145: 531.33 | I145: 540.97 | J145: 547.13 | K145: 534.8 | L145: 519 | M145: 2.33807
A146: 136 | B146: ENDURANCE | C146: 1698.55 | D146: 1695.52 | E146: 1681.03 | F146: 1663.52 | G146: 1649.03 | H146: 1713.03 | I146: 1727.52 | J146: 1745.03 | K146: 1710 | L146: 1678 | M146: 0.5355
A147: 137 | B147: ENGINERSIN | C147: 70.25 | D147: 70.08 | E147: 69.77 | F147: 69.28 | G147: 68.97 | H147: 70.57 | I147: 70.88 | J147: 71.37 | K147: 70.4 | L147: 69.6 | M147: 7.82044
A148: 138 | B148: EPL | C148: 210.75 | D148: 210.10 | E148: 206.20 | F148: 201.65 | G148: 197.75 | H148: 214.65 | I148: 218.55 | J148: 223.10 | K148: 214 | L148: 205.55 | M148: 3.391
A149: 139 | B149: EQUITAS | C149: 111.35 | D149: 112.53 | E149: 108.62 | F149: 105.88 | G149: 101.97 | H149: 115.27 | I149: 119.18 | J149: 121.92 | K149: 116.45 | L149: 109.8 | M149: 39.95569
A150: 140 | B150: EQUITASBNK | C150: 59.5 | D150: 59.80 | E150: 59.10 | F150: 58.70 | G150: 58.00 | H150: 60.20 | I150: 60.90 | J150: 61.30 | K150: 60.5 | L150: 59.4 | M150: 4.31603
A151: 141 | B151: ERIS | C151: 764.35 | D151: 764.73 | E151: 760.62 | F151: 756.88 | G151: 752.77 | H151: 768.47 | I151: 772.58 | J151: 776.32 | K151: 768.85 | L151: 761 | M151: 0.48468
A152: 142 | B152: ESCORTS | C152: 1901.9 | D152: 1903.92 | E152: 1892.98 | F152: 1884.07 | G152: 1873.13 | H152: 1912.83 | I152: 1923.77 | J152: 1932.68 | K152: 1914.85 | L152: 1895 | M152: 7.29761
A153: 143 | B153: EXIDEIND | C153: 170.35 | D153: 170.45 | E153: 168.90 | F153: 167.45 | G153: 165.90 | H153: 171.90 | I153: 173.45 | J153: 174.90 | K153: 172 | L153: 169 | M153: 31.0137
A154: 144 | B154: FACT | C154: 130.7 | D154: 131.40 | E154: 129.25 | F154: 127.80 | G154: 125.65 | H154: 132.85 | I154: 135.00 | J154: 136.45 | K154: 133.55 | L154: 129.95 | M154: 3.68612
A155: 145 | B155: FDC | C155: 303.3 | D155: 303.98 | E155: 301.32 | F155: 299.33 | G155: 296.67 | H155: 305.97 | I155: 308.63 | J155: 310.62 | K155: 306.65 | L155: 302 | M155: 1.39963
A156: 146 | B156: FEDERALBNK | C156: 87.2 | D156: 86.00 | E156: 84.15 | F156: 81.10 | G156: 79.25 | H156: 89.05 | I156: 90.90 | J156: 93.95 | K156: 87.85 | L156: 82.95 | M156: 230.8949
A157: 147 | B157: FINCABLES | C157: 538.05 | D157: 535.73 | E157: 527.62 | F157: 517.18 | G157: 509.07 | H157: 546.17 | I157: 554.28 | J157: 564.72 | K157: 543.85 | L157: 525.3 | M157: 1.64248
A158: 148 | B158: FINEORG | C158: 3797.15 | D158: 3776.73 | E158: 3718.47 | F158: 3639.78 | G158: 3581.52 | H158: 3855.42 | I158: 3913.68 | J158: 3992.37 | K158: 3835 | L158: 3698.05 | M158: 0.20343
A159: 149 | B159: FINPIPE | C159: 207.4 | D159: 208.12 | E159: 206.23 | F159: 205.07 | G159: 203.18 | H159: 209.28 | I159: 211.17 | J159: 212.33 | K159: 210 | L159: 206.95 | M159: 3.65024
A160: 150 | B160: FLUOROCHEM | C160: 2478.05 | D160: 2455.47 | E160: 2422.93 | F160: 2367.82 | G160: 2335.28 | H160: 2510.58 | I160: 2543.12 | J160: 2598.23 | K160: 2488 | L160: 2400.35 | M160: 0.91918
A161: 151 | B161: FORTIS | C161: 309.5 | D161: 306.70 | E161: 302.10 | F161: 294.70 | G161: 290.10 | H161: 314.10 | I161: 318.70 | J161: 326.10 | K161: 311.3 | L161: 299.3 | M161: 47.20831
A162: 152 | B162: FRETAIL | C162: 50 | D162: 50.08 | E162: 48.92 | F162: 47.83 | G162: 46.67 | H162: 51.17 | I162: 52.33 | J162: 53.42 | K162: 51.25 | L162: 49 | M162: 42.98765
A163: 153 | B163: FSL | C163: 188.2 | D163: 187.75 | E163: 184.10 | F163: 180.00 | G163: 176.35 | H163: 191.85 | I163: 195.50 | J163: 199.60 | K163: 191.4 | L163: 183.65 | M163: 82.1236
A164: 154 | B164: GAEL | C164: 166.6 | D164: 167.82 | E164: 164.73 | F164: 162.87 | G164: 159.78 | H164: 169.68 | I164: 172.77 | J164: 174.63 | K164: 170.9 | L164: 165.95 | M164: 1.50139
A165: 155 | B165: GAIL | C165: 131.45 | D165: 130.78 | E165: 129.97 | F165: 128.48 | G165: 127.67 | H165: 132.27 | I165: 133.08 | J165: 134.57 | K165: 131.6 | L165: 129.3 | M165: 44.78058
A166: 156 | B166: GALAXYSURF | C166: 3142 | D166: 3147.33 | E166: 3114.67 | F166: 3087.33 | G166: 3054.67 | H166: 3174.67 | I166: 3207.33 | J166: 3234.67 | K166: 3180 | L166: 3120 | M166: 0.36854
A167: 157 | B167: GARFIBRES | C167: 3263.7 | D167: 3257.80 | E167: 3165.90 | F167: 3068.10 | G167: 2976.20 | H167: 3355.60 | I167: 3447.50 | J167: 3545.30 | K167: 3349.7 | L167: 3160 | M167: 0.23858
A168: 158 | B168: GESHIP | C168: 302.1 | D168: 300.70 | E168: 298.50 | F168: 294.90 | G168: 292.70 | H168: 304.30 | I168: 306.50 | J168: 310.10 | K168: 302.9 | L168: 297.1 | M168: 3.95148
A169: 159 | B169: GICRE | C169: 140.1 | D169: 140.45 | E169: 139.00 | F169: 137.90 | G169: 136.45 | H169: 141.55 | I169: 143.00 | J169: 144.10 | K169: 141.9 | L169: 139.35 | M169: 4.58544
A170: 160 | B170: GILLETTE | C170: 5297.6 | D170: 5298.47 | E170: 5268.03 | F170: 5238.47 | G170: 5208.03 | H170: 5328.03 | I170: 5358.47 | J170: 5388.03 | K170: 5328.9 | L170: 5268.9 | M170: 0.04189
A171: 161 | B171: GLAND | C171: 3851.3 | D171: 3862.23 | E171: 3830.22 | F171: 3809.13 | G171: 3777.12 | H171: 3883.32 | I171: 3915.33 | J171: 3936.42 | K171: 3894.25 | L171: 3841.15 | M171: 0.67056
A172: 162 | B172: GLAXO | C172: 1737.15 | D172: 1746.53 | E172: 1722.62 | F172: 1708.08 | G172: 1684.17 | H172: 1761.07 | I172: 1784.98 | J172: 1799.52 | K172: 1770.45 | L172: 1732 | M172: 0.29512
A173: 163 | B173: GLENMARK | C173: 525.25 | D173: 526.25 | E173: 521.30 | F173: 517.35 | G173: 512.40 | H173: 530.20 | I173: 535.15 | J173: 539.10 | K173: 531.2 | L173: 522.3 | M173: 5.07942
A174: 164 | B174: GMMPFAUDLR | C174: 4917.1 | D174: 4912.80 | E174: 4874.60 | F174: 4832.10 | G174: 4793.90 | H174: 4955.30 | I174: 4993.50 | J174: 5036.00 | K174: 4951 | L174: 4870.3 | M174: 0.62076
A175: 165 | B175: GMRINFRA | C175: 47.4 | D175: 47.03 | E175: 45.87 | F175: 44.33 | G175: 43.17 | H175: 48.57 | I175: 49.73 | J175: 51.27 | K175: 48.2 | L175: 45.5 | M175: 390.48484
A176: 166 | B176: GNFC | C176: 444.65 | D176: 444.18 | E176: 438.57 | F176: 432.48 | G176: 426.87 | H176: 450.27 | I176: 455.88 | J176: 461.97 | K176: 449.8 | L176: 438.1 | M176: 11.99374
A177: 167 | B177: GODFRYPHLP | C177: 1131.7 | D177: 1130.53 | E177: 1122.17 | F177: 1112.63 | G177: 1104.27 | H177: 1140.07 | I177: 1148.43 | J177: 1157.97 | K177: 1138.9 | L177: 1121 | M177: 0.19523
A178: 168 | B178: GODREJAGRO | C178: 524.8 | D178: 524.32 | E178: 518.73 | F178: 512.67 | G178: 507.08 | H178: 530.38 | I178: 535.97 | J178: 542.03 | K178: 529.9 | L178: 518.25 | M178: 2.10355
A179: 169 | B179: GODREJCP | C179: 957.6 | D179: 963.25 | E179: 950.50 | F179: 943.40 | G179: 930.65 | H179: 970.35 | I179: 983.10 | J179: 990.20 | K179: 976 | L179: 956.15 | M179: 3.65511
A180: 170 | B180: GODREJIND | C180: 631.3 | D180: 630.30 | E180: 626.25 | F180: 621.20 | G180: 617.15 | H180: 635.35 | I180: 639.40 | J180: 644.45 | K180: 634.35 | L180: 625.25 | M180: 3.23374
A181: 171 | B181: GODREJPROP | C181: 1903.6 | D181: 1897.67 | E181: 1880.93 | F181: 1858.27 | G181: 1841.53 | H181: 1920.33 | I181: 1937.07 | J181: 1959.73 | K181: 1914.4 | L181: 1875 | M181: 6.64397
A182: 172 | B182: GPPL | C182: 98.9 | D182: 99.32 | E182: 98.18 | F182: 97.47 | G182: 96.33 | H182: 100.03 | I182: 101.17 | J182: 101.88 | K182: 100.45 | L182: 98.6 | M182: 3.66287
A183: 173 | B183: GRANULES | C183: 335.95 | D183: 336.40 | E183: 333.45 | F183: 330.95 | G183: 328.00 | H183: 338.90 | I183: 341.85 | J183: 344.35 | K183: 339.35 | L183: 333.9 | M183: 6.51238
A184: 174 | B184: GRAPHITE | C184: 507.9 | D184: 510.63 | E184: 502.27 | F184: 496.63 | G184: 488.27 | H184: 516.27 | I184: 524.63 | J184: 530.27 | K184: 519 | L184: 505 | M184: 16.38675
A185: 175 | B185: GRASIM | C185: 1661.6 | D185: 1648.48 | E185: 1630.12 | F185: 1598.63 | G185: 1580.27 | H185: 1679.97 | I185: 1698.33 | J185: 1729.82 | K185: 1666.85 | L185: 1617 | M185: 6.26473
A186: 176 | B186: GREAVESCOT | C186: 155.8 | D186: 151.93 | E186: 145.87 | F186: 135.93 | G186: 129.87 | H186: 161.87 | I186: 167.93 | J186: 177.87 | K186: 158 | L186: 142 | M186: 157.37631
A187: 177 | B187: GRINDWELL | C187: 1949.3 | D187: 1948.75 | E187: 1923.55 | F187: 1897.80 | G187: 1872.60 | H187: 1974.50 | I187: 1999.70 | J187: 2025.45 | K187: 1973.95 | L187: 1923 | M187: 1.38451
A188: 178 | B188: GSFC | C188: 121.35 | D188: 121.70 | E188: 120.65 | F188: 119.95 | G188: 118.90 | H188: 122.40 | I188: 123.45 | J188: 124.15 | K188: 122.75 | L188: 121 | M188: 7.11053
A189: 179 | B189: GSPL | C189: 299 | D189: 298.40 | E189: 294.80 | F189: 290.60 | G189: 287.00 | H189: 302.60 | I189: 306.20 | J189: 310.40 | K189: 302 | L189: 294.2 | M189: 2.82539
A190: 180 | B190: GUJALKALI | C190: 653.8 | D190: 655.85 | E190: 645.00 | F190: 636.20 | G190: 625.35 | H190: 664.65 | I190: 675.50 | J190: 684.30 | K190: 666.7 | L190: 647.05 | M190: 1.37456
A191: 181 | B191: GUJGASLTD | C191: 641 | D191: 640.00 | E191: 636.00 | F191: 631.00 | G191: 627.00 | H191: 645.00 | I191: 649.00 | J191: 654.00 | K191: 644 | L191: 635 | M191: 6.77253
A192: 182 | B192: HAL | C192: 1233.7 | D192: 1230.47 | E192: 1215.28 | F192: 1196.87 | G192: 1181.68 | H192: 1248.88 | I192: 1264.07 | J192: 1282.48 | K192: 1245.65 | L192: 1212.05 | M192: 5.52027
A193: 183 | B193: HAPPSTMNDS | C193: 1337.55 | D193: 1327.18 | E193: 1314.37 | F193: 1291.18 | G193: 1278.37 | H193: 1350.37 | I193: 1363.18 | J193: 1386.37 | K193: 1340 | L193: 1304 | M193: 3.91262
A194: 184 | B194: HATHWAY | C194: 21.95 | D194: 21.95 | E194: 21.50 | F194: 21.05 | G194: 20.60 | H194: 22.40 | I194: 22.85 | J194: 23.30 | K194: 22.4 | L194: 21.5 | M194: 34.71022
A195: 185 | B195: HATSUN | C195: 1262.15 | D195: 1266.58 | E195: 1253.22 | F195: 1244.28 | G195: 1230.92 | H195: 1275.52 | I195: 1288.88 | J195: 1297.82 | K195: 1279.95 | L195: 1257.65 | M195: 0.43367
A196: 186 | B196: HAVELLS | C196: 1406.15 | D196: 1407.05 | E196: 1395.10 | F196: 1384.05 | G196: 1372.10 | H196: 1418.10 | I196: 1430.05 | J196: 1441.10 | K196: 1419 | L196: 1396 | M196: 2.7848
A197: 187 | B197: HCLTECH | C197: 1326.15 | D197: 1326.72 | E197: 1313.53 | F197: 1300.92 | G197: 1287.73 | H197: 1339.33 | I197: 1352.52 | J197: 1365.13 | K197: 1339.9 | L197: 1314.1 | M197: 26.61272
A198: 188 | B198: HDFC | C198: 2636.4 | D198: 2621.17 | E198: 2602.33 | F198: 2568.27 | G198: 2549.43 | H198: 2655.23 | I198: 2674.07 | J198: 2708.13 | K198: 2640 | L198: 2587.1 | M198: 12.56497
A199: 189 | B199: HDFCAMC | C199: 2466.2 | D199: 2463.55 | E199: 2452.65 | F199: 2439.10 | G199: 2428.20 | H199: 2477.10 | I199: 2488.00 | J199: 2501.55 | K199: 2474.45 | L199: 2450 | M199: 1.60239
A200: 190 | B200: HDFCBANK | C200: 1519.65 | D200: 1507.72 | E200: 1492.43 | F200: 1465.22 | G200: 1449.93 | H200: 1534.93 | I200: 1550.22 | J200: 1577.43 | K200: 1523 | L200: 1480.5 | M200: 45.34592
A201: 191 | B201: HDFCLIFE | C201: 650.5 | D201: 650.48 | E201: 646.32 | F201: 642.13 | G201: 637.97 | H201: 654.67 | I201: 658.83 | J201: 663.02 | K201: 654.65 | L201: 646.3 | M201: 18.92087
A202: 192 | B202: HEG | C202: 1772.7 | D202: 1787.57 | E202: 1752.13 | F202: 1731.57 | G202: 1696.13 | H202: 1808.13 | I202: 1843.57 | J202: 1864.13 | K202: 1823 | L202: 1767 | M202: 3.04967
A203: 193 | B203: HEIDELBERG | C203: 226.25 | D203: 226.07 | E203: 223.53 | F203: 220.82 | G203: 218.28 | H203: 228.78 | I203: 231.32 | J203: 234.03 | K203: 228.6 | L203: 223.35 | M203: 1.53559
A204: 194 | B204: HEMIPROP | C204: 132.7 | D204: 131.53 | E204: 127.62 | F204: 122.53 | G204: 118.62 | H204: 136.62 | I204: 140.53 | J204: 145.62 | K204: 135.45 | L204: 126.45 | M204: 10.81429
A205: 195 | B205: HEROMOTOCO | C205: 2476.6 | D205: 2478.70 | E205: 2460.90 | F205: 2445.20 | G205: 2427.40 | H205: 2494.40 | I205: 2512.20 | J205: 2527.90 | K205: 2496.5 | L205: 2463 | M205: 2.34912
A206: 196 | B206: HFCL | C206: 80.8 | D206: 80.55 | E206: 79.10 | F206: 77.40 | G206: 75.95 | H206: 82.25 | I206: 83.70 | J206: 85.40 | K206: 82 | L206: 78.85 | M206: 115.38209
... 320 more rows

Sheet Bulk Deals
E6: Back To Main Page
A7: Subject : | B7: BULK DEAL | D7: =Main!B10 -> 2022-01-04
A9: Date | B9: Scrip code | C9: Scrip Name | D9: Client Name | E9: Buy / Sell | F9: Quantity Traded | G9: Trade Price / Wt.Avg.trade price | H9: Exchange
A10: 2022-01-03 | B10: 543377 | C10: ADISHAKTI | D10: NNM SECURITIES PVT LTD | E10: BUY | F10: 10,000 | G10: 8.3 | H10: BSE
A11: 2022-01-03 | B11: 543377 | C11: ADISHAKTI | D11: NNM SECURITIES PVT LTD | E11: SELL | F11: 30,000 | G11: 8.77 | H11: BSE
A12: 2022-01-03 | B12: 531991 | C12: AMRAAGRI | D12: B.W.TRADERS | E12: BUY | F12: 673,654 | G12: 1.85 | H12: BSE
A13: 2022-01-03 | B13: 530109 | C13: ANUPAM | D13: PANKAJ HIRJI DEDHIA | E13: SELL | F13: 1,500,000 | G13: 4.35 | H13: BSE
A14: 2022-01-03 | B14: 530109 | C14: ANUPAM | D14: JAYESH MALSI RITA | E14: SELL | F14: 1,800,000 | G14: 4.35 | H14: BSE
A15: 2022-01-03 | B15: 542865 | C15: ANUROOP | D15: ZYANA STOCKS AND COMMODITIES | E15: SELL | F15: 200,000 | G15: 16.25 | H15: BSE
A16: 2022-01-03 | B16: 542865 | C16: ANUROOP | D16: SHERWOOD SECURITIES PVT LTD | E16: SELL | F16: 140,000 | G16: 16.27 | H16: BSE
A17: 2022-01-03 | B17: 542865 | C17: ANUROOP | D17: BHAVESH JAYANTILAL SHAH | E17: BUY | F17: 100,000 | G17: 16.25 | H17: BSE
A18: 2022-01-03 | B18: 542865 | C18: ANUROOP | D18: DARSHIL RAJESH SHAH | E18: BUY | F18: 100,000 | G18: 16.25 | H18: BSE
A19: 2022-01-03 | B19: 542721 | C19: ARL | D19: SILKON TRADES LLP | E19: BUY | F19: 2,261 | G19: 280.5 | H19: BSE
A20: 2022-01-03 | B20: 542721 | C20: ARL | D20: SILKON TRADES LLP | E20: SELL | F20: 111,352 | G20: 280.28 | H20: BSE
A21: 2022-01-03 | B21: 541865 | C21: ASRL | D21: ROHAN GUPTA | E21: BUY | F21: 100,000 | G21: 201.85 | H21: BSE
A22: 2022-01-03 | B22: 539288 | C22: AVI | D22: JATIN MANUBHAI SHAH | E22: BUY | F22: 30,000 | G22: 43.7 | H22: BSE
A23: 2022-01-03 | B23: 539288 | C23: AVI | D23: JATIN MANUBHAI SHAH | E23: BUY | F23: 50,000 | G23: 43.7 | H23: BSE
A24: 2022-01-03 | B24: 539288 | C24: AVI | D24: NEXT STEP ADVISORS LLP | E24: SELL | F24: 70,000 | G24: 43.8 | H24: BSE
A25: 2022-01-03 | B25: 539288 | C25: AVI | D25: MEENA SUNIL RAJDEV | E25: BUY | F25: 25,000 | G25: 43.7 | H25: BSE
A26: 2022-01-03 | B26: 509053 | C26: BANASFN | D26: HANSABEN BHARATKUMAR PATEL | E26: BUY | F26: 20,000 | G26: 73.9 | H26: BSE
A27: 2022-01-03 | B27: 509053 | C27: BANASFN | D27: HANSABEN BHARATKUMAR PATEL | E27: SELL | F27: 178,268 | G27: 74.1 | H27: BSE
A28: 2022-01-03 | B28: 509053 | C28: BANASFN | D28: DINESHSINH | E28: BUY | F28: 145,852 | G28: 73.7 | H28: BSE
A29: 2022-01-03 | B29: 509053 | C29: BANASFN | D29: DINESHSINH | E29: SELL | F29: 324,230 | G29: 74.1 | H29: BSE
A30: 2022-01-03 | B30: 537766 | C30: BCP | D30: BP COMTRADE PRIVATE LIMITED | E30: BUY | F30: 156,534 | G30: 7.17 | H30: BSE
A31: 2022-01-03 | B31: 537766 | C31: BCP | D31: BP EQUITIES PVT. LTD. | E31: BUY | F31: 343,805 | G31: 7.22 | H31: BSE
A32: 2022-01-03 | B32: 537766 | C32: BCP | D32: ALPHA LEON ENTERPRISES LLP | E32: BUY | F32: 739,496 | G32: 6.95 | H32: BSE
A33: 2022-01-03 | B33: 537766 | C33: BCP | D33: BP COMTRADE PRIVATE LIMITED | E33: SELL | F33: 305,535 | G33: 7.06 | H33: BSE
A34: 2022-01-03 | B34: 537766 | C34: BCP | D34: BP EQUITIES PVT. LTD. | E34: SELL | F34: 433,810 | G34: 7.38 | H34: BSE
A35: 2022-01-03 | B35: 537766 | C35: BCP | D35: ALPHA LEON ENTERPRISES LLP | E35: SELL | F35: 549,836 | G35: 7.03 | H35: BSE
A36: 2022-01-03 | B36: 537766 | C36: BCP | D36: AMRITARAJPUT | E36: SELL | F36: 770,000 | G36: 7.58 | H36: BSE
A37: 2022-01-03 | B37: 537766 | C37: BCP | D37: STOCK VERTEX VENTURES | E37: BUY | F37: 1,000,000 | G37: 7.58 | H37: BSE
A38: 2022-01-03 | B38: 537766 | C38: BCP | D38: SHARE INDIA SECURITIES LIMITED | E38: BUY | F38: 288,181 | G38: 7 | H38: BSE
A39: 2022-01-03 | B39: 537766 | C39: BCP | D39: SHARE INDIA SECURITIES LIMITED | E39: SELL | F39: 363,750 | G39: 6.95 | H39: BSE
A40: 2022-01-03 | B40: 537766 | C40: BCP | D40: SUNGLOW LEASING AND FINANCE LTD | E40: BUY | F40: 274,219 | G40: 7.47 | H40: BSE
A41: 2022-01-03 | B41: 537766 | C41: BCP | D41: SUNGLOW LEASING AND FINANCE LTD | E41: SELL | F41: 407,249 | G41: 7.09 | H41: BSE
A42: 2022-01-03 | B42: 537766 | C42: BCP | D42: RAKESH KUMAR UPPAL & SONS HUF | E42: BUY | F42: 273,639 | G42: 6.97 | H42: BSE
A43: 2022-01-03 | B43: 537766 | C43: BCP | D43: SILONI UPPAL | E43: BUY | F43: 432,268 | G43: 6.92 | H43: BSE
A44: 2022-01-03 | B44: 537766 | C44: BCP | D44: SILONI UPPAL | E44: SELL | F44: 255,268 | G44: 6.98 | H44: BSE
A45: 2022-01-03 | B45: 537766 | C45: BCP | D45: RAKESH KUMAR UPPAL & SONS HUF | E45: SELL | F45: 342,244 | G45: 6.98 | H45: BSE
A46: 2022-01-03 | B46: 537766 | C46: BCP | D46: ADROIT FINANCIAL SERVICES PRIVATE LIMITED | E46: BUY | F46: 568,569 | G46: 7.21 | H46: BSE
A47: 2022-01-03 | B47: 537766 | C47: BCP | D47: ADROIT FINANCIAL SERVICES PRIVATE LIMITED | E47: SELL | F47: 673,974 | G47: 7.24 | H47: BSE
A48: 2022-01-03 | B48: 540545 | C48: BGJL | D48: KUNAL ASHOKKUMAR SHAH | E48: SELL | F48: 52,000 | G48: 17.35 | H48: BSE
A49: 2022-01-03 | B49: 512608 | C49: BHANDHOS | D49: ORBIT LIFESCIENCE PRIVATE LIMITED | E49: SELL | F49: 832,392 | G49: 11.75 | H49: BSE
A50: 2022-01-03 | B50: 543439 | C50: BRANDBUCKT | D50: SIRAZALI SHABBIRALI NAYANI | E50: SELL | F50: 40,000 | G50: 50.8 | H50: BSE
A51: 2022-01-03 | B51: 543439 | C51: BRANDBUCKT | D51: AARNAH CAPITAL ADVISORS PVT LTD | E51: BUY | F51: 40,000 | G51: 50.8 | H51: BSE
A52: 2022-01-03 | B52: 538433 | C52: CCFCL | D52: SANDISH KUMAR H N | E52: SELL | F52: 311,264 | G52: 0.52 | H52: BSE
A53: 2022-01-03 | B53: 506365 | C53: CHEMOPH | D53: HARSH AGARWAL | E53: SELL | F53: 8,104 | G53: 34.4 | H53: BSE
A54: 2022-01-03 | B54: 543435 | C54: CLARA | D54: SHERWOOD SECURITIES PVT LTD | E54: SELL | F54: 18,000 | G54: 46.96 | H54: BSE
A55: 2022-01-03 | B55: 543435 | C55: CLARA | D55: MACRO DEALCOMM PRIVATE LIMITED | E55: BUY | F55: 21,000 | G55: 46.99 | H55: BSE
A56: 2022-01-03 | B56: 542727 | C56: CPML | D56: PRATIK OVERSEAS PVT LTD | E56: SELL | F56: 20,000 | G56: 54.5 | H56: BSE
A57: 2022-01-03 | B57: 542727 | C57: CPML | D57: DESAI KAUSHIK G (HUF) | E57: BUY | F57: 20,000 | G57: 54.5 | H57: BSE
A58: 2022-01-03 | B58: 512379 | C58: CRESSAN | D58: ALPHA LEON ENTERPRISES LLP | E58: BUY | F58: 4 | G58: 6.79 | H58: BSE
A59: 2022-01-03 | B59: 512379 | C59: CRESSAN | D59: ALPHA LEON ENTERPRISES LLP | E59: SELL | F59: 3,500,006 | G59: 6.79 | H59: BSE
A60: 2022-01-03 | B60: 512379 | C60: CRESSAN | D60: ZUBER TRADING LLP | E60: SELL | F60: 3,770,000 | G60: 6.79 | H60: BSE
A61: 2022-01-03 | B61: 524752 | C61: DECIPHER | D61: ALPHA LEON ENTERPRISES LLP | E61: BUY | F61: 139,587 | G61: 132.75 | H61: BSE
A62: 2022-01-03 | B62: 524752 | C62: DECIPHER | D62: ALPHA LEON ENTERPRISES LLP | E62: SELL | F62: 110,717 | G62: 133.21 | H62: BSE
A63: 2022-01-03 | B63: 524752 | C63: DECIPHER | D63: KAMAL KUMAR JALAN SEC. PVT. LTD | E63: BUY | F63: 52,987 | G63: 135.82 | H63: BSE
A64: 2022-01-03 | B64: 524752 | C64: DECIPHER | D64: KAMAL KUMAR JALAN SEC. PVT. LTD | E64: SELL | F64: 52,987 | G64: 136.57 | H64: BSE
A65: 2022-01-03 | B65: 539197 | C65: DEVHARI | D65: ALPHA LEON ENTERPRISES LLP | E65: SELL | F65: 488,852 | G65: 1.02 | H65: BSE
A66: 2022-01-03 | B66: 539405 | C66: DITCO | D66: CHARANJIT SINGH | E66: SELL | F66: 25,542 | G66: 19.08 | H66: BSE
A67: 2022-01-03 | B67: 533149 | C67: ESSARSEC | D67: JAISHREE PRAKASH SHAH | E67: SELL | F67: 442,406 | G67: 6.32 | H67: BSE
A68: 2022-01-03 | B68: 533149 | C68: ESSARSEC | D68: ALPHA LEON ENTERPRISES LLP | E68: BUY | F68: 250,000 | G68: 6.32 | H68: BSE
A69: 2022-01-03 | B69: 524444 | C69: EVEXIA | D69: OLGA TRADING PRIVATE LIMITED | E69: BUY | F69: 1,700,651 | G69: 10.6 | H69: BSE
A70: 2022-01-03 | B70: 524444 | C70: EVEXIA | D70: OLGA TRADING PRIVATE LIMITED | E70: SELL | F70: 1,640,651 | G70: 10.75 | H70: BSE
A71: 2022-01-03 | B71: 532656 | C71: FACORALL | D71: T C HEALTHCARE PRIVATE LTD | E71: SELL | F71: 1,000,000 | G71: 8.11 | H71: BSE
A72: 2022-01-03 | B72: 536751 | C72: FIVEXTRADE | D72: FIRSTOBJECT TECHNOLOGIES LIMITED | E72: SELL | F72: 1,616,057 | G72: 0.84 | H72: BSE
A73: 2022-01-03 | B73: 531592 | C73: GENPHARMA | D73: MAYANK SINHA . | E73: SELL | F73: 1,400,000 | G73: 5.76 | H73: BSE
A74: 2022-01-03 | B74: 531592 | C74: GENPHARMA | D74: TOPGAIN FINANCE PRIVATE LIMITED | E74: BUY | F74: 2,976,159 | G74: 6.09 | H74: BSE
A75: 2022-01-03 | B75: 531592 | C75: GENPHARMA | D75: TOPGAIN FINANCE PRIVATE LIMITED | E75: SELL | F75: 1,614,256 | G75: 6.05 | H75: BSE
A76: 2022-01-03 | B76: 540614 | C76: GGENG | D76: SUNGLOW LEASING AND FINANCE LTD | E76: BUY | F76: 403,974 | G76: 12.48 | H76: BSE
A77: 2022-01-03 | B77: 540614 | C77: GGENG | D77: SUNGLOW LEASING AND FINANCE LTD | E77: SELL | F77: 323,635 | G77: 12.2 | H77: BSE
A78: 2022-01-03 | B78: 540936 | C78: GGL | D78: NIKUNJ GIRISH MISTRY HUF | E78: BUY | F78: 100,000 | G78: 13.9 | H78: BSE
A79: 2022-01-03 | B79: 540936 | C79: GGL | D79: SETU SECURITIES PVT LTD | E79: BUY | F79: 100,001 | G79: 14.11 | H79: BSE
A80: 2022-01-03 | B80: 540936 | C80: GGL | D80: SETU SECURITIES PVT LTD | E80: SELL | F80: 200,001 | G80: 13.99 | H80: BSE
A81: 2022-01-03 | B81: 540936 | C81: GGL | D81: MANSI SHARE & STOCK ADVISORS PRIVATE LIMITED | E81: SELL | F81: 500,000 | G81: 13.96 | H81: BSE
A82: 2022-01-03 | B82: 540936 | C82: GGL | D82: VIVID MERCANTILE LIMITED | E82: SELL | F82: 250,769 | G82: 14.01 | H82: BSE
A83: 2022-01-03 | B83: 540936 | C83: GGL | D83: ALPHA LEON ENTERPRISES LLP | E83: BUY | F83: 100,003 | G83: 14.11 | H83: BSE
A84: 2022-01-03 | B84: 540936 | C84: GGL | D84: ALPHA LEON ENTERPRISES LLP | E84: SELL | F84: 3 | G84: 14.07 | H84: BSE
A85: 2022-01-03 | B85: 540936 | C85: GGL | D85: APURVABHAI DILIPBHAI SHAH | E85: SELL | F85: 75,010 | G85: 13.85 | H85: BSE
A86: 2022-01-03 | B86: 533263 | C86: GREENPOWER | D86: RAMLAL KANWARLAL JAIN | E86: BUY | F86: 4,500,000 | G86: 20.8 | H86: BSE
A87: 2022-01-03 | B87: 533263 | C87: GREENPOWER | D87: AXIS BANK LIMITED | E87: SELL | F87: 6,613,637 | G87: 20.8 | H87: BSE
A88: 2022-01-03 | B88: 540377 | C88: IFL | D88: SAGARKUMAR RAKESHBHAI DANTANI | E88: BUY | F88: 30,000 | G88: 23.45 | H88: BSE
A89: 2022-01-03 | B89: 540377 | C89: IFL | D89: HIRWANI JAYANTIBHAI VAGHELA | E89: SELL | F89: 18,000 | G89: 23.18 | H89: BSE
A90: 2022-01-03 | B90: 541983 | C90: INNOVATIVE | D90: MAQSOOD DABIR SHAIKH | E90: SELL | F90: 150,000 | G90: 4.99 | H90: BSE
A91: 2022-01-03 | B91: 541983 | C91: INNOVATIVE | D91: VISHWAMURTE TRAD INVEST PE LTD | E91: BUY | F91: 127,000 | G91: 4.99 | H91: BSE
A92: 2022-01-03 | B92: 541983 | C92: INNOVATIVE | D92: VISHWAMURTE TRAD INVEST PE LTD | E92: SELL | F92: 127,000 | G92: 5.05 | H92: BSE
A93: 2022-01-03 | B93: 519319 | C93: JATALIA | D93: JAYESH KHETSHIBHAI SADHANI | E93: BUY | F93: 25,000 | G93: 3.69 | H93: BSE
A94: 2022-01-03 | B94: 519319 | C94: JATALIA | D94: SWARUPGUCHHAIT | E94: BUY | F94: 51,157 | G94: 3.69 | H94: BSE
A95: 2022-01-03 | B95: 519319 | C95: JATALIA | D95: SWARUPGUCHHAIT | E95: SELL | F95: 5,146 | G95: 3.45 | H95: BSE
A96: 2022-01-03 | B96: 519319 | C96: JATALIA | D96: HANSABEN HASMUKHBHAI AMIN | E96: SELL | F96: 76,000 | G96: 3.69 | H96: BSE
A97: 2022-01-03 | B97: 539225 | C97: JIYAECO | D97: NIRAV . | E97: SELL | F97: 160,104 | G97: 3.18 | H97: BSE
A98: 2022-01-03 | B98: 539225 | C98: JIYAECO | D98: INFOSENSE PRIVATE LIMITED | E98: SELL | F98: 260,000 | G98: 3.2 | H98: BSE
A99: 2022-01-03 | B99: 532154 | C99: JOHNPHARMA | D99: EPITOME TRADING AND INVESTMENTS | E99: BUY | F99: 235,261 | G99: 6.77 | H99: BSE
A100: 2022-01-03 | B100: 532154 | C100: JOHNPHARMA | D100: TOPGAIN FINANCE PRIVATE LIMITED | E100: BUY | F100: 1,100,000 | G100: 6.8 | H100: BSE
A101: 2022-01-03 | B101: 532154 | C101: JOHNPHARMA | D101: EPITOME TRADING AND INVESTMENTS | E101: SELL | F101: 262,818 | G101: 6.65 | H101: BSE
A102: 2022-01-03 | B102: 540385 | C102: KDLL | D102: ARMINDER SINGH | E102: SELL | F102: 33,500 | G102: 20.44 | H102: BSE
A103: 2022-01-03 | B103: 540385 | C103: KDLL | D103: KAMALDEEP ARORA | E103: BUY | F103: 29,010 | G103: 20.27 | H103: BSE
A104: 2022-01-03 | B104: 539910 | C104: KOCL | D104: HITESH SHAMBHUBHAI BOGHRA | E104: BUY | F104: 85,000 | G104: 3.66 | H104: BSE
A105: 2022-01-03 | B105: 539910 | C105: KOCL | D105: INDIGO TECH IND LIMITED | E105: SELL | F105: 185,000 | G105: 3.66 | H105: BSE
A106: 2022-01-03 | B106: 540360 | C106: LLFICL | D106: PADAM CHAND MEHTA | E106: BUY | F106: 35,300 | G106: 91.25 | H106: BSE
A107: 2022-01-03 | B107: 540360 | C107: LLFICL | D107: MOHANA MANJUNATH GOWDA | E107: SELL | F107: 50,000 | G107: 91.25 | H107: BSE
A108: 2022-01-03 | B108: 532852 | C108: MCDHOLDING | D108: ROUTE ONE OFFSHORE MASTER FUND LP | E108: BUY | F108: 168,735 | G108: 122.5 | H108: BSE
A109: 2022-01-03 | B109: 532852 | C109: MCDHOLDING | D109: ROUTE ONE FUND I LP | E109: SELL | F109: 167,189 | G109: 122.5 | H109: BSE
A110: 2022-01-03 | B110: 523782 | C110: MITSHI | D110: CHANDRA SHEKER G | E110: BUY | F110: 60,709 | G110: 15.04 | H110: BSE
A111: 2022-01-03 | B111: 523782 | C111: MITSHI | D111: CHANDRA SHEKER G | E111: SELL | F111: 9,538 | G111: 15.65 | H111: BSE
A112: 2022-01-03 | B112: 523782 | C112: MITSHI | D112: SANDEEP YADAV | E112: SELL | F112: 77,179 | G112: 15.04 | H112: BSE
A113: 2022-01-03 | B113: 539767 | C113: MNIL | D113: SITA RAM | E113: BUY | F113: 20,720 | G113: 13.64 | H113: BSE
A114: 2022-01-03 | B114: 530167 | C114: MONGIPA | D114: HEMANT | E114: BUY | F114: 20,372 | G114: 19.23 | H114: BSE
A115: 2022-01-03 | B115: 540809 | C115: MRCEXIM | D115: VISHAL PRAGNESHBHAI SHAH | E115: BUY | F115: 96,000 | G115: 19.53 | H115: BSE
A116: 2022-01-03 | B116: 530557 | C116: NCLRESE | D116: PRITESH PRAVIN VORA | E116: BUY | F116: 4,000,000 | G116: 1.7 | H116: BSE
A117: 2022-01-03 | B117: 533317 | C117: OMKARCHEM | D117: CELESTIAL TRADECHEM PRIVATE LIMITED | E117: SELL | F117: 350,000 | G117: 33.69 | H117: BSE
A118: 2022-01-03 | B118: 533317 | C118: OMKARCHEM | D118: PADAM CHAND MEHTA | E118: BUY | F118: 300,000 | G118: 33.7 | H118: BSE
A119: 2022-01-03 | B119: 532817 | C119: ORIENTALTL | D119: PRABHULAL LALLUBHAI PAREKH | E119: BUY | F119: 180,131 | G119: 13.16 | H119: BSE
A120: 2022-01-03 | B120: 532817 | C120: ORIENTALTL | D120: PRABHULAL LALLUBHAI PAREKH | E120: SELL | F120: 152,802 | G120: 13.19 | H120: BSE
A121: 2022-01-03 | B121: 532817 | C121: ORIENTALTL | D121: MANJU PRATAP | E121: SELL | F121: 175,000 | G121: 13.11 | H121: BSE
A122: 2022-01-03 | B122: 531626 | C122: OROSMITHS | D122: PAWANSUT SECURITIES PRIVATE LTD | E122: SELL | F122: 243,600 | G122: 5.02 | H122: BSE
A123: 2022-01-03 | B123: 532911 | C123: PARLEIND | D123: SAHIL SARRAF HUF | E123: SELL | F123: 120,420 | G123: 9.87 | H123: BSE
A124: 2022-01-03 | B124: 532911 | C124: PARLEIND | D124: SETU SECURITIES PVT LTD | E124: BUY | F124: 128,757 | G124: 10.02 | H124: BSE
A125: 2022-01-03 | B125: 532911 | C125: PARLEIND | D125: MANSI SHARE & STOCK ADVISORS PRIVATE LIMITED | E125: BUY | F125: 330,970 | G125: 10.76 | H125: BSE
A126: 2022-01-03 | B126: 532911 | C126: PARLEIND | D126: SETU SECURITIES PVT LTD | E126: SELL | F126: 93,757 | G126: 10.22 | H126: BSE
A127: 2022-01-03 | B127: 532911 | C127: PARLEIND | D127: PURSHOTTAM AGARWAL | E127: SELL | F127: 79,484 | G127: 10.77 | H127: BSE
A128: 2022-01-03 | B128: 504335 | C128: PAZEL | D128: ALPHA LEON ENTERPRISES LLP | E128: BUY | F128: 1,500,000 | G128: 0.39 | H128: BSE
A129: 2022-01-03 | B129: 512481 | C129: POLYTEX | D129: MAYURI VADILAL GADA | E129: SELL | F129: 76,097 | G129: 6.29 | H129: BSE
A130: 2022-01-03 | B130: 543363 | C130: PREVEST | D130: RAMLAL KANWARLAL JAIN | E130: BUY | F130: 72,000 | G130: 454.91 | H130: BSE
A131: 2022-01-03 | B131: 511557 | C131: PROFINC | D131: OLGA TRADING PRIVATE LIMITED | E131: BUY | F131: 45,392 | G131: 36 | H131: BSE
A132: 2022-01-03 | B132: 543375 | C132: PROMAX | D132: NIKUNJ STOCK BROKERS LIMITED | E132: SELL | F132: 40,000 | G132: 19.61 | H132: BSE
A133: 2022-01-03 | B133: 536659 | C133: PVVINFRA | D133: SANJAY KISHANCHAND | E133: SELL | F133: 60,000 | G133: 23.4 | H133: BSE
A134: 2022-01-03 | B134: 502448 | C134: ROLLT | D134: MANI ENTERPRISE | E134: SELL | F134: 1,900,000 | G134: 4.29 | H134: BSE
A135: 2022-01-03 | B135: 539526 | C135: SCTL | D135: TOPGAIN FINANCE PRIVATE LIMITED | E135: BUY | F135: 1,000,000 | G135: 2.5 | H135: BSE
A136: 2022-01-03 | B136: 538875 | C136: SELLWIN | D136: MOREPLUS MERCHANTS PRIVATE LIMITED | E136: SELL | F136: 50,000 | G136: 16.6 | H136: BSE
A137: 2022-01-03 | B137: 538875 | C137: SELLWIN | D137: PLENTY NIRYAT PRIVATE LIMITED | E137: SELL | F137: 100,000 | G137: 16.54 | H137: BSE
A138: 2022-01-03 | B138: 539584 | C138: SIPTL | D138: ROHITBHAT RAHUL PATEL | E138: SELL | F138: 298,000 | G138: 1.73 | H138: BSE
A139: 2022-01-03 | B139: 539584 | C139: SIPTL | D139: ALPHA LEON ENTERPRISES LLP | E139: BUY | F139: 450,000 | G139: 1.73 | H139: BSE
A140: 2022-01-03 | B140: 539584 | C140: SIPTL | D140: CHANDARANA INTERMEDIARIES BROKERS PRIVATE LIMITED | E140: BUY | F140: 300,000 | G140: 1.73 | H140: BSE
A141: 2022-01-03 | B141: 530419 | C141: SUMEDHA | D141: PARTH INFIN BROKERS PVT LTD | E141: BUY | F141: 67,666 | G141: 33.8 | H141: BSE
A142: 2022-01-03 | B142: 530419 | C142: SUMEDHA | D142: PARTH INFIN BROKERS PVT LTD | E142: SELL | F142: 4,969 | G142: 33.59 | H142: BSE
A143: 2022-01-03 | B143: 542025 | C143: SUNRETAIL | D143: CHANDARANA INTERMEDIARIES BROKERS PRIVATE LIMITED | E143: SELL | F143: 960,000 | G143: 1.01 | H143: BSE
A144: 2022-01-03 | B144: 539835 | C144: SUPERIOR | D144: DIPEN MUKESHBHAI BAROT | E144: SELL | F144: 15,431 | G144: 94.76 | H144: BSE
A145: 2022-01-03 | B145: 534733 | C145: SUPREMEX | D145: N K WEALTH SOLUTIONS LLP | E145: SELL | F145: 293,224 | G145: 11.08 | H145: BSE
A146: 2022-01-03 | B146: 530185 | C146: SURATEX | D146: ALPHA LEON ENTERPRISES LLP | E146: BUY | F146: 1,146,439 | G146: 22.1 | H146: BSE
A147: 2022-01-03 | B147: 530185 | C147: SURATEX | D147: ALPHA LEON ENTERPRISES LLP | E147: SELL | F147: 1,146,439 | G147: 23.66 | H147: BSE
A148: 2022-01-03 | B148: 523722 | C148: SVAMSOF | D148: CHANDARANA INTERMEDIARIES BROKERS PRIVATE LIMITED | E148: BUY | F148: 100,000 | G148: 12.21 | H148: BSE
A149: 2022-01-03 | B149: 531411 | C149: TUNITEX | D149: ALPHA LEON ENTERPRISES LLP | E149: BUY | F149: 1,066,092 | G149: 1.7 | H149: BSE
A150: 2022-01-03 | B150: 526775 | C150: VALIANT | D150: DUANE PARK PRIVATE LIMITED | E150: SELL | F150: 66,544 | G150: 51.08 | H150: BSE
A151: 2022-01-03 | B151: 512175 | C151: VAMA | D151: OLGA TRADING PRIVATE LIMITED | E151: BUY | F151: 434,212 | G151: 12.43 | H151: BSE
A152: 2022-01-03 | B152: 512175 | C152: VAMA | D152: OLGA TRADING PRIVATE LIMITED | E152: SELL | F152: 257,212 | G152: 12.97 | H152: BSE
A153: 2022-01-03 | B153: 506146 | C153: VIVIDHA | D153: ALPHA LEON ENTERPRISES LLP | E153: BUY | F153: 1,500,000 | G153: 2.1 | H153: BSE
A154: 2022-01-03 | B154: 506146 | C154: VIVIDHA | D154: ALPHA LEON ENTERPRISES LLP | E154: SELL | F154: 15,014 | G154: 2.1 | H154: BSE
A155: 2022-01-03 | B155: 543436 | C155: WITS | D155: SHYAM SUNDER JINDAL | E155: BUY | F155: 2,400 | G155: 205.1 | H155: BSE
A156: 2022-01-03 | B156: 543436 | C156: WITS | D156: CHIRAG BHARATKUMAR SHAH | E156: SELL | F156: 2,400 | G156: 205.1 | H156: BSE
A157: 2022-01-03 | B157: 504220 | C157: WSIND | D157: SATHIYAMOORTHY ANANDAVADIVEL | E157: BUY | F157: 1,706,940 | G157: 10.38 | H157: BSE
A158: 2022-01-03 | B158: 504220 | C158: WSIND | D158: CHINNIAMPALAYAM KULANDAISAMY VENKATACHALAM | E158: BUY | F158: 1,706,940 | G158: 10.38 | H158: BSE
A159: 2022-01-03 | B159: 504220 | C159: WSIND | D159: SEYYADURAI NAGARAJAN | E159: BUY | F159: 1,706,940 | G159: 10.38 | H159: BSE
A160: 2022-01-03 | B160: 504220 | C160: WSIND | D160: EARC TRUST SC 209 | E160: SELL | F160: 785,192 | G160: 10.38 | H160: BSE
A161: 2022-01-03 | B161: 504220 | C161: WSIND | D161: EARC TRUST SC 168 | E161: SELL | F161: 1,901,268 | G161: 10.38 | H161: BSE
A162: 2022-01-03 | B162: 504220 | C162: WSIND | D162: EARC SAF 1 TRUST | E162: SELL | F162: 2,434,358 | G162: 10.38 | H162: BSE
A163: 2022-01-03 | B163: ALBERTDAVD | C163: Albert David Limited | D163: XTX MARKETS LLP | E163: BUY | F163: 35,485 | G163: 680.42 | H163: NSE
A164: 2022-01-03 | B164: ALPA | C164: Alpa Laboratories Limited | D164: VIJIT TRADING | E164: BUY | F164: 119,021 | G164: 94.83 | H164: NSE
A165: 2022-01-03 | B165: ALPA | C165: Alpa Laboratories Limited | D165: GRAVITON RESEARCH CAPITAL LLP | E165: BUY | F165: 133,647 | G165: 90.32 | H165: NSE
A166: 2022-01-03 | B166: ALPA | C166: Alpa Laboratories Limited | D166: XTX MARKETS LLP | E166: BUY | F166: 195,124 | G166: 90.36 | H166: NSE
A167: 2022-01-03 | B167: AMJUMBO | C167: A and M Jumbo Bags Ltd | D167: DEVAIYA PARESHBHAI RANCHHODBHAI | E167: BUY | F167: 56,000 | G167: 7.05 | H167: NSE
A168: 2022-01-03 | B168: AMJUMBO | C168: A and M Jumbo Bags Ltd | D168: PATEL DIPAK KANAIYALAL | E168: BUY | F168: 56,000 | G168: 7.05 | H168: NSE
A169: 2022-01-03 | B169: AMJUMBO | C169: A and M Jumbo Bags Ltd | D169: RADADIYA TRUPESH RAMESHBHAI | E169: BUY | F169: 56,000 | G169: 7.05 | H169: NSE
A170: 2022-01-03 | B170: AMJUMBO | C170: A and M Jumbo Bags Ltd | D170: VAGHASIYA JIGNASHABEN MAHESHBHAI | E170: BUY | F170: 56,000 | G170: 7.05 | H170: NSE
A171: 2022-01-03 | B171: AMJUMBO | C171: A and M Jumbo Bags Ltd | D171: SHINGALA SAVANKUMAR S | E171: BUY | F171: 56,000 | G171: 7.05 | H171: NSE
A172: 2022-01-03 | B172: AMJUMBO | C172: A and M Jumbo Bags Ltd | D172: VAGHASIYA MAHESHBHAI DHIRUBHAI | E172: BUY | F172: 56,000 | G172: 7.05 | H172: NSE
A173: 2022-01-03 | B173: APOLLO | C173: Apollo Micro Systems Ltd | D173: XTX MARKETS LLP | E173: BUY | F173: 227,000 | G173: 181.72 | H173: NSE
A174: 2022-01-03 | B174: APOLLO | C174: Apollo Micro Systems Ltd | D174: QE SECURITIES | E174: BUY | F174: 154,112 | G174: 182.85 | H174: NSE
A175: 2022-01-03 | B175: APOLLO | C175: Apollo Micro Systems Ltd | D175: GRAVITON RESEARCH CAPITAL LLP | E175: BUY | F175: 269,767 | G175: 181.07 | H175: NSE
A176: 2022-01-03 | B176: BANARBEADS | C176: Banaras Beads Ltd | D176: PRABHULAL LALLUBHAI PAREKH | E176: BUY | F176: 57,135 | G176: 81.94 | H176: NSE
A177: 2022-01-03 | B177: BANARBEADS | C177: Banaras Beads Ltd | D177: KABRA KAILASH | E177: BUY | F177: 209,879 | G177: 85.73 | H177: NSE
A178: 2022-01-03 | B178: BANARBEADS | C178: Banaras Beads Ltd | D178: AVIRAT ENTERPRISE | E178: BUY | F178: 59,150 | G178: 91.77 | H178: NSE
A179: 2022-01-03 | B179: BCP | C179: B.C. Power Controls Ltd | D179: TOPGAIN FINANCE PRIVATE LIMITED | E179: BUY | F179: 300,000 | G179: 6.72 | H179: NSE
A180: 2022-01-03 | B180: BCP | C180: B.C. Power Controls Ltd | D180: EPITOME TRADING AND INVESTMENTS | E180: BUY | F180: 365,000 | G180: 7.16 | H180: NSE
A181: 2022-01-03 | B181: BCP | C181: B.C. Power Controls Ltd | D181: VISHAL BIPINKUMAR DOSHI | E181: BUY | F181: 500,000 | G181: 7.25 | H181: NSE
A182: 2022-01-03 | B182: BCP | C182: B.C. Power Controls Ltd | D182: MANSI SHARES & STOCK ADVISORS PVT LTD | E182: BUY | F182: 764,075 | G182: 6.78 | H182: NSE
A183: 2022-01-03 | B183: BCP | C183: B.C. Power Controls Ltd | D183: BP COMTRADE PVT LTD | E183: BUY | F183: 382,000 | G183: 6.91 | H183: NSE
A184: 2022-01-03 | B184: BCP | C184: B.C. Power Controls Ltd | D184: ALPHA LEON ENTERPRISES LLP | E184: BUY | F184: 2,616,303 | G184: 6.76 | H184: NSE
A185: 2022-01-03 | B185: BCP | C185: B.C. Power Controls Ltd | D185: SIMMI UPPAL | E185: BUY | F185: 518,766 | G185: 6.72 | H185: NSE
A186: 2022-01-03 | B186: BCP | C186: B.C. Power Controls Ltd | D186: SILONI UPPAL | E186: BUY | F186: 1,017,580 | G186: 6.77 | H186: NSE
A187: 2022-01-03 | B187: BCP | C187: B.C. Power Controls Ltd | D187: RAKESH KUMAR UPPAL & SONS HUF | E187: BUY | F187: 623,369 | G187: 6.77 | H187: NSE
A188: 2022-01-03 | B188: BCP | C188: B.C. Power Controls Ltd | D188: RAKESH KUMAR UPPAL | E188: BUY | F188: 833,544 | G188: 6.72 | H188: NSE
A189: 2022-01-03 | B189: BCP | C189: B.C. Power Controls Ltd | D189: SHARE INDIA SECURITIES LIMITED | E189: BUY | F189: 370,419 | G189: 6.86 | H189: NSE
A190: 2022-01-03 | B190: BCP | C190: B.C. Power Controls Ltd | D190: BHAVESHKUMAR NATVARLAL SHETH | E190: BUY | F190: 307,957 | G190: 6.86 | H190: NSE
A191: 2022-01-03 | B191: BCP | C191: B.C. Power Controls Ltd | D191: ADROIT FINANCIAL SERVICES PVT LTD | E191: BUY | F191: 910,816 | G191: 6.88 | H191: NSE
A192: 2022-01-03 | B192: BCP | C192: B.C. Power Controls Ltd | D192: TRANSGLOBAL SECURITIES LTD | E192: BUY | F192: 934,756 | G192: 6.76 | H192: NSE
A193: 2022-01-03 | B193: BCP | C193: B.C. Power Controls Ltd | D193: SHAH CHETAN RASIKLAL | E193: BUY | F193: 200,000 | G193: 6.83 | H193: NSE
A194: 2022-01-03 | B194: BEWLTD | C194: BEW Engineering Limited | D194: ALPHA LEON ENTERPRISES LLP | E194: BUY | F194: 18,000 | G194: 448.85 | H194: NSE
A195: 2022-01-03 | B195: BEWLTD | C195: BEW Engineering Limited | D195: NNM SECURITIES PVT LTD | E195: BUY | F195: 2,000 | G195: 448.85 | H195: NSE
A196: 2022-01-03 | B196: CMICABLES | C196: CMI Limited | D196: GALON SERVICES PRIVATE LIMITED | E196: BUY | F196: 88,352 | G196: 54.45 | H196: NSE
A197: 2022-01-03 | B197: CMICABLES | C197: CMI Limited | D197: GRAVITON RESEARCH CAPITAL LLP | E197: BUY | F197: 98,030 | G197: 53.68 | H197: NSE
A198: 2022-01-03 | B198: CMICABLES | C198: CMI Limited | D198: PRIYANSHI ENTERPRISES LLP | E198: BUY | F198: 81,640 | G198: 54.59 | H198: NSE
A199: 2022-01-03 | B199: DLINKINDIA | C199: D-Link India Ltd | D199: GRAVITON RESEARCH CAPITAL LLP | E199: BUY | F199: 204,392 | G199: 186.37 | H199: NSE
A200: 2022-01-03 | B200: DLINKINDIA | C200: D-Link India Ltd | D200: QE SECURITIES | E200: BUY | F200: 180,556 | G200: 185.98 | H200: NSE
A201: 2022-01-03 | B201: ESSARSHPNG | C201: Essar Shipping Limited | D201: TOPGAIN FINANCE PRIVATE LIMITED | E201: BUY | F201: 950,000 | G201: 14.64 | H201: NSE
A202: 2022-01-03 | B202: GIRIRAJ | C202: Giriraj Civil Devp Ltd | D202: JITENDRA RAICHAND MEHTA | E202: BUY | F202: 45,600 | G202: 97.5 | H202: NSE
A203: 2022-01-03 | B203: GLOBE | C203: Globe Textiles (I) Ltd. | D203: OLGA TRADING PRIVATE LIMITED | E203: BUY | F203: 1,094,075 | G203: 15.96 | H203: NSE
A204: 2022-01-03 | B204: INVENTURE | C204: Inventure Gro & Sec Ltd | D204: TOPGAIN FINANCE PRIVATE LIMITED | E204: BUY | F204: 5,539,692 | G204: 4.17 | H204: NSE
A205: 2022-01-03 | B205: INVENTURE | C205: Inventure Gro & Sec Ltd | D205: ADROIT FINANCIAL SERVICES PVT LTD | E205: BUY | F205: 6,235,593 | G205: 3.9 | H205: NSE
A206: 2022-01-03 | B206: INVENTURE | C206: Inventure Gro & Sec Ltd | D206: SHARE INDIA SECURITIES LIMITED | E206: BUY | F206: 14,993,648 | G206: 3.87 | H206: NSE
... 98 more rows

Sheet Call Tracker (Equity & F&O)
M5: Back To Main Page
A6: Retail Research Technical Calls & Fundamental Performance Report for the month of Jan-2022
M7: =Main!B10 -> 2022-01-04
B8: Positional Call
A9: Sr.no | B9: Date | D9: Company | E9: Rec | F9: Rec Price | G9: Stop Loss*** | H9: Call Closed At | I9: Target | J9: Remark | K9: Profit / Loss per Share | L9: All charges | M9: Net Gain / Loss % | N9: Status | O9: Closed Date | P9: Market Closing Price
A10: 1 | B10: 2021-12-02 | D10: CROMPTON | E10: Buy | F10: 435-440 | G10: 414 | I10: 465-475 | J10: Open | P10: =VLOOKUP(D10,'MidCap Intra'!B42:C535,2,0) -> 441.45 | R10: H
A11: 2 | B11: 2021-12-02 | D11: IOC | E11: Buy | F11: 118-120 | G11: 109 | I11: 130-135 | J11: Open | P11: =VLOOKUP(D11,'MidCap Intra'!B43:C536,2,0) -> 112.95 | R11: H
A12: 3 | B12: 2021-12-14 | D12: HDFCLIFE | E12: Buy | F12: 663-668 | G12: 635 | I12: 700-730 | J12: Open | P12: =VLOOKUP(D12,'MidCap Intra'!B45:C538,2,0) -> 650.5 | R12: H
A13: 4 | B13: 2021-12-17 | D13: BEL | E13: Buy | F13: 201.5 | G13: 188 | H13: 209.50 | I13: 220-230 | J13: Part Profit of Rs.8/- | K13: =H13-F13 -> 8 | L13: =(F13*-0.7)/100 -> -1.41 | M13: =(K13+L13)/F13 -> 3.27% | N13: Successful | O13: 2021-12-23 | P13: =VLOOKUP(D13,'MidCap Intra'!B46:C539,2,0) -> 211.25 | R13: H
A14: 5 | B14: 2021-12-17 | D14: ICICIBANK | E14: Buy | F14: 730 | G14: 687 | H14: 760.00 | I14: 780-820 | J14: Part Profit of Rs.30/- | K14: 30 | L14: -5.11 | M14: 3.41% | N14: Successful | O14: 2022-01-03 | P14: =VLOOKUP(D14,'MidCap Intra'!B47:C540,2,0) -> 764.7 | R14: H
A15: 6 | B15: 2021-12-22 | D15: ACC | E15: Buy | F15: 2140 | G15: 1995 | H15: 2,234.00 | I15: 2350-2450 | J15: Part Profit of Rs.94/- | K15: =H15-F15 -> 94 | L15: =(F15*-0.7)/100 -> -14.98 | M15: =(K15+L15)/F15 -> 3.69% | N15: Successful | O15: 2021-12-31 | P15: =VLOOKUP(D15,'MidCap Intra'!B2:C541,2,0) -> 2251.35 | R15: H
A16: 7 | B16: 2021-12-27 | D16: SUPREMEIND | E16: Buy | F16: 2200-2230 | G16: 2035 | I16: 2400-2500 | J16: Open | P16: =VLOOKUP(D16,'MidCap Intra'!B12:M512,2,0) -> 2230.15 | R16: H
A17: 8 | B17: 2021-12-29 | D17: ROUTE | E17: Buy | F17: 1730 | G17: 1640 | H17: 1,810.00 | I17: 1900-2000 | J17: Part Profit of Rs.80/- | K17: =H17-F17 -> 80 | L17: =(F17*-0.7)/100 -> -12.11 | M17: =(K17+L17)/F17 -> 3.92% | N17: Successful | O17: 2021-12-31 | P17: =VLOOKUP(D17,'MidCap Intra'!B50:C543,2,0) -> 1804.2 | R17: H
A18: 9 | B18: 2021-12-31 | D18: PIIND | E18: Buy | F18: 2980 | G18: 2790 | H18: 3,105.00 | I18: 3200-3400 | J18: Part Profit of Rs.125/- | K18: =H18-F18 -> 125 | L18: =(F18*-0.7)/100 -> -20.86 | M18: =(K18+L18)/F18 -> 3.49% | N18: Successful | O18: 2022-01-03 | P18: =VLOOKUP(D18,'MidCap Intra'!B51:C544,2,0) -> 3051.75 | R18: H
A22: CLBS = Closing Basis ***
A23: Dividend adjusted <> | F23: Reinitiated $
A24: Part book {} | F24: Revised stoploss #
B26: Momentum Call
A27: Sr.no | B27: Date | D27: Company | E27: Rec | F27: Rec Price | G27: Stop Loss | H27: Call Closed At | I27: Target | J27: Remark | K27: Profit / Loss per Share/Lot | L27: All charges | M27: Net Gain / Loss % | N27: Status | O27: Closed Date
A28: 1 | B28: 2021-12-29 | D28: TATAMOTORS | E28: Buy | F28: 476 | G28: 463 | H28: 496 | I28: 490-500 | J28: Profit of Rs.20/- | K28: =H28-F28 -> 20 | L28: =(F28*-0.7)/100 -> -3.33 | M28: =(K28+L28)/F28 -> 3.50% | N28: Successful | O28: 2022-01-03 | R28: H
A29: 2 | B29: 2021-12-29 | D29: MASTEK | E29: Buy | F29: 3000-3020 | G29: 2930 | I29: 3140-3200 | J29: Open | R29: H
A30: 3 | B30: 2021-12-29 | D30: HINDCOPPER | E30: Buy | F30: 125.5-126.5 | G30: 122 | I30: 130-134 | J30: Open | R30: N
A31: 4 | B31: 2021-12-31 | D31: GNFC | E31: Buy | F31: 442-445 | G31: 430 | I31: 460-475 | J31: Open | R31: N
A32: 5 | B32: 2021-12-31 | D32: AXISBANK | E32: Buy | F32: 677.5 | G32: 659 | H32: 696 | I32: 700-720 | J32: Profit of Rs.18.5/- | K32: =H32-F32 -> 18.5 | L32: =(F32*-0.7)/100 -> -4.74 | M32: =(K32+L32)/F32 -> 2.03% | N32: Successful | O32: 2022-01-03
R33: H
A35: CLBS = Closing Basis *** | H35: *
A36: Dividend adjusted <> | F36: Reinitiated $
F37: Revised stoploss #
A39: Master Trade High Risk
A40: Sr.no | B40: Date | D40: Company | E40: Rec | F40: Rec Price | G40: Stop Loss | H40: Call Closed At | I40: Target | J40: Remark | K40: Profit / Loss per share | L40: All charges | M40: Gain / Loss per Lot | N40: Lot | O40: Status | P40: Closed Date
A41: 1 | B41: 2021-12-31 | D41: SRF JAN FUT | E41: Buy | F41: 2430-2435 | G41: 2398 | I41: 2470-2490 | J41: Open | R41: N
A49: Master Trade Medium Risk
A50: Sr.no | B50: Date | D50: Company | E50: Rec | F50: Rec Price | G50: Stop Loss | H50: Call Closed At | I50: Target | J50: Remark | K50: Profit/ Loss per lot | L50: All charges | M50: Gain / Loss per Lot | N50: Lot | O50: Status | P50: Closed Date
A51: 1 | B51: 2021-12-31 | D51: NIFTY 17200 PE 06-JAN | E51: Buy | F51: 81.5 | G51: 40 | H51: 40 | I51: 120-150 | J51: Loss of Rs.41.50/- | K51: =H51-F51 -> -41.50 | L51: 100.00 | M51: =(K51*N51)-100 -> -2175 | N51: 50 | O51: Unsuccessful | P51: 2022-01-03 | R51: N
A54: Techno -Funda (positional)
A55: Sr.no | B55: Date | D55: Company | E55: Rec | F55: Rec Price | G55: Stop Loss*** | H55: Call Closed At | I55: Target | J55: Remark | K55: Profit / Loss per Share/Lot | L55: All charges | M55: Net Gain / Loss % | N55: Status | O55: Closed Date | P55: Market Closing Price
A56: 1 | B56: 2021-10-19 | D56: ITC | E56: Buy | F56: 230-251 | G56: 198 | I56: 320-340 | J56: Open | R56: H
A57: 2 | B57: 2021-10-21 | D57: OFSS | E57: Buy | F57: 4150-4550 | G57: 3700 | I57: 5400-6000 | J57: Open | R57: H
A58: 3 | B58: 2021-12-21 | D58: HEIDELBERG | E58: Buy | F58: 213-217 | G58: 198 | I58: 240-250 | J58: Open | R58: H
A61: CLBS = Closing Basis *** | F61: Reinitiated $
A62: Dividend adjusted <> | F62: Revised stoploss # | H62: .................
B64: Intrday Call
A65: Sr.no | B65: Date | D65: Company | E65: Rec | F65: Rec Price | G65: Stop Loss | H65: Call Closed At | I65: Target | J65: Remark | K65: Profit / Loss per Share/Lot | L65: Gain / Loss per Lot | M65: Lot | N65: All charges | O65: Net Gain / Loss % | P65: Status | Q65: Closed Date
B78: Investment Idea
A79: Sr.no | B79: Date | D79: Company | E79: Rec | F79: Rec Price | G79: Point of Review | H79: Close Rate | I79: Target | J79: Remark | K79: Profit / Loss per Share | L79: Gain / Loss % | M79: Status | N79: Closed Date
A80: 1 | B80: 2013-11-01 | D80: L&T Finance Holding | E80: Accu | F80: 82.00 | G80: - | H80: 100 | I80: 100.00 | J80: Target Achieved | K80: =H80-F80 -> 18.00 | L80: =K80/F80 -> 21.95% | M80: Successful | N80: 2016-10-14
A81: 2 | B81: 2014-06-04 | D81: Finolex Inds | E81: Buy | F81: 257.00 | G81: - | H81: 300 | I81: 300.00 | J81: Target Achieved | K81: 43.00 | L81: 16.73% | M81: Successful | N81: 2014-07-02
A82: 3 | B82: 2014-07-08 | D82: JK Cement | E82: Buy | F82: 393.00 | G82: - | H82: 468 | I82: 468.00 | J82: Target Achieved | K82: 75.00 | L82: 19.08% | M82: Successful | N82: 2014-08-12
A83: 4 | B83: 2014-08-06 | D83: Finolex Cables | E83: Buy | F83: 205.00 | G83: - | H83: 275 | I83: 250.00 | J83: Target Achieved | K83: 70.00 | L83: 34.15% | M83: Successful | N83: 2014-11-19
A84: 5 | B84: 2014-09-04 | D84: Exide Inds | E84: Buy | F84: 162.00 | G84: - | H84: 190 | I84: 190.00 | J84: Target Achieved | K84: 28.00 | L84: 17.28% | M84: Successful | N84: 2015-01-02
A85: 6 | B85: 2014-09-04 | D85: Deepak Nitrite | E85: Buy | F85: 75.00 | G85: - | H85: 91.5 | I85: 95-100 | J85: Profit of Rs.16.50/- | K85: 16.50 | L85: 22.00% | M85: Successful | N85: 2014-11-11
A86: 7 | B86: 2014-10-01 | D86: Mercks | E86: Buy | F86: 850.00 | G86: - | H86: 982.5 | I86: 1050.00 | J86: Profit of Rs.132.50/- | K86: 132.50 | L86: 15.59% | M86: Successful | N86: 2015-02-04
A87: 8 | B87: 2014-10-01 | D87: Grindwell Norton | E87: Buy | F87: 475.00 | G87: - | H87: 515 | I87: 600.00 | J87: Profit of Rs.40/- | K87: 40.00 | L87: 8.42% | M87: Successful | N87: 2014-10-27
A88: 9 | B88: 2014-10-01 | D88: Snowman Logistics | E88: Buy | F88: 86.00 | G88: - | H88: 99 | I88: 140.00 | J88: Profit of Rs.13.00/- | K88: 13.00 | L88: 15.12% | M88: Successful | N88: 2014-10-27
A89: 10 | B89: 2014-10-14 | D89: Birla Corp | E89: Buy | F89: 496.60 | G89: - | H89: 621 | I89: 580.00 | J89: Target Achieved | K89: 124.40 | L89: 25.05% | M89: Successful | N89: 2016-08-23
A90: 11 | B90: 2014-10-14 | D90: Ultratech Cem | E90: Buy | F90: 2481.90 | G90: - | H90: 2840 | I90: 2870.00 | J90: Profit of Rs.358.10/- | K90: 358.10 | L90: 14.43% | M90: Successful | N90: 2015-01-13
A91: 12 | B91: 2014-10-16 | D91: Sintex Inds | E91: Buy | F91: 84.50 | G91: - | H91: 93 | I91: 110.00 | J91: Profit of Rs.8.50/- | K91: 8.50 | L91: 10.06% | M91: Successful | N91: 2014-10-27
A92: 13 | B92: 2014-10-16 | D92: HSIL | E92: Buy | F92: 401.00 | G92: - | H92: 428 | I92: 450.00 | J92: Profit of Rs.27.00/- | K92: 27.00 | L92: 6.73% | M92: Successful | N92: 2015-01-16
A93: 14 | B93: 2014-10-16 | D93: Eveready Inds | E93: Buy | F93: 101.00 | G93: - | H93: 112 | I93: 120.00 | J93: Profit of Rs.11.00/- | K93: 11.00 | L93: 10.89% | M93: Successful | N93: 2014-10-27
A94: 15 | B94: 2014-11-11 | D94: Pennar Inds | E94: Buy | F94: 59.00 | G94: - | H94: 76 | I94: 76.00 | J94: Target Achieved | K94: 17.00 | L94: 28.81% | M94: Successful | N94: 2017-10-24
A95: 16 | B95: 2014-11-11 | D95: Snowman Logistics | E95: Buy | F95: 99.00 | G95: - | H95: 120 | I95: 120.00 | J95: Profit of Rs.21/- | K95: 21.00 | L95: 21.21% | M95: Successful | N95: 2014-11-17
A96: 17 | B96: 2014-11-13 | D96: Dharamsi Morarji Chem | E96: Buy | F96: 22.00 | G96: - | H96: 33.55 | I96: 32.00 | J96: Profit of Rs 11.55/- | K96: 11.55 | L96: 52.50% | M96: Successful | N96: 2015-07-03
A97: 18 | B97: 2014-12-03 | D97: Tatachem | E97: Buy | F97: 440.00 | G97: - | H97: 520 | I97: 520.00 | J97: Profit of Rs 80.00/- | K97: 80.00 | L97: 18.18% | M97: Successful | N97: 2015-07-23
A98: 19 | B98: 2014-12-03 | D98: Advanta | E98: Buy | F98: 360.00 | G98: - | H98: 427 | I98: 425.00 | J98: Profit of Rs.67.00/- | K98: 67.00 | L98: 18.61% | M98: Successful | N98: 2015-02-23
A99: 20 | B99: 2015-01-08 | D99: GDL | E99: Buy | F99: 360.00 | G99: - | H99: 455 | I99: 420.00 | J99: Profit of Rs.95.00/- | K99: 95.00 | L99: 26.39% | M99: Successful | N99: 2015-01-20
A100: 21 | B100: 2015-01-08 | D100: NRB Bearing | E100: Buy | F100: 130.00 | H100: 175.5 | I100: 165.00 | J100: Profit of Rs 45.50/- | K100: 45.50 | L100: 35.00% | M100: Successful | N100: 2017-12-19
A101: 22 | B101: 2015-02-05 | D101: GSFC | E101: Accu | F101: 98.00 | H101: 120 | I101: 120.00 | J101: Target Achieved | K101: 22.00 | L101: 22.45% | M101: Successful | N101: 2017-01-18
A102: 23 | B102: 2015-02-05 | D102: Sundrmfast | E102: Accu | F102: 196.00 | H102: 262 | I102: 255.00 | J102: Target Achieved | K102: 66.00 | L102: 33.67% | M102: Successful | N102: 2016-08-17
A103: 24 | B103: 2015-03-04 | D103: GPPL | E103: Accu | F103: 235 | H103: 77.00 | I103: 280-285 | J103: Loss of Rs.158/- | K103: -158.00 | L103: -67.23% | M103: Unsuccessful | N103: 2019-02-26
A104: 25 | B104: 2015-03-04 | D104: ORIENTCEM | E104: Accu | F104: 185.00 | H104: 224 | I104: 220-225 | J104: Target Achieved | K104: 39.00 | L104: 21.08% | M104: Successful | N104: 2016-10-04
A105: 26 | B105: 2015-03-27 | D105: PFS | E105: Accu | F105: 49.5 | H105: 15.85 | I105: 67.00 | J105: Loss of Rs.33.65/- | K105: -33.65 | L105: -68% | M105: Unsuccessful | N105: 2019-06-11
A106: 27 | B106: 2015-03-30 | D106: Walchandnagar Ind Ltd | E106: Accu | F106: 183.50 | H106: 219 | I106: 218.00 | J106: Profit of Rs.35.50/- | K106: 35.50 | L106: 19.35% | M106: Successful | N106: 2015-04-09
A107: 28 | B107: 2015-04-20 | D107: Kalpataru Power Transmission Ltd | E107: Accu | F107: =(227+237)/2 -> 232.00 | H107: 298 | I107: 298.00 | J107: Target Achieved | K107: 66.00 | L107: 28.45% | M107: Successful | N107: 2017-03-29
A108: 29 | B108: 2015-05-04 | D108: Mastek Ltd | E108: Buy | F108: 385.00 | H108: =212.5+331 -> 543.5 | I108: 510.00 | J108: Profit of Rs 158.50/- | K108: 158.50 | L108: 41.17% | M108: Successful | N108: 2015-08-19
A109: 30 | B109: 2015-05-04 | D109: Suprajit Eng | E109: Buy | F109: 115.50 | H109: 146 | I109: 142.00 | J109: Profit of Rs 30.50/- | K109: 30.50 | L109: 26.41% | M109: Successful | N109: 2015-07-17
A110: 31 | B110: 2015-05-27 | D110: TCI | E110: Buy | F110: 237.50 | H110: 279.5 | I110: 278.00 | J110: Target Achieved | K110: 42.00 | L110: 17.68% | M110: Successful | N110: 2015-08-06
A111: 32 | B111: 2015-06-19 | D111: HSIL | E111: Accu | F111: 340.00 | H111: 448 | I111: 448.00 | J111: Target Achieved | K111: 108.00 | L111: 31.76% | M111: Successful | N111: 2017-10-10
A112: 33 | B112: 2015-07-06 | D112: Capital First | E112: Accu | F112: 390.00 | H112: 460 | I112: 460.00 | J112: Target Achieved | K112: 70.00 | L112: 17.95% | M112: Successful | N112: 2016-04-18
A113: 34 | B113: 2015-07-10 | D113: Dolphin OffShore | E113: Accu | F113: 122.5 | H113: 61.00 | I113: 172.00 | J113: Loss of Rs.61.50/- | K113: -61.50 | L113: -50.20% | M113: Unsuccessful | N113: 2018-08-21
A114: 35 | B114: 2015-08-03 | D114: Allcargo logistics | E114: Accu | F114: 297.50 | H114: 350 | I114: 360.00 | J114: Profit of Rs 52.50/- | K114: 52.50 | L114: 17.65% | M114: Successful | N114: 2015-08-16
A115: 36 | B115: 2015-08-03 | D115: Camline Fine | E115: Accu | F115: 115.50 | H115: 149 | I115: 140.00 | J115: Profit of Rs 33.50/- | K115: 33.50 | L115: 29.00% | M115: Successful | N115: 2017-01-05
A116: 37 | B116: 2015-09-04 | D116: TCI | E116: Accu | F116: 226.00 | H116: 292 | I116: 292.00 | J116: Target Achieved | K116: 66.00 | L116: 29.20% | M116: Successful | N116: 2015-10-09
A117: 38 | B117: 2015-09-07 | D117: Kalpataru Power Transmission Ltd | E117: Accu | F117: 232.50 | H117: 312.5 | I117: 310.00 | J117: Target Achieved | K117: 80.00 | L117: 34.41% | M117: Successful | N117: 2017-03-29
A118: 39 | B118: 2015-09-21 | D118: LLOYD ELECTRIC & ENG LTD | E118: Accu | F118: 196.50 | H118: 238 | I118: 238.00 | J118: Target Achieved | K118: 41.50 | L118: 21.12% | M118: Successful | N118: 2015-10-14
A119: 40 | B119: 2015-09-24 | D119: L&T Finance Holding | E119: Accu | F119: 65.00 | H119: 82 | I119: 82.00 | J119: Target Achieved | K119: 17.00 | L119: 26.15% | M119: Successful | N119: 2016-07-27
A120: 41 | B120: 2015-10-14 | D120: KEC International ltd | E120: Accu | F120: 144.00 | H120: 182.5 | I120: 181.00 | J120: Target Achieved | K120: 38.50 | L120: 26.74% | M120: Successful | N120: 2017-03-23
A121: 42 | B121: 2015-10-14 | D121: Gruh Finance | E121: Accu | F121: 264.00 | H121: 311 | I121: 311.00 | J121: Target Achieved | K121: 47.00 | L121: 17.80% | M121: Successful | N121: 2016-08-22
A122: 43 | B122: 2015-11-10 | D122: Pidilitind | E122: Buy | F122: 549.50 | H122: 630 | I122: 630.00 | J122: Target Achieved | K122: 80.50 | L122: 14.65% | M122: Successful | N122: 2016-02-19
A123: 44 | B123: 2015-12-04 | D123: Zensar Technology | E123: Accu | F123: 1027.50 | H123: 1315 | I123: 1250.00 | J123: Target Achieved | K123: 287.50 | L123: 27.98% | M123: Successful | N123: 2018-05-24
A124: 45 | B124: 2015-12-29 | D124: Vinati Organics Ltd | E124: Accu | F124: 465.00 | H124: 540 | I124: 540.00 | J124: Target Achieved | K124: 75.00 | L124: 16.13% | M124: Successful | N124: 2016-06-09
A125: 46 | B125: 2016-01-11 | D125: GSFC | E125: Buy | F125: 81.00 | H125: 110 | I125: 110.00 | J125: Target Achieved | K125: 29.00 | L125: 35.80% | M125: Successful | N125: 2017-01-10
A126: 47 | B126: 2016-01-13 | D126: SSWL | E126: Buy | F126: 417.50 | H126: 547 | I126: 535.00 | J126: Target Achieved | K126: 129.50 | L126: 31.02% | M126: Successful | N126: 2016-07-27
A127: 48 | B127: 2016-02-08 | D127: Persistent System Ltd | E127: Accu | F127: 650.00 | H127: 800 | I127: 800.00 | J127: Target Achieved | K127: 150.00 | L127: 23.08% | M127: Successful | N127: 2018-02-23
A128: 49 | B128: 2016-03-04 | D128: UPL | E128: Accu | F128: 437.50 | H128: 504.5 | I128: 522.00 | J128: Profit of Rs.67/- | K128: 67.00 | L128: 15.31% | M128: Successful | N128: 2016-04-20
A129: 50 | B129: 2016-03-09 | D129: Ashoka Buildcon Ltd | E129: Accu | F129: 189.50 | H129: 218 | I129: 218.00 | J129: Target Achieved | K129: 28.50 | L129: 15.04% | M129: Successful | N129: 2017-10-26
A130: 51 | B130: 2016-04-11 | D130: PTC INDIA FIN SERV LTD | E130: Accu | F130: 36.5 | H130: 15.85 | I130: 60.00 | J130: Loss of Rs.20.65/- | K130: -20.65 | L130: -56.58% | M130: Unsuccessful | N130: 2019-06-11
A131: 52 | B131: 2016-04-12 | D131: CAMLINFINE $ | E131: Accu | F131: 93.00 | H131: 149 | I131: 140.00 | J131: Profit of Rs 56/- | K131: 56.00 | L131: 60.22% | M131: Successful | N131: 2017-01-05
A132: 53 | B132: 2016-04-12 | D132: Greaves Cotton Ltd. | E132: Accu | F132: 130.00 | H132: 150 | I132: 150-155 | J132: Target Achieved | K132: 20.00 | L132: 15.38% | M132: Successful | N132: 2016-07-13
A133: 54 | B133: 2016-04-13 | D133: DHFL | E133: Accu | F133: 196.00 | H133: 299 | I133: 299.00 | J133: Target Achieved | K133: 103.00 | L133: 52.55% | M133: Successful | N133: 2016-09-07
A134: 55 | B134: 2016-04-13 | D134: Magma | E134: Accu | F134: 88.00 | H134: 103 | I134: 103.00 | J134: Target Achieved | K134: 15.00 | L134: 17.05% | M134: Successful | N134: 2016-06-09
A135: 56 | B135: 2016-05-02 | D135: KEC International ltd $ | E135: Accu | F135: 127.50 | H135: 148 | I135: 148-150 | J135: Target Achieved | K135: =H135-F135 -> 20.50 | L135: =K135/F135 -> 16.08% | M135: Successful | N135: 2016-07-13
A136: 57 | B136: 2016-05-03 | D136: Mindtree | E136: Accu | F136: 675.00 | H136: 815 | I136: 790-800 | J136: Target Achieved | K136: 140.00 | L136: 20.74% | M136: Successful | N136: 2018-02-23
A137: 58 | B137: 2016-06-01 | D137: Atulauto | E137: Accu | F137: 500 | H137: 232.50 | I137: 565-570 | J137: Loss of Rs.267.50 /- | K137: -267.50 | L137: -53.50% | M137: Unsuccessful | N137: 2019-09-27
A138: 59 | B138: 2016-06-06 | D138: TRITURBINE | E138: Accu | F138: 110.00 | H138: 126.5 | I138: 125.00 | J138: Profit of Rs.16.50/- | K138: 16.50 | L138: 15.00% | M138: Successful | N138: 2016-07-01
A139: 60 | B139: 2016-06-17 | D139: Pennar Industries Ltd | E139: Accu | F139: 44.00 | H139: 69.5 | I139: 69.50 | J139: Profit of Rs.25.50/- | K139: 25.50 | L139: 57.95% | M139: Successful | N139: 2017-08-30
A140: 61 | B140: 2016-06-28 | D140: EVEREADY | E140: Accu | F140: 262.50 | H140: 340 | I140: 333.00 | J140: Profit of Rs.77.50/- | K140: 77.50 | L140: 29.52% | M140: Successful | N140: 2017-10-09
A141: 62 | B141: 2016-06-28 | D141: FIEMIND | E141: Accu | F141: 840.00 | H141: 1230 | I141: 1230.00 | J141: Target Achieved | K141: 390.00 | L141: 46.43% | M141: Successful | N141: 2016-10-06
A142: 63 | B142: 2016-07-05 | D142: Bajaj Corp Ltd | E142: Accu | F142: 395 | H142: =(468.5+342.5)/2 -> 405.50 | I142: 510.00 | J142: Profit of Rs.10.50/- | K142: =H142-F142 -> 10.50 | L142: =K142/F142 -> 3% | M142: Neutral | N142: 2019-05-21
A143: 64 | B143: 2016-08-02 | D143: GPPL $ | E143: Buy | F143: =169.5-12.8 -> 156.7 | H143: 77.00 | I143: 198-200 | J143: Loss of Rs.79.7/- | K143: -79.70 | L143: -50.86% | M143: Unsuccessful | N143: 2019-02-26
A144: 65 | B144: 2016-08-04 | D144: WONDERLA HOLIDAYS LTD | E144: Accu | F144: 400 | H144: 305.00 | I144: 475.00 | J144: Loss of Rs.95/- | K144: -95.00 | L144: -23.75% | M144: Unsuccessful | N144: 2019-05-21
A145: 66 | B145: 2016-08-11 | D145: CAMLINFINE | E145: Accu | F145: 86.50 | H145: 130 | I145: 130.00 | J145: Profit of Rs.43.50/- | K145: 43.50 | L145: 50.29% | M145: Successful | N145: 2017-12-22
A146: 67 | B146: 2016-08-18 | D146: GRANULES | E146: Accu | F146: 133.5 | H146: 126.50 | I146: 178.00 | J146: Exit | K146: -7.00 | L146: -5.24% | M146: Unsuccessful | N146: 2016-09-02
A147: 68 | B147: 2016-08-31 | D147: VA TECH WABAG | E147: Accu | F147: 560.00 | H147: 725 | I147: 725.00 | J147: Target Achieved | K147: 165.00 | L147: 29.46% | M147: Successful | N147: 2016-03-27
A148: 69 | B148: 2016-09-01 | D148: SKIPPER LIMITED | E148: Accu | F148: 160.50 | H148: 210 | I148: 210.00 | J148: Target Achieved | K148: 49.50 | L148: 30.84% | M148: Successful | N148: 2017-05-16
A149: 70 | B149: 2016-10-03 | D149: IFBIND | E149: Accu | F149: 430.00 | H149: 596 | I149: 575.00 | J149: Profit of Rs.166/- | K149: 166.00 | L149: 38.60% | M149: Successful | N149: 2017-02-03
A150: 71 | B150: 2016-10-14 | D150: ASIANTILES | E150: Accu | F150: 280.00 | H150: 345 | I150: 345.00 | J150: Target Achieved | K150: =H150-F150 -> 65.00 | L150: =K150/F150 -> 23.21% | M150: Successful | N150: 2017-03-20
A151: 72 | B151: 2016-10-14 | D151: DEEPIND | E151: Accu | F151: 245.00 | H151: 325.5 | I151: 330.00 | J151: Profit of Rs.80.5/- | K151: 80.50 | L151: 32.86% | M151: Successful | N151: 2017-02-03
A152: 73 | B152: 2016-10-17 | D152: DCBBANK | E152: Accu | F152: 125.00 | H152: 160 | I152: 160.00 | J152: Target Achieved | K152: 35.00 | L152: 28.00% | M152: Successful | N152: 2017-03-09
A153: 74 | B153: 2016-10-17 | D153: ORIENTREF | E153: Accu | F153: 114.00 | H153: 145 | I153: 145.00 | J153: Target Achieved | K153: 31.00 | L153: =K153/F153 -> 27.19% | M153: Successful | N153: 2017-05-04
A154: 75 | B154: 2016-10-17 | D154: GANECOS | E154: Accu | F154: 212.00 | H154: 280 | I154: 276.00 | J154: Profit of Rs.68/- | K154: 68.00 | L154: 32.08% | M154: Successful | N154: 2017-05-03
A155: 76 | B155: 2016-11-04 | D155: NBCC | E155: Accu | F155: 155.00 | H155: 210 | I155: 210.00 | J155: Profit of Rs.55/- | K155: 55.00 | L155: 35.48% | M155: Successful | N155: 2017-07-28
A156: 77 | B156: 2016-12-06 | D156: PRECAM | E156: Accu | F156: 150.5 | H156: 72.50 | I156: 174.00 | J156: Loss of Rs.78/- | K156: -78.00 | L156: -51.83% | M156: Unsuccessful | N156: 2018-08-21
A157: 78 | B157: 2016-12-08 | D157: INFRATEL | E157: Accu | F157: 380.00 | H157: 478 | I157: 468.00 | J157: Target Achieved | K157: =H157-F157 -> 98.00 | L157: =K157/F157 -> 25.79% | M157: Successful | N157: 2017-10-17
A158: 79 | B158: 2016-12-30 | D158: GODREJPROP | E158: Accu | F158: 305.00 | H158: 375 | I158: 375.00 | J158: Target Achieved | K158: 70.00 | L158: 22.95% | M158: Successful | N158: 2017-02-02
A159: 80 | B159: 2017-01-04 | D159: DEEPAKNTR | E159: Accu | F159: 99.50 | H159: 158 | I159: 158.00 | J159: Target Achieved | K159: 58.50 | L159: 58.79% | M159: Successful | N159: 2017-06-12
A160: 81 | B160: 2017-01-04 | D160: DEEPAKNTR | E160: Accu | F160: 99.50 | H160: 158 | I160: 158.00 | J160: Target Achieved | K160: 58.50 | L160: 58.79% | M160: Successful | N160: 2017-06-12
A161: 82 | B161: 2017-02-20 | D161: RECLTD | E161: Accu | F161: 140.50 | H161: 220 | I161: 220.00 | J161: Target Achieved | K161: =H161-F161 -> 79.50 | L161: =K161/F161 -> 56.58% | M161: Successful | N161: 2017-05-09
A162: 83 | B162: 2017-02-20 | D162: SUBROS | E162: Accu | F162: 202.50 | H162: 234 | I162: 234.00 | J162: Target Achieved | K162: 31.50 | L162: 15.56% | M162: Successful | N162: 2017-04-11
A163: 84 | B163: 2017-03-24 | D163: VRLLOG | E163: Accu | F163: 300.50 | H163: 417.5 | I163: 420.00 | J163: Profit of Rs.117/- | K163: =H163-F163 -> 117.00 | L163: =K163/F163 -> 38.94% | M163: Successful | N163: 2017-12-01
A164: 85 | B164: 2017-03-24 | D164: FIEMIND | E164: Accu | F164: 850.00 | H164: 1042.5 | I164: 1023.00 | J164: Profit of Rs 192.50/- | K164: 192.50 | L164: 22.65% | M164: Successful | N164: 2017-04-05
A165: 86 | B165: 2017-04-05 | D165: RATNAMANI | E165: Accu | F165: 785.00 | H165: 930 | I165: 920.00 | J165: Profit of Rs.145/- | K165: =H165-F165 -> 145.00 | L165: =K165/F165 -> 18.47% | M165: Successful | N165: 2017-08-29
A166: 87 | B166: 2017-04-06 | D166: ZEEMEDIA | E166: Accu | F166: 40 | H166: 13.10 | I166: 60.00 | J166: Loss of Rs.26.9/- | K166: -26.90 | L166: -67.25% | M166: Unsuccessful | N166: 2018-02-07
A167: 88 | B167: 2017-04-12 | D167: DABUR | E167: Accu | F167: 289.50 | H167: 354 | I167: 360.00 | J167: Profit of Rs.64.5/- | K167: =H167-F167 -> 64.50 | L167: =K167/F167 -> 22.28% | M167: Successful | N167: 2017-11-01
A168: 89 | B168: 2017-04-20 | D168: KPRMILL | E168: Accu | F168: 700.00 | H168: 840 | I168: 840.00 | J168: Profit of Rs.140/- | K168: 140.00 | L168: 20.00% | M168: Successful | N168: 2017-06-07
A169: 90 | B169: 2017-06-01 | D169: ESSELPACK | E169: Accu | F169: 130.00 | H169: 144.25 | I169: 170.00 | J169: Profit of Rs.14.25/- | K169: 14.25 | L169: 10.96% | M169: Successful | N169: 2019-07-29
A170: 91 | B170: 2017-06-15 | D170: KEI | E170: Accu | F170: 214.50 | H170: 262 | I170: 262.00 | J170: Profit of Rs.47.5/- | K170: 47.50 | L170: 22.14% | M170: Successful | N170: 2017-08-30
A171: 92 | B171: 2017-07-17 | D171: MAYURUNIQ | E171: Accu | F171: 370.00 | H171: 447.5 | I171: 450.00 | J171: Target Achieved | K171: 77.50 | L171: 20.95% | M171: Successful | N171: 2017-10-27
A172: 93 | B172: 2017-07-27 | D172: RAMCOCEM | E172: Accu | F172: 657.50 | H172: 825 | I172: 820.00 | J172: Target Achieved | K172: 167.50 | L172: 25.48% | M172: Successful | N172: 2017-12-21
A173: 94 | B173: 2017-08-17 | D173: FINPIPE | E173: Accu | F173: 605.00 | H173: 750 | I173: 750.00 | J173: Profit of Rs.145/- | K173: 145.00 | L173: 23.97% | M173: Successful | N173: 2017-10-19
A174: 95 | B174: 2017-09-01 | D174: SHK | E174: Accu | F174: 255 | H174: 217.25 | I174: 320.00 | J174: Loss of Rs.37.75/- | K174: -37.75 | L174: -15% | M174: Unsuccessful | N174: 2019-07-15
A175: 96 | B175: 2017-09-19 | D175: SKIPPER | E175: Accu | F175: 215.00 | H175: 258 | I175: 258.00 | J175: Target Achieved | K175: 43.00 | L175: 20.00% | M175: Successful | N175: 2017-11-01
A176: 97 | B176: 2017-09-19 | D176: SKIPPER | E176: Accu | F176: 215.00 | H176: 258 | I176: 258.00 | J176: Target Achieved | K176: 43.00 | L176: 20.00% | M176: Successful | N176: 2017-11-01
A177: 98 | B177: 2017-09-20 | D177: CAMLINFINE$ | E177: Accu | F177: 75.00 | H177: 90 | I177: 90.00 | J177: Profit of Rs.15.00/- | K177: =H177-F177 -> 15.00 | L177: =K177/F177 -> 20.00% | M177: Successful | N177: 2017-10-11
A178: 99 | B178: 2017-10-03 | D178: GNA | E178: Accu | F178: 315.00 | H178: 392 | I178: 384.00 | J178: Profit of Rs.77/- | K178: 77.00 | L178: 24.44% | M178: Successful | N178: 2017-10-09
A179: 100 | B179: 2017-10-05 | D179: NOCIL | E179: Accu | F179: 145.00 | H179: 179 | I179: 180.00 | J179: Profit of Rs.34/- | K179: 34.00 | L179: 23.45% | M179: Successful | N179: 2017-10-17
A180: 101 | B180: 2017-10-06 | D180: CENTURYPLY | E180: Accu | F180: 256.00 | H180: 323 | I180: 320.00 | J180: Target Achieved | K180: 67.00 | L180: 26.17% | M180: Successful | N180: 2017-11-28
A181: 102 | B181: 2017-10-09 | D181: EIHOTEL | E181: Accu | F181: 137.50 | H181: 184 | I181: 183.00 | J181: Profit of Rs.46.5/- | K181: 46.50 | L181: 33.82% | M181: Successful | N181: 2018-01-08
A182: 103 | B182: 2017-10-10 | D182: NRBBEARING | E182: Accu | F182: 125.50 | H182: 158 | I182: 155.00 | J182: Profit of Rs.32.5/- | K182: 32.50 | L182: 25.90% | M182: Successful | N182: 2017-11-28
A183: 104 | B183: 2017-10-10 | D183: BOROSIL | E183: Accu | F183: 895.00 | H183: 1122.5 | I183: 1078.00 | J183: Profit of Rs.227.5/- | K183: 227.50 | L183: 25.42% | M183: Successful | N183: 2018-01-17
A184: 105 | B184: 2017-10-12 | D184: CYIENT | E184: Accu | F184: 525.00 | H184: 629 | I184: 629.00 | J184: Target Achieved | K184: 104.00 | L184: 19.81% | M184: Successful | N184: 2018-01-19
A185: 106 | B185: 2017-11-07 | D185: HATSUN | E185: Accu | F185: 740.00 | H185: 892.5 | I185: 900.00 | J185: Profit of Rs.152.5/- | K185: =H185-F185 -> 152.50 | L185: =K185/F185 -> 20.61% | M185: Successful | N185: 2017-11-13
A186: 107 | B186: 2017-12-04 | D186: SANGHIIND | E186: Accu | F186: 118.50 | H186: 143.5 | I186: 145.00 | J186: Profit of Rs.25/- | K186: 25.00 | L186: 21.10% | M186: Successful | N186: 2017-12-28
A187: 108 | B187: 2017-12-21 | D187: KAJARIACER | E187: Accu | F187: 715 | H187: 500.00 | I187: 872.00 | J187: Loss of Rs.215/- | K187: -215.00 | L187: -30.07% | M187: Unsuccessful | N187: 2019-07-24
A188: 109 | B188: 2017-12-29 | D188: GNA | E188: Accu | F188: 435.00 | H188: 542.5 | I188: 539.00 | J188: Target Achieved | K188: 107.50 | L188: 24.71% | M188: Successful | N188: 2018-04-16
A189: 110 | B189: 2017-12-29 | D189: ZENSARTECH | E189: Accu | F189: 885.00 | H189: 1090 | I189: 1084.00 | J189: Target Achieved | K189: 205.00 | L189: 23.16% | M189: Successful | N189: 2018-04-23
A190: 111 | B190: 2018-04-02 | D190: EVERESTIND | E190: Accu | F190: 478.50 | H190: 442 | I190: 613.00 | J190: Loss of Rs.36.50 /- | K190: =H190-F190 -> -36.50 | L190: =K190/F190 -> -7.63% | M190: Unsuccessful | N190: 2019-10-24
A191: 112 | B191: 2018-04-04 | D191: GPPL$ | E191: Accu | F191: =141.5-7.3 -> 134.2 | H191: 77.00 | I191: 180.00 | J191: Loss of Rs.57.2/- | K191: -57.20 | L191: -42.62% | M191: Unsuccessful | N191: 2019-02-26
A192: 113 | B192: 2018-04-19 | D192: MANPASAND | E192: Accu | F192: 430 | H192: 220.00 | I192: 537.00 | J192: Loss of Rs.210/- | K192: -210.00 | L192: -48.84% | M192: Unsuccessful | N192: 2018-06-01
A193: 114 | B193: 2018-04-30 | D193: HEIDELBERG | E193: Accu | F193: 153.5 | H193: 196 | I193: 196.00 | J193: Profit of Rs.42.50/- | K193: 42.50 | L193: 27.69% | M193: Successful | N193: 2019-05-20
A194: 115 | B194: 2018-07-25 | D194: ZEEMEDIA | E194: Accu | F194: 27.5 | H194: 13.10 | I194: 60.00 | J194: Loss of Rs.14.40/- | K194: -14.40 | L194: -52.36% | M194: Unsuccessful | N194: 2018-02-07
A195: 116 | B195: 2018-08-06 | D195: GABRIEL | E195: Accu | F195: 148.5 | H195: 102 | I195: 182.00 | J195: Loss of Rs.46.50/- | K195: =H195-F195 -> -46.50 | L195: =K195/F195 -> -31.31% | M195: Unsuccessful | N195: 2019-07-15
A196: 117 | B196: 2018-08-23 | D196: INDIANHUME | E196: Accu | F196: 285 | H196: 355 | I196: 364.00 | J196: Profit of Rs.70/- | K196: 70.00 | L196: 24.56% | M196: Successful | N196: 2018-12-21
A197: 118 | B197: 2018-08-29 | D197: GRINDWELL | E197: Accu | F197: 525 | H197: 585 | I197: 635.00 | J197: Profit of Rs.60- | K197: =H197-F197 -> 60.00 | L197: =K197/F197 -> 11.43% | M197: Successful | N197: 2019-07-16
A198: 119 | B198: 2018-10-22 | D198: FINPIPE | E198: Accu | F198: 475 | H198: 574 | I198: 570.00 | J198: Target Achieved | K198: 99.00 | L198: 20.84% | M198: Successful | N198: 2018-10-30
A199: 120 | B199: 2018-10-24 | D199: GULFOILLUB | E199: Accu | F199: 707.5 | H199: 872 | I199: 872.00 | J199: Target Achieved | K199: 164.50 | L199: 23.25% | M199: Successful | N199: 2019-01-17
A200: 121 | B200: 2018-10-25 | D200: DBCORP | E200: Accu | F200: 162 | H200: 204 | I200: 209.00 | J200: Profit of Rs.42/- | K200: 42.00 | L200: 25.93% | M200: Successful | N200: 2019-03-15
A201: 122 | B201: 2018-10-26 | D201: RITES | E201: Accu | F201: 240 | H201: 297 | I201: 297.00 | J201: Target Achieved | K201: 57.00 | L201: 23.75% | M201: Successful | N201: 2018-11-13
A202: 123 | B202: 2018-12-05 | D202: BRIGADE | E202: Accu | F202: 202.5 | H202: 255 | I202: 252.00 | J202: Target Achieved | K202: 52.50 | L202: 25.93% | M202: Successful | N202: 2019-03-18 | R202: V
A203: 124 | B203: 2018-12-31 | D203: JKCEMENT | E203: Accu | F203: 710 | H203: 866 | I203: 866.00 | J203: Target Achieved | K203: 156.00 | L203: 21.97% | M203: Successful | N203: 2019-03-29 | R203: V
A204: 125 | B204: 2019-02-26 | D204: MARICO | E204: Accu | F204: 337.25 | H204: 398.5 | I204: 411.00 | J204: Profit of Rs.61.25/- | K204: 61.25 | L204: 18.16% | M204: Successful | N204: 2019-10-22 | R204: V
A205: 126 | B205: 2019-04-04 | D205: ITDCEM | E205: Accu | F205: 130 | H205: 65 | I205: 158.00 | J205: Loss of Rs.65 /- | K205: -65.00 | L205: -50.00% | M205: Unsuccessful | N205: 2019-09-18 | R205: K
A206: 127 | B206: 2017-10-09 | D206: RECLTD | E206: Accu | F206: 141.5 | H206: 183.5 | I206: 210.00 | J206: Profit of Rs.42/- | K206: 42.00 | L206: 29.68% | M206: Successful | N206: 2017-11-03 | R206: K
A207: 128 | B207: 2017-12-05 | D207: ALLCARGO | E207: Accu | F207: 172.00 | H207: 155.25 | I207: 230.00 | J207: Loss of Rs.16.75/- | K207: -16.75 | L207: -9.74% | M207: Unsuccessful | N207: 2019-11-18 | R207: K
A208: 129 | B208: 2018-10-25 | D208: GODREJCP | E208: Accu | F208: 698.5 | H208: 890 | I208: 890.00 | J208: Profit of Rs.191.50/- | K208: 191.50 | L208: 27.42% | M208: Successful | N208: 2021-05-12 | R208: V
A209: 130 | B209: 2017-05-22 | D209: GREAVESCOT | E209: Accu | F209: 127.6 | H209: 138 | I209: 190.00 | J209: Profit of Rs.10.40 | K209: 10.40 | L209: 8.15% | M209: Successful | N209: 2019-11-05 | R209: K
A210: 131 | B210: 2018-02-27 | D210: MOLDTKPAC | E210: Accu | F210: 317 | H210: 382.5 | I210: 398.00 | J210: Profit of Rs.65.5 | K210: 65.50 | L210: 20.66% | M210: Successful | N210: 2021-02-11 | R210: K
A211: 132 | B211: 2018-03-05 | D211: LICHSGFIN | E211: Accu | F211: =510-14.4 -> 495.60 | H211: 350 | I211: 672.00 | J211: Loss of Rs.145.60/- | K211: -145.60 | L211: -29.38% | M211: Unsuccessful | N211: 2020-02-26 | R211: V
A212: 133 | B212: 2018-05-17 | D212: PHILIPCARB | E212: Accu | F212: 230.30 | H212: 102.5 | I212: 348.00 | J212: Loss of Rs.127.80/- | K212: -127.80 | L212: -55.49% | M212: Unsuccessful | N212: 2020-03-06 | R212: V
A213: 134 | B213: 2018-06-07 | D213: KEC | E213: Accu | F213: =342.5-5.1 -> 337.4 | H213: 412.5 | I213: 439.00 | J213: Profit of Rs.75.10 | K213: 75.10 | L213: 22.26% | M213: Successful | N213: 2021-02-03 | R213: K
A214: 135 | B214: 2018-07-04 | D214: ASHOKLEY | E214: Accu | F214: =127.5-5.53 -> 121.97 | H214: 122.50 | I214: 170.00 | J214: Profit of Rs.0.53/- | K214: 0.53 | L214: 0% | M214: Neutral | N214: 2021-08-23 | R214: V
A215: 136 | B215: 2018-07-13 | D215: FCONSUMER | E215: Accu | F215: 46.50 | H215: 17 | I215: 59.00 | J215: Loss of Rs.29.50/- | K215: =H215-F215 -> -29.50 | L215: =K215/F215 -> -63.44% | M215: Unsuccessful | N215: 2020-02-26 | R215: V
A216: 137 | B216: 2018-10-23 | D216: JKPAPER | E216: Accu | F216: 156.5 | H216: 207.5 | I216: 191.00 | J216: Target Achieved | K216: 51.00 | L216: 32.59% | M216: Successful | N216: 2021-06-22 | R216: V
A217: 138 | B217: 2018-12-05 | D217: CCL | E217: Accu | F217: 259.5 | H217: 320 | I217: 320.00 | J217: Target Achieved | K217: 60.50 | L217: 23.31% | M217: Successful | N217: 2021-05-07 | R217: V
A218: 139 | B218: 2018-12-05 | D218: VARROC | E218: Accu | F218: 715 | H218: 445 | I218: 840.00 | J218: Loss of Rs.270/- | K218: -270.00 | L218: -37.76% | M218: Unsuccessful | N218: 2019-12-01 | R218: V
A219: 140 | B219: 2019-01-04 | D219: MGL | E219: Accu | F219: 875 | H219: 1165 | I219: 1185.00 | J219: Profit of Rs.290/- | K219: 290.00 | L219: 33.14% | M219: Successful | N219: 2020-01-17 | R219: V
A220: 141 | B220: 2019-04-04 | D220: COCHINSHIP | E220: Accu | F220: =387-14.63 -> 372.37 | H220: 490 | I220: 490.00 | J220: Target Achieved | K220: 117.63 | L220: 31.59% | M220: Successful | N220: 2020-01-20 | R220: V
A221: 142 | B221: 2019-04-23 | D221: MAHINDCIE | E221: Buy | F221: 220 | H221: 127.5 | I221: 284.00 | J221: Loss of Rs.92.50/- | K221: -92.50 | L221: -42.05% | M221: Unsuccessful | N221: 2020-03-06 | R221: V
A222: 143 | B222: 2019-06-06 | D222: RADICO | E222: Buy | F222: 332.8 | H222: 405 | I222: 419.00 | J222: Profit of Rs.72.20/- | K222: 72.20 | L222: 21.69% | M222: Successful | N222: 2020-01-30 | R222: K
A223: 144 | B223: 2019-06-25 | D223: M&MFIN | E223: Accu | F223: 386 | H223: 395.00 | I223: 452.00 | J223: Profit of Rs.9/- | K223: 9.00 | L223: 2% | M223: Neutral | N223: 2020-02-07 | R223: K
A224: 145 | B224: 2019-08-30 | D224: INDHOTEL | E224: Accu | F224: 137.5 | H224: 138.50 | I224: 190.00 | J224: Profit of Rs.1/- | K224: =H224-F224 -> 1.00 | L224: =K224/F224 -> 1% | M224: Neutral | N224: 2021-08-24 | R224: V
A225: 146 | B225: 2019-09-23 | D225: KNRCON | E225: Accu | F225: 235 | H225: 295 | I225: 296.00 | J225: Profit of Rs.60/- | K225: =H225-F225 -> 60.00 | L225: =K225/F225 -> 25.53% | M225: Successful | N225: 2020-01-14 | R225: K
A226: 147 | B226: 2019-10-14 | D226: KEC$ | E226: Accu | F226: 277.5 | H226: 333 | I226: 333.00 | J226: Profit of Rs.55.50/- | K226: 55.50 | L226: 20.00% | M226: Successful | N226: 2020-01-16 | R226: V
A227: 148 | B227: 2019-10-14 | D227: MGL$ | E227: Accu | F227: 930 | H227: 1165 | I227: 1200.00 | J227: Profit of Rs.235/- | K227: 235.00 | L227: 25.27% | M227: Successful | N227: 2020-01-17 | R227: K
A228: 149 | B228: 2019-10-15 | D228: JKPAPER$ | E228: Accu | F228: 111.00 | H228: 141 | I228: 141.00 | J228: Profit of Rs.30/- | K228: 30.00 | L228: 27.03% | M228: Successful | N228: 2021-05-12 | R228: K
A229: 150 | B229: 2019-10-15 | D229: RADICO$ | E229: Accu | F229: 296.00 | H229: 370 | I229: 370.00 | J229: Target Achieved | K229: 74.00 | L229: 25.00% | M229: Successful | N229: 2020-01-23 | R229: K
A230: 151 | B230: 2019-10-16 | D230: MOLDTKPAC$ | E230: Accu | F230: 300.00 | H230: 382.5 | I230: 344.00 | J230: Profit of Rs.82.5 | K230: 82.50 | L230: 27.50% | M230: Successful | N230: 2021-02-11 | R230: K
A231: 152 | B231: 2020-01-02 | D231: PSPPROJECT | E231: Accu | F231: 490-500 | I231: 590.00 | J231: Open | M231: Open | R231: K
A232: 153 | B232: 2020-05-15 | D232: BEL | E232: Accu | F232: 67.50 | H232: 86 | I232: 86.00 | J232: Profit of Rs.18.50/- | K232: =H232-F232 -> 18.50 | L232: =K232/F232 -> 27.41% | M232: Successful | N232: 2020-06-26 | R232: K
A233: 154 | B233: 2020-07-23 | D233: RITES | E233: Accu | F233: 231.00 | H233: 281 | I233: 281.00 | J233: Target Achieved | K233: 50.00 | L233: 21.65% | M233: Successful | N233: 2021-06-11 | R233: K
A234: 155 | B234: 2020-09-18 | D234: IEX | E234: Accu | F234: 206 | H234: 248 | I234: 248.00 | J234: Target Achieved | K234: 42.00 | L234: 20.39% | M234: Successful | N234: 2021-01-18 | R234: K
... 19 more rows
